Workbook

Sheet INDICE
A8: ESTADISTICA DE MATRICULA SIMAT 2012
A9: Fuente: SIMAT Corte 30 de Septiembre 2012
A28: Revisó: Fener de los Rios, Jefe División de Cobertura.
A29: Elaboró: Luz Angela Medina, Jefe Permanencia y Gustavo Carvajal P. Técnico A dministrativo.

Sheet INDICE (0)
A5: ESTADISTICA DE MATRICULA SIMAT 2012
A6: Corte 31 de Agosto 2012
A25: Revisó: Fener de los Rios, Jefe División de Cobertura.
A26: Elaboró: Luz Angela Medina, Jefe Permanencia y Gustavo Carvajal P. Técnico A dministrativo.

Sheet INDICE (1)
A5: ESTADISTICA DE MATRICULA SIMAT 2012
A6: =INDICE!A9 -> Fuente: SIMAT Corte 30 de Septiembre 2012
A24: Revisó: Fener de los Rios, Jefe División de Cobertura.
A25: Elaboró: Luz Angela Medina, Jefe Permanencia y Gustavo Carvajal P. Técnico A dministrativo.

Sheet INDICE (2)
A5: ESTADISTICA DE MATRICULA SIMAT 2012
A6: =INDICE!A9 -> Fuente: SIMAT Corte 30 de Septiembre 2012
A22: Revisó: Fener de los Rios, Jefe División de Cobertura.
A23: Elaboró: Luz Angela Medina, Jefe Permanencia y Gustavo Carvajal P. Técnico A dministrativo.

Sheet INDICE (3)
A5: ESTADISTICA DE MATRICULA SIMAT 2012
A6: =INDICE!A9 -> Fuente: SIMAT Corte 30 de Septiembre 2012
A22: Revisó: Fener de los Rios, Jefe División de Cobertura.
A23: Elaboró: Luz Angela Medina, Jefe Permanencia y Gustavo Carvajal P. Técnico A dministrativo.

Sheet INDICE (4)
A4: ESTADISTICA DE MATRICULA SIMAT 2012
A5: =INDICE!A9 -> Fuente: SIMAT Corte 30 de Septiembre 2012
A24: Revisó: Fener de los Rios, Jefe División de Cobertura.
A25: Elaboró: Luz Angela Medina, Jefe Permanencia y Gustavo Carvajal P. Técnico A dministrativo.

Sheet INDICE (5)
A5: ESTADISTICA DE MATRICULA SIMAT 2012
A6: =INDICE!A9 -> Fuente: SIMAT Corte 30 de Septiembre 2012
A22: Revisó: Fener de los Rios, Jefe División de Cobertura.
A23: Elaboró: Luz Angela Medina, Jefe Permanencia y Gustavo Carvajal P. Técnico A dministrativo.

Sheet INDICE (6)
A5: ESTADISTICA DE MATRICULA SIMAT 2012
A6: =INDICE!A9 -> Fuente: SIMAT Corte 30 de Septiembre 2012
A22: Revisó: Fener de los Rios, Jefe División de Cobertura.
A23: Elaboró: Luz Angela Medina, Jefe Permanencia y Gustavo Carvajal P. Técnico A dministrativo.

Sheet INDICE (7)
A5: ESTADISTICA DE MATRICULA SIMAT 2012
A6: =INDICE!A9 -> Fuente: SIMAT Corte 30 de Septiembre 2012
A27: Revisó: Fener de los Rios, Jefe División de Cobertura.
A28: Elaboró: Luz Angela Medina, Jefe Permanencia y Gustavo Carvajal P. Técnico A dministrativo.

Sheet 0
A1: MATRICULA OFICIAL Y PRIVADA POR MUNICIPIO
B3: MUNICIPIO | C3: NO OFICIAL | D3: OFICIAL | E3: Total general
B4: ALBANIA | D4: 1173 | E4: 1173
B5: BELÉN DE LOS ANDAQUIES | D5: 3148 | E5: 3148
B6: CARTAGENA DEL CHAIRÁ | D6: 9120 | E6: 9120
B7: CURILLO | D7: 2729 | E7: 2729
B8: DONCELLO | C8: 109 | E8: 109
B9: EL DONCELLO | D9: 5488 | E9: 5488
B10: EL PAUJIL | D10: 3688 | E10: 3688
B11: LA MONTAÑITA | D11: 4786 | E11: 4786
B12: MILÁN | D12: 3056 | E12: 3056
B13: MORELIA | D13: 1072 | E13: 1072
B14: PUERTO RICO | D14: 8758 | E14: 8758
B15: SAN JOSÉ DEL FRAGUA | D15: 4317 | E15: 4317
B16: SAN VICENTE DEL CAGUÁN | C16: 782 | D16: 15733 | E16: 16515
B17: SOLANO | D17: 3891 | E17: 3891
B18: SOLITA | D18: 2399 | E18: 2399
B19: VALPARAÍSO | D19: 2314 | E19: 2314
B20: TOTAL | C20: 891 | D20: 71672 | E20: 72563
B21: =INDICE!A9 -> Fuente: SIMAT Corte 30 de Septiembre 2012
B27: ADIELA MOLINA CUTIVA | C27: FENER DE LOS RIOS BARRERA
B28: Secretaria de Educación | C28: Jefe División de Cobertura
B31: Elaboró: Luz Angela Medina, Jefe de Permanencia

Sheet 0.1
A1: MATRICULA OFICIAL Y PRIVADA POR MUNICIPIO Y E.E.
A3: MUNICIPIO | B3: INSTITUCION | C3: NO OFICIAL | D3: OFICIAL | E3: TOTAL
A4: ALBANIA | B4: C.E LA CHORROSA | D4: 188 | E4: 188
B5: C.E VERSALLES | D5: 86 | E5: 86
B6: I.E ALBANIA | D6: 631 | E6: 631
B7: I.E EL DORADO | D7: 268 | E7: 268
A8: Total ALBANIA | D8: 1173 | E8: 1173
A9: BELÉN DE LOS ANDAQUIES | B9: C.E ALTO SARABANDO | D9: 120 | E9: 120
B10: C.E EL CHOCHO | D10: 156 | E10: 156
B11: I. E. R. PUEBLO NUEVO | D11: 250 | E11: 250
B12: I.E AGROTECNICO MIXTO | D12: 718 | E12: 718
B13: I.E GABRIELA MISTRAL | D13: 1110 | E13: 1110
B14: I.E RURAL EL PORTAL LA MONO | D14: 371 | E14: 371
B15: I.E SAN LUIS | D15: 423 | E15: 423
A16: Total BELÉN DE LOS ANDAQUIES | D16: 3148 | E16: 3148
A17: CARTAGENA DEL CHAIRÁ | B17: I. E. R. LA ESMERALDA | D17: 377 | E17: 377
B18: I. E. R. LOS CRISTALES | D18: 434 | E18: 434
B19: I. E. R. MONSERRATE | D19: 824 | E19: 824
B20: I. E. R. PEÑAS COLORADAS | D20: 366 | E20: 366
B21: I. E. R. SANTA CRUZ DEL AGUILA | D21: 242 | E21: 242
B22: I. E. R. SANTAFE DEL CAGUAN | D22: 760 | E22: 760
B23: I.E AGROECOLOGICO AMAZONICO | D23: 1292 | E23: 1292
B24: I.E EL CHAIRA JOSE MARIA CORDOBA | D24: 1861 | E24: 1861
B25: I.E. R. DIVINO NIÑO | D25: 302 | E25: 302
B26: I.E. R. EL EDEN | D26: 298 | E26: 298
B27: I.E. R. LA SARDINATA | D27: 351 | E27: 351
B28: I.E. R. SAN PEDRO CLAVER | D28: 491 | E28: 491
B29: I.E. R. TEUSAQUILLO | D29: 394 | E29: 394
B30: I.E. R. VILLALUZ | D30: 597 | E30: 597
B31: I.E.R JOSE ANTONIO GALAN | D31: 531 | E31: 531
A32: Total CARTAGENA DEL CHAIRÁ | D32: 9120 | E32: 9120
A33: CURILLO | B33: C.E. EL LIBERTADOR | D33: 310 | E33: 310
B34: C.E. LA NOVIA | D34: 349 | E34: 349
B35: I.E ANGEL CUNIBERTI | D35: 1553 | E35: 1553
B36: I.E. R. HORIZONTE | D36: 190 | E36: 190
B37: I.E. R. SALAMINA | D37: 327 | E37: 327
A38: Total CURILLO | D38: 2729 | E38: 2729
A39: DONCELLO | B39: LICEO INFANTIL WINNIE POOH | C39: 109 | E39: 109
A40: Total DONCELLO | C40: 109 | E40: 109
A41: EL DONCELLO | B41: C.E EL QUEBRADON | D41: 144 | E41: 144
B42: I.E CORAZON INMACULADO DE MARIA | D42: 899 | E42: 899
B43: I.E JORGE ABEL MOLINA | D43: 706 | E43: 706
B44: I.E R. PUERTO MANRIQUE | D44: 200 | E44: 200
B45: I.E R. SIMON BOLIVAR | D45: 379 | E45: 379
B46: I.E RUFINO QUICHOYA | D46: 1448 | E46: 1448
B47: I.E. MARCO FIDEL SUAREZ | D47: 836 | E47: 836
B48: I.E. R. BERLIN | D48: 434 | E48: 434
B49: I.E. R. LA CEIBA | D49: 254 | E49: 254
B50: I.E. R. SAN JUDAS TADEO | D50: 188 | E50: 188
A51: Total EL DONCELLO | D51: 5488 | E51: 5488
A52: EL PAUJIL | B52: C.E NIÑA DEL CARMEN | D52: 146 | E52: 146
B53: C.E R. LA PROVIDENCIA | D53: 145 | E53: 145
B54: C.E SANTA TERESA | D54: 246 | E54: 246
B55: I.E AGROECOLOGICO AMAZONICO | D55: 1820 | E55: 1820
B56: I.E NUESTRA SE¿ORA DE LAS MERCEDES | D56: 679 | E56: 679
B57: I.E R. LA CONCORDIA | D57: 214 | E57: 214
B58: I.E R. RAFAEL URIBE URIBE | D58: 216 | E58: 216
B59: I.E. R. BOLIVIA | D59: 222 | E59: 222
A60: Total EL PAUJIL | D60: 3688 | E60: 3688
A61: LA MONTAÑITA | B61: C.E BALCONES | D61: 131 | E61: 131
B62: C.E EL CEDRO | D62: 151 | E62: 151
B63: C.E LA ARGENTINA | D63: 218 | E63: 218
B64: C.E. EL DIVISO | D64: 320 | E64: 320
B65: C.E. EL JARDIN | D65: 263 | E65: 263
B66: C.E. GAITANIA | D66: 174 | E66: 174
B67: C.E. LOS ALPINOS | D67: 116 | E67: 116
B68: I.E LA ESTRELLA | D68: 142 | E68: 142
B69: I.E NTRA SRA DEL PERPETUO SOCORRO | D69: 799 | E69: 799
B70: I.E R. MATEGUADUA | D70: 166 | E70: 166
B71: I.E RURAL SABIO CALDAS | D71: 471 | E71: 471
B72: I.E. R. AGRO NUÑEZ | D72: 395 | E72: 395
B73: I.E. R. BRISAS DE SAN ISIDRO | D73: 311 | E73: 311
B74: I.E. R. JOSE HILARIO LOPEZ | D74: 216 | E74: 216
B75: I.E. R. PALMA ARRIBA | D75: 199 | E75: 199
B76: I.E. R. REINA BAJA | D76: 201 | E76: 201
B77: I.E.R SIMON BOLIVAR | D77: 513 | E77: 513
A78: Total LA MONTAÑITA | D78: 4786 | E78: 4786
A79: MILÁN | B79: C.E EL DIAMANTE (MIRAVALLE) | D79: 229 | E79: 229
B80: C.E. GRANARIO | D80: 188 | E80: 188
B81: C.E. LA ANGUILLA | D81: 271 | E81: 271
B82: I.E MARCO FIDEL SUAREZ | D82: 366 | E82: 366
B83: I.E. R. LA FLORIDA | D83: 372 | E83: 372
B84: I.E.R ANGEL RICARDO ACOSTA | D84: 534 | E84: 534
B85: I.E.R LA RASTRA | D85: 219 | E85: 219
B86: I.E.R. ILUSION MATICURU | D86: 366 | E86: 366
B87: I.E.R. MAMA BWE REOJACHE | D87: 511 | E87: 511
A88: Total MILÁN | D88: 3056 | E88: 3056
A89: MORELIA | B89: C.E PALMARITO | D89: 167 | E89: 167
B90: I.E CERVANTES | D90: 628 | E90: 628
B91: I.E R. JUAN XXIII | D91: 277 | E91: 277
A92: Total MORELIA | D92: 1072 | E92: 1072
A93: PUERTO RICO | B93: C.E EL AGUILA | D93: 177 | E93: 177
B94: C.E LA FLORESTA # 5 | D94: 149 | E94: 149
B95: C.E. CAMPO HERMOSO | D95: 222 | E95: 222
B96: C.E. EL CARMELO | D96: 291 | E96: 291
B97: C.E. LOMA ALTA | D97: 321 | E97: 321
B98: I.E ACEVEDO Y GOMEZ | D98: 2029 | E98: 2029
B99: I.E R. CENTRO INDIGENA | D99: 178 | E99: 178
B100: I.E RURAL RIO NEGRO | D100: 462 | E100: 462
B101: I.E SAGRADOS CORAZONES | D101: 2291 | E101: 2291
B102: I.E. R. VILLA DEL RIO | D102: 363 | E102: 363
B103: I.E. R. EL LOBO | D103: 362 | E103: 362
B104: I.E. R. JORGE ELIECER GAITAN | D104: 407 | E104: 407
B105: I.E. R. LA AGUILILLA | D105: 501 | E105: 501
B106: I.E. R. LA ESMERALDA | D106: 550 | E106: 550
B107: I.E. R. SANTANA RAMOS | D107: 455 | E107: 455
A108: Total PUERTO RICO | D108: 8758 | E108: 8758
A109: SAN JOSÉ DEL FRAGUA | B109: I.E DON QUIJOTE | D109: 979 | E109: 979
B110: I.E PARROQUIAL | D110: 797 | E110: 797
B111: I.E. R. LA GALLINETA | D111: 292 | E111: 292
B112: I.E. R. MARIA AUXILIADORA | D112: 167 | E112: 167
B113: I.E. R. PLATANILLO | D113: 457 | E113: 457
B114: I.E. RURAL LAS LAJAS | D114: 701 | E114: 701
B115: I.E.R. DIVINO NIÑO | D115: 781 | E115: 781
B116: INST INGA YACHAICURY | D116: 143 | E116: 143
A117: Total SAN JOSÉ DEL FRAGUA | D117: 4317 | E117: 4317
A118: SAN VICENTE DEL CAGUÁN | B118: C.E. CRISTO REY (ANTONIO NARI¿O) | D118: 384 | E118: 384
B119: C.E. GIBRALTAR | D119: 99 | E119: 99
B120: C.E. SANTA ROSA | D120: 116 | E120: 116
B121: CIUDADELA JUVENIL AMAZONICA DON BOSCO | C121: 26 | E121: 26
B122: COLEGIO BASICO EL BERLIN | C122: 137 | E122: 137
B123: I. E. R. EL RUBI | D123: 180 | E123: 180
B124: I. E. R. LOS FUNDADORES | D124: 619 | E124: 619
B125: I. E. R. NUEVO HORIZONTE | D125: 178 | E125: 178
B126: I.E DANTE ALIGHIERI | D126: 2020 | E126: 2020
B127: I.E DOMINGO SAVIO | D127: 988 | E127: 988
B128: I.E PROMOCION SOCIAL | D128: 1969 | E128: 1969
B129: I.E VERDE AMAZONICO | D129: 1134 | E129: 1134
B130: I.E. R. ALTO QUEBRADON | D130: 233 | E130: 233
B131: I.E. R. BRISAS DEL LOSADA | D131: 172 | E131: 172
B132: I.E. R. CRISTALINA TRONCALES | D132: 374 | E132: 374
B133: I.E. R. LA SOMBRA | D133: 498 | E133: 498
B134: I.E. R. LA UNION | D134: 267 | E134: 267
B135: I.E. R. LOS POZOS | D135: 519 | E135: 519
B136: I.E. R. PLAYA RICA | D136: 229 | E136: 229
B137: I.E. R. SAN JUAN DEL LOSADA | D137: 496 | E137: 496
B138: I.E. R. SANTO DOMINGO SAVIO | D138: 180 | E138: 180
B139: I.E.R GUILLERMO RIOS | D139: 360 | E139: 360
B140: I.E.R. ARENOSO | D140: 545 | E140: 545
B141: I.E.R. BOCANA POSETAS | D141: 184 | E141: 184
B142: I.E.R. CAMPO HERMOSO | D142: 754 | E142: 754
B143: I.E.R. CRISTALINA DEL LOSADA | D143: 709 | E143: 709
B144: I.E.R. GUAYABAL | D144: 369 | E144: 369
B145: I.E.R. LA INMACULADA | D145: 558 | E145: 558
B146: I.E.R. LA SAMARIA | D146: 490 | E146: 490
B147: I.E.R. LOS ANDES | D147: 247 | E147: 247
B148: I.E.R. PUERTO AMOR | D148: 363 | E148: 363
B149: I.E.R. SAN JOSE DE CAQUETANIA | D149: 209 | E149: 209
B150: I.E.R. VILLA CARMONA | D150: 290 | E150: 290
B151: IDEHA | C151: 120 | E151: 120
B152: INST FRANCISCO DE ASIS | C152: 271 | E152: 271
B153: LICEO MODERNO INFANTIL | C153: 228 | E153: 228
A154: Total SAN VICENTE DEL CAGUÁN | C154: 782 | D154: 15733 | E154: 16515
A155: SOLANO | B155: C.E. CAMPOALEGRE | D155: 307 | E155: 307
B156: C.E. EL DANUBIO | D156: 331 | E156: 331
B157: C.E. LA CABAÑITA | D157: 191 | E157: 191
B158: C.E. LAS MERCEDES | D158: 227 | E158: 227
B159: C.E. MONONGUETE | D159: 506 | E159: 506
B160: C.E. PEÑAS BLANCAS | D160: 285 | E160: 285
B161: C.E. PUERTO TEJADA | D161: 439 | E161: 439
B162: I.E CAMPO ELIAS MARULANDA | D162: 1144 | E162: 1144
B163: I.E.R. INDIGENA COEMANI FORTUNATO REALLY | D163: 461 | E163: 461
A164: Total SOLANO | D164: 3891 | E164: 3891
A165: SOLITA | B165: C.E CAMPOLEJANO | D165: 254 | E165: 254
B166: C.E. AGUA BLANCA CUZUMBE | D166: 331 | E166: 331
B167: C.E. CHONTILLOSA MEDIO | D167: 472 | E167: 472
B168: I.E INTERNADO RURAL SOLITA | D168: 1342 | E168: 1342
A169: Total SOLITA | D169: 2399 | E169: 2399
A170: VALPARAÍSO | B170: C.E LA RICO KM 30 | D170: 205 | E170: 205
B171: C.E. LA MUÑOZ | D171: 300 | E171: 300
B172: C.E. MIRAVALLE SANTROPEL | D172: 161 | E172: 161
B173: C.E. NIEVES ARRIBA | D173: 227 | E173: 227
B174: C.E. PLAYA RICA | D174: 271 | E174: 271
B175: C.E. SANTIAGO DE LA SELVA | D175: 316 | E175: 316
B176: I.E VALPARAISO | D176: 834 | E176: 834
A177: Total VALPARAÍSO | D177: 2314 | E177: 2314
A178: TOTAL | C178: 891 | D178: 71672 | E178: 72563
A179: ='0'!B21 -> Fuente: SIMAT Corte 30 de Septiembre 2012
A184: ADIELA MOLINA CUTIVA | C184: FENER DE LOS RIOS BARRERA
A185: Secretaria de Educación | C185: Jefe División de Cobertura
A187: Elaboró: Luz Angela Medina, Jefe de Permanencia

Sheet 0.2
A1: MATRICULA OFICIAL Y PRIVADA POR MUNICIPIO, E.E Y SEDE
A3: MUNICIPIO | B3: INSTITUCION | C3: SEDE | D3: NO OFICIAL | E3: OFICIAL | F3: TOTAL
A4: ALBANIA | B4: C.E LA CHORROSA | C4: ALTO CASTAÑAL | E4: 13 | F4: 13
C5: BERLIN | E5: 16 | F5: 16
C6: EL CARMEN | E6: 9 | F6: 9
C7: EL DIVISO | E7: 8 | F7: 8
C8: EL JAZMIN | E8: 15 | F8: 15
C9: EL ROSAL | E9: 8 | F9: 8
C10: FLORIDA BLANCA | E10: 16 | F10: 16
C11: FLORIDA NO. 1 | E11: 10 | F11: 10
C12: INDIGENA LA CHUSCALOSA | E12: 14 | F12: 14
C13: LA ARENOSA | E13: 9 | F13: 9
C14: LA CHORROSA | E14: 19 | F14: 19
C15: LA ESPERANZA | E15: 15 | F15: 15
C16: LAS MERCEDES | E16: 10 | F16: 10
C17: LOS LIBERTADORES | E17: 11 | F17: 11
C18: SAN ISIDRO | E18: 15 | F18: 15
B19: Total C.E LA CHORROSA | E19: 188 | F19: 188
B20: C.E VERSALLES | C20: CARMEN BALATA | E20: 11 | F20: 11
C21: EL QUEBRADON NO 1 | E21: 8 | F21: 8
C22: LOS JARDINES | E22: 12 | F22: 12
C23: PENSILVANIA | E23: 11 | F23: 11
C24: VERSALLES | E24: 44 | F24: 44
B25: Total C.E VERSALLES | E25: 86 | F25: 86
B26: I.E ALBANIA | C26: PEREGRINO LOZANO | E26: 290 | F26: 290
C27: SAN CARLOS | E27: 341 | F27: 341
B28: Total I.E ALBANIA | E28: 631 | F28: 631
B29: I.E EL DORADO | C29: AGUAS CLARAS | E29: 8 | F29: 8
C30: BELLA AURORA | E30: 9 | F30: 9
C31: EL DIAMANTE | E31: 3 | F31: 3
C32: EL DORADO | E32: 158 | F32: 158
C33: EL PARAISO | E33: 25 | F33: 25
C34: LA ARGENTINA | E34: 26 | F34: 26
C35: LA PAZ | E35: 10 | F35: 10
C36: LAS MARGARITAS | E36: 15 | F36: 15
C37: MARIANO OSPINA PEREZ | E37: 14 | F37: 14
B38: Total I.E EL DORADO | E38: 268 | F38: 268
A39: Total ALBANIA | E39: 1173 | F39: 1173
A40: BELÉN DE LOS ANDAQUIES | B40: C.E ALTO SARABANDO | C40: ALTAMIRA | E40: 10 | F40: 10
C41: ALTO SAN JUAN | E41: 22 | F41: 22
C42: ALTO SARABANDO | E42: 38 | F42: 38
C43: CRISTALINA | E43: 9 | F43: 9
C44: LAS PLATAS | E44: 11 | F44: 11
C45: LOS ANDES | E45: 13 | F45: 13
C46: SANTA ROSA | E46: 8 | F46: 8
C47: SARABANDO MEDIO | E47: 9 | F47: 9
B48: Total C.E ALTO SARABANDO | E48: 120 | F48: 120
B49: C.E EL CHOCHO | C49: AGUA AZUL | E49: 11 | F49: 11
C50: ALTO PUEBLITOS | E50: 5 | F50: 5
C51: BAJO PUEBLITOS | E51: 7 | F51: 7
C52: BRUSELAS | E52: 18 | F52: 18
C53: CANELITOS | E53: 20 | F53: 20
C54: EL CHOCHO | E54: 66 | F54: 66
C55: SAN ISIDRO | E55: 14 | F55: 14
C56: SANTA ELENA | E56: 15 | F56: 15
B57: Total C.E EL CHOCHO | E57: 156 | F57: 156
B58: I. E. R. PUEBLO NUEVO | C58: BOCANA DE LAS VERDES | E58: 14 | F58: 14
C59: GUAMBIANA | E59: 23 | F59: 23
C60: INDIGENA LA CERINDA | E60: 24 | F60: 24
C61: LA PRIMAVERA | E61: 21 | F61: 21
C62: PRADO DE LOS ANGELES | E62: 23 | F62: 23
C63: PUEBLO NUEVO | E63: 145 | F63: 145
B64: Total I. E. R. PUEBLO NUEVO | E64: 250 | F64: 250
B65: I.E AGROTECNICO MIXTO | C65: AGROTECNICO MIXTO | E65: 718 | F65: 718
B66: Total I.E AGROTECNICO MIXTO | E66: 718 | F66: 718
B67: I.E GABRIELA MISTRAL | C67: GABRIELA MISTRAL | E67: 529 | F67: 529
C68: JOSE ACEVEDO Y GOMEZ | E68: 581 | F68: 581
B69: Total I.E GABRIELA MISTRAL | E69: 1110 | F69: 1110
B70: I.E RURAL EL PORTAL LA MONO | C70: AGUADULCE | E70: 48 | F70: 48
C71: EL CARBON | E71: 18 | F71: 18
C72: EL GALAN | E72: 11 | F72: 11
C73: EL JAZMIN | E73: 20 | F73: 20
C74: EL PORTAL LA MONO | E74: 222 | F74: 222
C75: EL SANCHEZ | E75: 18 | F75: 18
C76: GERARDO VALENCIA CANO | E76: 17 | F76: 17
C77: TORTUGA ESTRELLA | E77: 17 | F77: 17
B78: Total I.E RURAL EL PORTAL LA MONO | E78: 371 | F78: 371
B79: I.E SAN LUIS | C79: BELLAVISTA | E79: 19 | F79: 19
C80: EL DIAMANTE | E80: 12 | F80: 12
C81: EL PORVENIR | E81: 8 | F81: 8
C82: INDIGENA LA ESPERANZA | E82: 15 | F82: 15
C83: LA ONDINA | E83: 13 | F83: 13
C84: LA PRADERA | E84: 23 | F84: 23
C85: LA SOLEDAD | E85: 17 | F85: 17
C86: LA UNION | E86: 13 | F86: 13
C87: LAS DELICIAS | E87: 15 | F87: 15
C88: LAS MINAS | E88: 20 | F88: 20
C89: LAS VENTANAS | E89: 8 | F89: 8
C90: LOS ALETONES | E90: 18 | F90: 18
C91: SAN ANTONIO | E91: 127 | F91: 127
C92: SAN LUIS | E92: 115 | F92: 115
B93: Total I.E SAN LUIS | E93: 423 | F93: 423
A94: Total BELÉN DE LOS ANDAQUIES | E94: 3148 | F94: 3148
A95: CARTAGENA DEL CHAIRÁ | B95: I. E. R. LA ESMERALDA | C95: BANDERAS | E95: 18 | F95: 18
C96: CAMICAYA ALTO | E96: 13 | F96: 13
C97: CAMICAYA MEDIO | E97: 24 | F97: 24
C98: COMUNEROS | E98: 38 | F98: 38
C99: EL BRILLANTE | E99: 15 | F99: 15
C100: GUADUALOSA | E100: 22 | F100: 22
C101: LA ARGENTINA | E101: 11 | F101: 11
C102: LA MACARENA | E102: 28 | F102: 28
C103: LA URIBE | E103: 28 | F103: 28
C104: LA ESMERALDA | E104: 53 | F104: 53
C105: LA LIBERTAD | E105: 29 | F105: 29
C106: LA ORQUIDIA | E106: 14 | F106: 14
C107: MIRAFLORES DEL SUNCILLAS | E107: 13 | F107: 13
C108: PATIO BONITO | E108: 25 | F108: 25
C109: VILLA COLOMBIA | E109: 46 | F109: 46
B110: Total I. E. R. LA ESMERALDA | E110: 377 | F110: 377
B111: I. E. R. LOS CRISTALES | C111: ANIBAL NUÑEZ | E111: 47 | F111: 47
C112: EL PROGRESO | E112: 23 | F112: 23
C113: LA FLORIDA # 1 | E113: 62 | F113: 62
C114: LA FLORIDA # 2 | E114: 48 | F114: 48
C115: LLANITOS | E115: 9 | F115: 9
C116: LOS CRISTALES | E116: 171 | F116: 171
C117: MONTEADENTRO | E117: 17 | F117: 17
C118: PEÑAS BLANCAS | E118: 17 | F118: 17
C119: SABALETA ALTA | E119: 18 | F119: 18
C120: VILLANUEVA | E120: 22 | F120: 22
B121: Total I. E. R. LOS CRISTALES | E121: 434 | F121: 434
B122: I. E. R. MONSERRATE | C122: BUENAVISTA | E122: 54 | F122: 54
C123: CAÑO NEGRO | E123: 16 | F123: 16
C124: CAÑO SANTO DOMINGO | E124: 66 | F124: 66
C125: EL CONVENIO | E125: 18 | F125: 18
C126: EL GUAMO | E126: 66 | F126: 66
C127: GABRIEL GARCIA MARQUEZ | E127: 22 | F127: 22
C128: LAS QUILLAS | E128: 20 | F128: 20
C129: MANUELA BELTRAN | E129: 176 | F129: 176
C130: MONSERRATE | E130: 260 | F130: 260
C131: NARANJALES | E131: 53 | F131: 53
C132: SABALETA BAJO CAGUAN | E132: 15 | F132: 15
C133: SANTA ELENA | E133: 41 | F133: 41
C134: SIMON BOLIVAR | E134: 17 | F134: 17
B135: Total I. E. R. MONSERRATE | E135: 824 | F135: 824
B136: I. E. R. PEÑAS COLORADAS | C136: ANIMAS ALTAS | E136: 29 | F136: 29
C137: BELLA LUZ DE LAS ANIMAS | E137: 62 | F137: 62
C138: DOCE DE OCTUBRE | E138: 36 | F138: 36
C139: EL VENADO | E139: 82 | F139: 82
C140: JOSE HILARIO ORTIZ | E140: 21 | F140: 21
C141: JUAN PABLO II | E141: 75 | F141: 75
C142: LAGUNA VERDE | E142: 33 | F142: 33
C143: LOS ANGELES | E143: 28 | F143: 28
B144: Total I. E. R. PEÑAS COLORADAS | E144: 366 | F144: 366
B145: I. E. R. SANTA CRUZ DEL AGUILA | C145: AGUAS CLARAS | E145: 17 | F145: 17
C146: EL AGUILA | E146: 70 | F146: 70
C147: EL RECREO | E147: 14 | F147: 14
C148: EL RECREO ALTO | E148: 42 | F148: 42
C149: FRANCISCO JOSE DE CALDAS | E149: 19 | F149: 19
C150: LAS DELICIAS | E150: 24 | F150: 24
C151: NUEVA FLORESTA | E151: 19 | F151: 19
C152: TIGRERA BAJA | E152: 19 | F152: 19
C153: YAICOGE | E153: 18 | F153: 18
B154: Total I. E. R. SANTA CRUZ DEL AGUILA | E154: 242 | F154: 242
B155: I. E. R. SANTAFE DEL CAGUAN | C155: EL BOLIVAR | E155: 30 | F155: 30
C156: EL DANUBIO | E156: 38 | F156: 38
C157: EL JARDIN | E157: 23 | F157: 23
C158: EL PORE | E158: 36 | F158: 36
C159: EL PORVENIR NO. 3 | E159: 38 | F159: 38
C160: EL RENACER DE ARMERO | E160: 22 | F160: 22
C161: LA PAZ NO. 3 | E161: 57 | F161: 57
C162: LA REDONDA | E162: 44 | F162: 44
C163: PAZ NO. 2 | E163: 52 | F163: 52
C164: SAN ISIDRO | E164: 24 | F164: 24
C165: SANTA FE DEL CAGUAN | E165: 396 | F165: 396
B166: Total I. E. R. SANTAFE DEL CAGUAN | E166: 760 | F166: 760
B167: I.E AGROECOLOGICO AMAZONICO | C167: AGROECOLOGICO | E167: 490 | F167: 490
C168: ATANASIO GIRARDOT | E168: 600 | F168: 600
C169: BUENOS AIRES | E169: 202 | F169: 202
B170: Total I.E AGROECOLOGICO AMAZONICO | E170: 1292 | F170: 1292
B171: I.E EL CHAIRA JOSE MARIA CORDOBA | C171: EL CHAIRA | E171: 730 | F171: 730
C172: JOSE MARIA CORDOBA | E172: 799 | F172: 799
C173: PRIMERO DE AGOSTO | E173: 332 | F173: 332
B174: Total I.E EL CHAIRA JOSE MARIA CORDOBA | E174: 1861 | F174: 1861
B175: I.E. R. DIVINO NIÑO | C175: ALTO BONITO | E175: 10 | F175: 10
C176: BOCANA DEL ANAYA | E176: 23 | F176: 23
C177: CAMPOALEGRE | E177: 15 | F177: 15
C178: DIVINO NIÑO # 2 | E178: 116 | F178: 116
C179: EL RUBI | E179: 14 | F179: 14
C180: FUNDACION | E180: 41 | F180: 41
C181: LAS MERCEDES | E181: 17 | F181: 17
C182: RIO CLARO | E182: 20 | F182: 20
C183: RISARALDA | E183: 16 | F183: 16
C184: SAN ANTONIO DEL HIGUERON | E184: 19 | F184: 19
C185: VISTA HERMOSA | E185: 11 | F185: 11
B186: Total I.E. R. DIVINO NIÑO | E186: 302 | F186: 302
B187: I.E. R. EL EDEN | C187: ALTO ARENOSO | E187: 15 | F187: 15
C188: EL CAIRO | E188: 9 | F188: 9
C189: EL EDEN | E189: 39 | F189: 39
C190: EL TRIUNFO | E190: 7 | F190: 7
C191: LA PRIMAVERA | E191: 85 | F191: 85
C192: LA REFORMA | E192: 52 | F192: 52
C193: LOS ESPEJOS | E193: 65 | F193: 65
C194: TRIUNFO ALTO | E194: 26 | F194: 26
B195: Total I.E. R. EL EDEN | E195: 298 | F195: 298
B196: I.E. R. LA SARDINATA | C196: ALTA SARDINATA | E196: 12 | F196: 12
C197: ANDAKI | E197: 67 | F197: 67
C198: DIVINO NIÑO 1 | E198: 21 | F198: 21
C199: EL PRADO | E199: 25 | F199: 25
C200: EL RETIRO | E200: 20 | F200: 20
C201: LA HOLANDA | E201: 31 | F201: 31
... 1219 more rows

Sheet 0.3
A1: MATRICULA OFICIAL Y PRIVADA POR MUNICIPIO, GENERO Y ZONA
A3: MUNICIPIOS | B3: NO OFICIAL | F3: OFICIAL
B4: URBANA | D4: TOTAL URBANA | E4: TOTAL NO OFICIAL | F4: RURAL | H4: TOTAL RURAL | I4: URBANA | K4: TOTAL URBANA | L4: TOTAL OFICIAL | M4: TOTAL GENERAL
B5: F | C5: M | F5: F | G5: M | I5: F | J5: M
A6: ALBANIA | F6: 262 | G6: 280 | H6: 542 | I6: 332 | J6: 299 | K6: 631 | L6: 1173 | M6: 1173
A7: BELÉN DE LOS ANDAQUIES | F7: 628 | G7: 692 | H7: 1320 | I7: 946 | J7: 882 | K7: 1828 | L7: 3148 | M7: 3148
A8: CARTAGENA DEL CHAIRÁ | F8: 2706 | G8: 3261 | H8: 5967 | I8: 1674 | J8: 1479 | K8: 3153 | L8: 9120 | M8: 9120
A9: CURILLO | F9: 563 | G9: 613 | H9: 1176 | I9: 781 | J9: 772 | K9: 1553 | L9: 2729 | M9: 2729
A10: DONCELLO | B10: 55 | C10: 54 | D10: 109 | E10: 109 | M10: 109
A11: EL DONCELLO | F11: 665 | G11: 934 | H11: 1599 | I11: 2040 | J11: 1849 | K11: 3889 | L11: 5488 | M11: 5488
A12: EL PAUJIL | F12: 572 | G12: 617 | H12: 1189 | I12: 1263 | J12: 1236 | K12: 2499 | L12: 3688 | M12: 3688
A13: LA MONTAÑITA | F13: 1858 | G13: 2129 | H13: 3987 | I13: 402 | J13: 397 | K13: 799 | L13: 4786 | M13: 4786
A14: MILÁN | F14: 1207 | G14: 1483 | H14: 2690 | I14: 177 | J14: 189 | K14: 366 | L14: 3056 | M14: 3056
A15: MORELIA | F15: 206 | G15: 238 | H15: 444 | I15: 329 | J15: 299 | K15: 628 | L15: 1072 | M15: 1072
A16: PUERTO RICO | F16: 2037 | G16: 2401 | H16: 4438 | I16: 2170 | J16: 2150 | K16: 4320 | L16: 8758 | M16: 8758
A17: SAN JOSÉ DEL FRAGUA | F17: 1179 | G17: 1362 | H17: 2541 | I17: 925 | J17: 851 | K17: 1776 | L17: 4317 | M17: 4317
A18: SAN VICENTE DEL CAGUÁN | B18: 370 | C18: 412 | D18: 782 | E18: 782 | F18: 4559 | G18: 5063 | H18: 9622 | I18: 3226 | J18: 2885 | K18: 6111 | L18: 15733 | M18: 16515
A19: SOLANO | F19: 1255 | G19: 1492 | H19: 2747 | I19: 555 | J19: 589 | K19: 1144 | L19: 3891 | M19: 3891
A20: SOLITA | F20: 471 | G20: 586 | H20: 1057 | I20: 699 | J20: 643 | K20: 1342 | L20: 2399 | M20: 2399
A21: VALPARAÍSO | F21: 720 | G21: 760 | H21: 1480 | I21: 407 | J21: 427 | K21: 834 | L21: 2314 | M21: 2314
A22: TOTAL GENERAL | B22: 425 | C22: 466 | D22: 891 | E22: 891 | F22: 18888 | G22: 21911 | H22: 40799 | I22: 15926 | J22: 14947 | K22: 30873 | L22: 71672 | M22: 72563
A23: ='0'!B21 -> Fuente: SIMAT Corte 30 de Septiembre 2012
A27: ADIELA MOLINA CUTIVA | K27: FENER DE LOS RIOS BARRERA
A28: Secretaria de Educación | K28: Jefe División de Cobertura
A30: Elaboró: Luz Angela Medina, Jefe de Permanencia

Sheet 0.4
A1: MATRICULA OFICIAL Y PRIVADA POR MUNICIPIO, E.E, GENERO Y ZONA
A3: MUNICIPIO | B3: INSTITUCION | C3: NO OFICIAL | F3: TOTAL NO OFICIAL | G3: OFICIAL | M3: TOTAL OFICIAL | N3: TOTAL GENERAL
C4: URBANA | E4: Total URBANA | G4: RURAL | I4: TOTAL RURAL | J4: URBANA | L4: TOTAL URBANA
C5: F | D5: M | G5: F | H5: M | J5: F | K5: M
A6: ALBANIA | B6: C.E LA CHORROSA | G6: 92 | H6: 96 | I6: 188 | M6: 188 | N6: 188
B7: C.E VERSALLES | G7: 46 | H7: 40 | I7: 86 | M7: 86 | N7: 86
B8: I.E ALBANIA | J8: 332 | K8: 299 | L8: 631 | M8: 631 | N8: 631
B9: I.E EL DORADO | G9: 124 | H9: 144 | I9: 268 | M9: 268 | N9: 268
A10: Total ALBANIA | G10: 262 | H10: 280 | I10: 542 | J10: 332 | K10: 299 | L10: 631 | M10: 1173 | N10: 1173
A11: BELÉN DE LOS ANDAQUIES | B11: C.E ALTO SARABANDO | G11: 47 | H11: 73 | I11: 120 | M11: 120 | N11: 120
B12: C.E EL CHOCHO | G12: 98 | H12: 58 | I12: 156 | M12: 156 | N12: 156
B13: I. E. R. PUEBLO NUEVO | G13: 115 | H13: 135 | I13: 250 | M13: 250 | N13: 250
B14: I.E AGROTECNICO MIXTO | J14: 389 | K14: 329 | L14: 718 | M14: 718 | N14: 718
B15: I.E GABRIELA MISTRAL | J15: 557 | K15: 553 | L15: 1110 | M15: 1110 | N15: 1110
B16: I.E RURAL EL PORTAL LA MONO | G16: 165 | H16: 206 | I16: 371 | M16: 371 | N16: 371
B17: I.E SAN LUIS | G17: 203 | H17: 220 | I17: 423 | M17: 423 | N17: 423
A18: Total BELÉN DE LOS ANDAQUIES | G18: 628 | H18: 692 | I18: 1320 | J18: 946 | K18: 882 | L18: 1828 | M18: 3148 | N18: 3148
A19: CARTAGENA DEL CHAIRÁ | B19: I. E. R. LA ESMERALDA | G19: 193 | H19: 184 | I19: 377 | M19: 377 | N19: 377
B20: I. E. R. LOS CRISTALES | G20: 206 | H20: 228 | I20: 434 | M20: 434 | N20: 434
B21: I. E. R. MONSERRATE | G21: 348 | H21: 476 | I21: 824 | M21: 824 | N21: 824
B22: I. E. R. PEÑAS COLORADAS | G22: 157 | H22: 209 | I22: 366 | M22: 366 | N22: 366
B23: I. E. R. SANTA CRUZ DEL AGUILA | G23: 100 | H23: 142 | I23: 242 | M23: 242 | N23: 242
B24: I. E. R. SANTAFE DEL CAGUAN | G24: 335 | H24: 425 | I24: 760 | M24: 760 | N24: 760
B25: I.E AGROECOLOGICO AMAZONICO | J25: 649 | K25: 643 | L25: 1292 | M25: 1292 | N25: 1292
B26: I.E EL CHAIRA JOSE MARIA CORDOBA | J26: 1025 | K26: 836 | L26: 1861 | M26: 1861 | N26: 1861
B27: I.E. R. DIVINO NIÑO | G27: 149 | H27: 153 | I27: 302 | M27: 302 | N27: 302
B28: I.E. R. EL EDEN | G28: 144 | H28: 154 | I28: 298 | M28: 298 | N28: 298
B29: I.E. R. LA SARDINATA | G29: 166 | H29: 185 | I29: 351 | M29: 351 | N29: 351
B30: I.E. R. SAN PEDRO CLAVER | G30: 248 | H30: 243 | I30: 491 | M30: 491 | N30: 491
B31: I.E. R. TEUSAQUILLO | G31: 158 | H31: 236 | I31: 394 | M31: 394 | N31: 394
B32: I.E. R. VILLALUZ | G32: 266 | H32: 331 | I32: 597 | M32: 597 | N32: 597
B33: I.E.R JOSE ANTONIO GALAN | G33: 236 | H33: 295 | I33: 531 | M33: 531 | N33: 531
A34: Total CARTAGENA DEL CHAIRÁ | G34: 2706 | H34: 3261 | I34: 5967 | J34: 1674 | K34: 1479 | L34: 3153 | M34: 9120 | N34: 9120
A35: CURILLO | B35: C.E. EL LIBERTADOR | G35: 161 | H35: 149 | I35: 310 | M35: 310 | N35: 310
B36: C.E. LA NOVIA | G36: 158 | H36: 191 | I36: 349 | M36: 349 | N36: 349
B37: I.E ANGEL CUNIBERTI | J37: 781 | K37: 772 | L37: 1553 | M37: 1553 | N37: 1553
B38: I.E. R. HORIZONTE | G38: 89 | H38: 101 | I38: 190 | M38: 190 | N38: 190
B39: I.E. R. SALAMINA | G39: 155 | H39: 172 | I39: 327 | M39: 327 | N39: 327
A40: Total CURILLO | G40: 563 | H40: 613 | I40: 1176 | J40: 781 | K40: 772 | L40: 1553 | M40: 2729 | N40: 2729
A41: DONCELLO | B41: LICEO INFANTIL WINNIE POOH | C41: 55 | D41: 54 | E41: 109 | F41: 109 | N41: 109
A42: Total DONCELLO | C42: 55 | D42: 54 | E42: 109 | F42: 109 | N42: 109
A43: EL DONCELLO | B43: C.E EL QUEBRADON | G43: 51 | H43: 93 | I43: 144 | M43: 144 | N43: 144
B44: I.E CORAZON INMACULADO DE MARIA | J44: 488 | K44: 411 | L44: 899 | M44: 899 | N44: 899
B45: I.E JORGE ABEL MOLINA | J45: 369 | K45: 337 | L45: 706 | M45: 706 | N45: 706
B46: I.E R. PUERTO MANRIQUE | G46: 84 | H46: 116 | I46: 200 | M46: 200 | N46: 200
B47: I.E R. SIMON BOLIVAR | G47: 145 | H47: 234 | I47: 379 | M47: 379 | N47: 379
B48: I.E RUFINO QUICHOYA | J48: 769 | K48: 679 | L48: 1448 | M48: 1448 | N48: 1448
B49: I.E. MARCO FIDEL SUAREZ | J49: 414 | K49: 422 | L49: 836 | M49: 836 | N49: 836
B50: I.E. R. BERLIN | G50: 200 | H50: 234 | I50: 434 | M50: 434 | N50: 434
B51: I.E. R. LA CEIBA | G51: 105 | H51: 149 | I51: 254 | M51: 254 | N51: 254
B52: I.E. R. SAN JUDAS TADEO | G52: 80 | H52: 108 | I52: 188 | M52: 188 | N52: 188
A53: Total EL DONCELLO | G53: 665 | H53: 934 | I53: 1599 | J53: 2040 | K53: 1849 | L53: 3889 | M53: 5488 | N53: 5488
A54: EL PAUJIL | B54: C.E NIÑA DEL CARMEN | G54: 87 | H54: 59 | I54: 146 | M54: 146 | N54: 146
B55: C.E R. LA PROVIDENCIA | G55: 66 | H55: 79 | I55: 145 | M55: 145 | N55: 145
B56: C.E SANTA TERESA | G56: 105 | H56: 141 | I56: 246 | M56: 246 | N56: 246
B57: I.E AGROECOLOGICO AMAZONICO | J57: 908 | K57: 912 | L57: 1820 | M57: 1820 | N57: 1820
B58: I.E NUESTRA SE¿ORA DE LAS MERCEDES | J58: 355 | K58: 324 | L58: 679 | M58: 679 | N58: 679
B59: I.E R. LA CONCORDIA | G59: 98 | H59: 116 | I59: 214 | M59: 214 | N59: 214
B60: I.E R. RAFAEL URIBE URIBE | G60: 105 | H60: 111 | I60: 216 | M60: 216 | N60: 216
B61: I.E. R. BOLIVIA | G61: 111 | H61: 111 | I61: 222 | M61: 222 | N61: 222
A62: Total EL PAUJIL | G62: 572 | H62: 617 | I62: 1189 | J62: 1263 | K62: 1236 | L62: 2499 | M62: 3688 | N62: 3688
A63: LA MONTAÑITA | B63: C.E BALCONES | G63: 59 | H63: 72 | I63: 131 | M63: 131 | N63: 131
B64: C.E EL CEDRO | G64: 67 | H64: 84 | I64: 151 | M64: 151 | N64: 151
B65: C.E LA ARGENTINA | G65: 90 | H65: 128 | I65: 218 | M65: 218 | N65: 218
B66: C.E. EL DIVISO | G66: 147 | H66: 173 | I66: 320 | M66: 320 | N66: 320
B67: C.E. EL JARDIN | G67: 130 | H67: 133 | I67: 263 | M67: 263 | N67: 263
B68: C.E. GAITANIA | G68: 82 | H68: 92 | I68: 174 | M68: 174 | N68: 174
B69: C.E. LOS ALPINOS | G69: 52 | H69: 64 | I69: 116 | M69: 116 | N69: 116
B70: I.E LA ESTRELLA | G70: 67 | H70: 75 | I70: 142 | M70: 142 | N70: 142
B71: I.E NUESTRA SEÑORA DEL PERPETUO SOCORRO | J71: 402 | K71: 397 | L71: 799 | M71: 799 | N71: 799
B72: I.E R. MATEGUADUA | G72: 77 | H72: 89 | I72: 166 | M72: 166 | N72: 166
B73: I.E RURAL SABIO CALDAS | G73: 233 | H73: 238 | I73: 471 | M73: 471 | N73: 471
B74: I.E. R. AGRO NUÑEZ | G74: 180 | H74: 215 | I74: 395 | M74: 395 | N74: 395
B75: I.E. R. BRISAS DE SAN ISIDRO | G75: 151 | H75: 160 | I75: 311 | M75: 311 | N75: 311
B76: I.E. R. JOSE HILARIO LOPEZ | G76: 89 | H76: 127 | I76: 216 | M76: 216 | N76: 216
B77: I.E. R. PALMA ARRIBA | G77: 90 | H77: 109 | I77: 199 | M77: 199 | N77: 199
B78: I.E. R. REINA BAJA | G78: 95 | H78: 106 | I78: 201 | M78: 201 | N78: 201
B79: I.E.R SIMON BOLIVAR | G79: 249 | H79: 264 | I79: 513 | M79: 513 | N79: 513
A80: Total LA MONTAÑITA | G80: 1858 | H80: 2129 | I80: 3987 | J80: 402 | K80: 397 | L80: 799 | M80: 4786 | N80: 4786
A81: MILÁN | B81: C.E EL DIAMANTE (MIRAVALLE) | G81: 100 | H81: 129 | I81: 229 | M81: 229 | N81: 229
B82: C.E. GRANARIO | G82: 86 | H82: 102 | I82: 188 | M82: 188 | N82: 188
B83: C.E. LA ANGUILLA | G83: 124 | H83: 147 | I83: 271 | M83: 271 | N83: 271
B84: I.E MARCO FIDEL SUAREZ | J84: 177 | K84: 189 | L84: 366 | M84: 366 | N84: 366
B85: I.E. R. LA FLORIDA | G85: 169 | H85: 203 | I85: 372 | M85: 372 | N85: 372
B86: I.E.R ANGEL RICARDO ACOSTA | G86: 246 | H86: 288 | I86: 534 | M86: 534 | N86: 534
B87: I.E.R LA RASTRA | G87: 106 | H87: 113 | I87: 219 | M87: 219 | N87: 219
B88: I.E.R. ILUSION MATICURU | G88: 158 | H88: 208 | I88: 366 | M88: 366 | N88: 366
B89: I.E.R. MAMA BWE REOJACHE | G89: 218 | H89: 293 | I89: 511 | M89: 511 | N89: 511
A90: Total MILÁN | G90: 1207 | H90: 1483 | I90: 2690 | J90: 177 | K90: 189 | L90: 366 | M90: 3056 | N90: 3056
A91: MORELIA | B91: C.E PALMARITO | G91: 80 | H91: 87 | I91: 167 | M91: 167 | N91: 167
B92: I.E CERVANTES | J92: 329 | K92: 299 | L92: 628 | M92: 628 | N92: 628
B93: I.E R. JUAN XXIII | G93: 126 | H93: 151 | I93: 277 | M93: 277 | N93: 277
A94: Total MORELIA | G94: 206 | H94: 238 | I94: 444 | J94: 329 | K94: 299 | L94: 628 | M94: 1072 | N94: 1072
A95: PUERTO RICO | B95: C.E EL AGUILA | G95: 92 | H95: 85 | I95: 177 | M95: 177 | N95: 177
B96: C.E LA FLORESTA # 5 | G96: 77 | H96: 72 | I96: 149 | M96: 149 | N96: 149
B97: C.E. CAMPO HERMOSO | G97: 103 | H97: 119 | I97: 222 | M97: 222 | N97: 222
B98: C.E. EL CARMELO | G98: 128 | H98: 163 | I98: 291 | M98: 291 | N98: 291
B99: C.E. LOMA ALTA | G99: 135 | H99: 186 | I99: 321 | M99: 321 | N99: 321
B100: I.E ACEVEDO Y GOMEZ | J100: 982 | K100: 1047 | L100: 2029 | M100: 2029 | N100: 2029
B101: I.E R. CENTRO INDIGENA | G101: 91 | H101: 87 | I101: 178 | M101: 178 | N101: 178
B102: I.E RURAL RIO NEGRO | G102: 221 | H102: 241 | I102: 462 | M102: 462 | N102: 462
B103: I.E SAGRADOS CORAZONES | J103: 1188 | K103: 1103 | L103: 2291 | M103: 2291 | N103: 2291
B104: I.E. R. VILLA DEL RIO | G104: 191 | H104: 172 | I104: 363 | M104: 363 | N104: 363
B105: I.E. R. EL LOBO | G105: 168 | H105: 194 | I105: 362 | M105: 362 | N105: 362
B106: I.E. R. JORGE ELIECER GAITAN | G106: 175 | H106: 232 | I106: 407 | M106: 407 | N106: 407
B107: I.E. R. LA AGUILILLA | G107: 229 | H107: 272 | I107: 501 | M107: 501 | N107: 501
B108: I.E. R. LA ESMERALDA | G108: 243 | H108: 307 | I108: 550 | M108: 550 | N108: 550
B109: I.E. R. SANTANA RAMOS | G109: 184 | H109: 271 | I109: 455 | M109: 455 | N109: 455
A110: Total PUERTO RICO | G110: 2037 | H110: 2401 | I110: 4438 | J110: 2170 | K110: 2150 | L110: 4320 | M110: 8758 | N110: 8758
A111: SAN JOSÉ DEL FRAGUA | B111: I.E DON QUIJOTE | J111: 539 | K111: 440 | L111: 979 | M111: 979 | N111: 979
B112: I.E PARROQUIAL | J112: 386 | K112: 411 | L112: 797 | M112: 797 | N112: 797
B113: I.E. R. LA GALLINETA | G113: 119 | H113: 173 | I113: 292 | M113: 292 | N113: 292
B114: I.E. R. MARIA AUXILIADORA | G114: 83 | H114: 84 | I114: 167 | M114: 167 | N114: 167
B115: I.E. R. PLATANILLO | G115: 209 | H115: 248 | I115: 457 | M115: 457 | N115: 457
B116: I.E. RURAL LAS LAJAS | G116: 342 | H116: 359 | I116: 701 | M116: 701 | N116: 701
B117: I.E.R. DIVINO NIÑO | G117: 368 | H117: 413 | I117: 781 | M117: 781 | N117: 781
B118: INST INGA YACHAICURY | G118: 58 | H118: 85 | I118: 143 | M118: 143 | N118: 143
A119: Total SAN JOSÉ DEL FRAGUA | G119: 1179 | H119: 1362 | I119: 2541 | J119: 925 | K119: 851 | L119: 1776 | M119: 4317 | N119: 4317
A120: SAN VICENTE DEL CAGUÁN | B120: C.E. CRISTO REY (ANTONIO NARI¿O) | G120: 185 | H120: 199 | I120: 384 | M120: 384 | N120: 384
B121: C.E. GIBRALTAR | G121: 49 | H121: 50 | I121: 99 | M121: 99 | N121: 99
B122: C.E. SANTA ROSA | G122: 49 | H122: 67 | I122: 116 | M122: 116 | N122: 116
B123: CIUDADELA JUVENIL AMAZONICA DON BOSCO | C123: 9 | D123: 17 | E123: 26 | F123: 26 | N123: 26
B124: COLEGIO BASICO EL BERLIN | C124: 45 | D124: 92 | E124: 137 | F124: 137 | N124: 137
B125: I. E. R. EL RUBI | G125: 91 | H125: 89 | I125: 180 | M125: 180 | N125: 180
B126: I. E. R. LOS FUNDADORES | G126: 301 | H126: 318 | I126: 619 | M126: 619 | N126: 619
B127: I. E. R. NUEVO HORIZONTE | G127: 76 | H127: 102 | I127: 178 | M127: 178 | N127: 178
B128: I.E DANTE ALIGHIERI | J128: 1059 | K128: 961 | L128: 2020 | M128: 2020 | N128: 2020
B129: I.E DOMINGO SAVIO | J129: 524 | K129: 464 | L129: 988 | M129: 988 | N129: 988
B130: I.E PROMOCION SOCIAL | J130: 1076 | K130: 893 | L130: 1969 | M130: 1969 | N130: 1969
B131: I.E VERDE AMAZONICO | J131: 567 | K131: 567 | L131: 1134 | M131: 1134 | N131: 1134
B132: I.E. R. ALTO QUEBRADON | G132: 104 | H132: 129 | I132: 233 | M132: 233 | N132: 233
B133: I.E. R. BRISAS DEL LOSADA | G133: 77 | H133: 95 | I133: 172 | M133: 172 | N133: 172
B134: I.E. R. CRISTALINA TRONCALES | G134: 178 | H134: 196 | I134: 374 | M134: 374 | N134: 374
B135: I.E. R. LA SOMBRA | G135: 230 | H135: 268 | I135: 498 | M135: 498 | N135: 498
B136: I.E. R. LA UNION | G136: 122 | H136: 145 | I136: 267 | M136: 267 | N136: 267
B137: I.E. R. LOS POZOS | G137: 237 | H137: 282 | I137: 519 | M137: 519 | N137: 519
B138: I.E. R. PLAYA RICA | G138: 104 | H138: 125 | I138: 229 | M138: 229 | N138: 229
B139: I.E. R. SAN JUAN DEL LOSADA | G139: 244 | H139: 252 | I139: 496 | M139: 496 | N139: 496
B140: I.E. R. SANTO DOMINGO SAVIO | G140: 80 | H140: 100 | I140: 180 | M140: 180 | N140: 180
B141: I.E.R GUILLERMO RIOS | G141: 185 | H141: 175 | I141: 360 | M141: 360 | N141: 360
B142: I.E.R. ARENOSO | G142: 254 | H142: 291 | I142: 545 | M142: 545 | N142: 545
B143: I.E.R. BOCANA POSETAS | G143: 98 | H143: 86 | I143: 184 | M143: 184 | N143: 184
B144: I.E.R. CAMPO HERMOSO | G144: 371 | H144: 383 | I144: 754 | M144: 754 | N144: 754
B145: I.E.R. CRISTALINA DEL LOSADA | G145: 355 | H145: 354 | I145: 709 | M145: 709 | N145: 709
B146: I.E.R. GUAYABAL | G146: 188 | H146: 181 | I146: 369 | M146: 369 | N146: 369
B147: I.E.R. LA INMACULADA | G147: 243 | H147: 315 | I147: 558 | M147: 558 | N147: 558
B148: I.E.R. LA SAMARIA | G148: 207 | H148: 283 | I148: 490 | M148: 490 | N148: 490
B149: I.E.R. LOS ANDES | G149: 132 | H149: 115 | I149: 247 | M149: 247 | N149: 247
B150: I.E.R. PUERTO AMOR | G150: 176 | H150: 187 | I150: 363 | M150: 363 | N150: 363
B151: I.E.R. SAN JOSE DE CAQUETANIA | G151: 91 | H151: 118 | I151: 209 | M151: 209 | N151: 209
B152: I.E.R. VILLA CARMONA | G152: 132 | H152: 158 | I152: 290 | M152: 290 | N152: 290
B153: IDEHA | C153: 58 | D153: 62 | E153: 120 | F153: 120 | N153: 120
B154: INST FRANCISCO DE ASIS | C154: 139 | D154: 132 | E154: 271 | F154: 271 | N154: 271
B155: LICEO MODERNO INFANTIL | C155: 119 | D155: 109 | E155: 228 | F155: 228 | N155: 228
A156: Total SAN VICENTE DEL CAGUÁN | C156: 370 | D156: 412 | E156: 782 | F156: 782 | G156: 4559 | H156: 5063 | I156: 9622 | J156: 3226 | K156: 2885 | L156: 6111 | M156: 15733 | N156: 16515
A157: SOLANO | B157: C.E. CAMPOALEGRE | G157: 147 | H157: 160 | I157: 307 | M157: 307 | N157: 307
B158: C.E. EL DANUBIO | G158: 128 | H158: 203 | I158: 331 | M158: 331 | N158: 331
B159: C.E. LA CABAÑITA | G159: 92 | H159: 99 | I159: 191 | M159: 191 | N159: 191
B160: C.E. LAS MERCEDES | G160: 106 | H160: 121 | I160: 227 | M160: 227 | N160: 227
B161: C.E. MONONGUETE | G161: 237 | H161: 269 | I161: 506 | M161: 506 | N161: 506
B162: C.E. PEÑAS BLANCAS | G162: 126 | H162: 159 | I162: 285 | M162: 285 | N162: 285
B163: C.E. PUERTO TEJADA | G163: 189 | H163: 250 | I163: 439 | M163: 439 | N163: 439
B164: I.E CAMPO ELIAS MARULANDA | J164: 555 | K164: 589 | L164: 1144 | M164: 1144 | N164: 1144
B165: I.E.R. INDIGENA COEMANI FORTUNATO REALLY | G165: 230 | H165: 231 | I165: 461 | M165: 461 | N165: 461
A166: Total SOLANO | G166: 1255 | H166: 1492 | I166: 2747 | J166: 555 | K166: 589 | L166: 1144 | M166: 3891 | N166: 3891
A167: SOLITA | B167: C.E CAMPOLEJANO | G167: 109 | H167: 145 | I167: 254 | M167: 254 | N167: 254
B168: C.E. AGUA BLANCA CUZUMBE | G168: 151 | H168: 180 | I168: 331 | M168: 331 | N168: 331
B169: C.E. CHONTILLOSA MEDIO | G169: 211 | H169: 261 | I169: 472 | M169: 472 | N169: 472
B170: I.E INTERNADO RURAL SOLITA | J170: 699 | K170: 643 | L170: 1342 | M170: 1342 | N170: 1342
A171: Total SOLITA | G171: 471 | H171: 586 | I171: 1057 | J171: 699 | K171: 643 | L171: 1342 | M171: 2399 | N171: 2399
A172: VALPARAÍSO | B172: C.E LA RICO KM 30 | G172: 98 | H172: 107 | I172: 205 | M172: 205 | N172: 205
B173: C.E. LA MUÑOZ | G173: 149 | H173: 151 | I173: 300 | M173: 300 | N173: 300
B174: C.E. MIRAVALLE SANTROPEL | G174: 76 | H174: 85 | I174: 161 | M174: 161 | N174: 161
B175: C.E. NIEVES ARRIBA | G175: 114 | H175: 113 | I175: 227 | M175: 227 | N175: 227
B176: C.E. PLAYA RICA | G176: 128 | H176: 143 | I176: 271 | M176: 271 | N176: 271
B177: C.E. SANTIAGO DE LA SELVA | G177: 155 | H177: 161 | I177: 316 | M177: 316 | N177: 316
B178: I.E VALPARAISO | J178: 407 | K178: 427 | L178: 834 | M178: 834 | N178: 834
A179: Total VALPARAÍSO | G179: 720 | H179: 760 | I179: 1480 | J179: 407 | K179: 427 | L179: 834 | M179: 2314 | N179: 2314
A180: TOTAL GENERAL | C180: 425 | D180: 466 | E180: 891 | F180: 891 | G180: 18888 | H180: 21911 | I180: 40799 | J180: 15926 | K180: 14947 | L180: 30873 | M180: 71672 | N180: 72563
A181: ='0'!B21 -> Fuente: SIMAT Corte 30 de Septiembre 2012
A186: ADIELA MOLINA CUTIVA | K186: FENER DE LOS RIOS BARRERA
A187: Secretaria de Educación | K187: Jefe División de Cobertura
A189: Elaboró: Luz Angela Medina, Jefe de Permanencia

Sheet 1
A1: MATRICULA OFICIAL POR MUNICIPIO, NIVEL, ZONA Y GENERO
A3: ZONA URBANA
A4: MUNICIPIO | B4: FEMENINO | H4: MASCULINO | N4: TOTAL ZONA
B5: PREESCOLAR | C5: PRIMARIA | D5: SECUNDARIA | E5: MEDIA | F5: CICLOS | G5: TOTAL | H5: PREESCOLAR | I5: PRIMARIA | J5: SECUNDARIA | K5: MEDIA | L5: CICLOS | M5: TOTAL
A6: ALBANIA | B6: 27 | C6: 127 | D6: 131 | E6: 47 | G6: =SUM(B6:F6) -> 332 | H6: 23 | I6: 113 | J6: 124 | K6: 39 | M6: =SUM(H6:L6) -> 299 | N6: =+G6+M6 -> 631
A7: BELEN | B7: 77 | C7: 395 | D7: 283 | E7: 104 | F7: 87 | G7: =SUM(B7:F7) -> 946 | H7: 77 | I7: 382 | J7: 278 | K7: 66 | L7: 79 | M7: =SUM(H7:L7) -> 882 | N7: =+G7+M7 -> 1,828
A8: CARTAGENA | B8: 134 | C8: 833 | D8: 483 | E8: 135 | F8: 89 | G8: 1,674 | H8: 113 | I8: 810 | J8: 389 | K8: 101 | L8: 66 | M8: 1,479 | N8: 3,153
A9: CURILLO | B9: 54 | C9: 314 | D9: 277 | E9: 91 | F9: 45 | G9: 781 | H9: 45 | I9: 356 | J9: 260 | K9: 70 | L9: 41 | M9: 772 | N9: 1,553
A10: EL DONCELLO | B10: 154 | C10: 754 | D10: 582 | E10: 224 | F10: 326 | G10: 2,040 | H10: 153 | I10: 762 | J10: 520 | K10: 186 | L10: 228 | M10: 1,849 | N10: 3,889
A11: EL PAUJIL | B11: 85 | C11: 487 | D11: 377 | E11: 126 | F11: 188 | G11: 1,263 | H11: 84 | I11: 519 | J11: 356 | K11: 127 | L11: 150 | M11: 1,236 | N11: 2,499
A12: LA MONTAÑITA | B12: 29 | C12: 129 | D12: 121 | E12: 66 | F12: 57 | G12: 402 | H12: 25 | I12: 153 | J12: 126 | K12: 52 | L12: 41 | M12: 397 | N12: 799
A13: MILAN | B13: 10 | C13: 76 | D13: 66 | E13: 16 | F13: 9 | G13: 177 | H13: 8 | I13: 88 | J13: 66 | K13: 23 | L13: 4 | M13: 189 | N13: 366
A14: MORELIA | B14: 17 | C14: 129 | D14: 100 | E14: 26 | F14: 57 | G14: 329 | H14: 24 | I14: 124 | J14: 72 | K14: 28 | L14: 51 | M14: 299 | N14: 628
A15: PUERTO RICO | B15: 128 | C15: 840 | D15: 696 | E15: 237 | F15: 269 | G15: 2,170 | H15: 144 | I15: 908 | J15: 680 | K15: 220 | L15: 198 | M15: 2,150 | N15: 4,320
A16: SAN JOSE | B16: 60 | C16: 346 | D16: 288 | E16: 95 | F16: 136 | G16: 925 | H16: 53 | I16: 333 | J16: 242 | K16: 77 | L16: 146 | M16: 851 | N16: 1,776
A17: SAN VICENTE | B17: 250 | C17: 1,373 | D17: 1,025 | E17: 295 | F17: 283 | G17: 3,226 | H17: 253 | I17: 1,416 | J17: 828 | K17: 215 | L17: 173 | M17: 2,885 | N17: 6,111
A18: SOLANO | B18: 59 | C18: 250 | D18: 165 | E18: 36 | F18: 45 | G18: 555 | H18: 62 | I18: 270 | J18: 171 | K18: 30 | L18: 56 | M18: 589 | N18: 1,144
A19: SOLITA | B19: 36 | C19: 314 | D19: 200 | E19: 44 | F19: 105 | G19: 699 | H19: 36 | I19: 308 | J19: 184 | K19: 63 | L19: 52 | M19: 643 | N19: 1,342
A20: VALPARAISO | B20: 21 | C20: 162 | D20: 146 | E20: 39 | F20: 39 | G20: 407 | H20: 28 | I20: 178 | J20: 141 | K20: 40 | L20: 40 | M20: 427 | N20: 834
A21: TOTAL | B21: =SUM(B6:B20) -> 1,141 | C21: =SUM(C6:C20) -> 6,529 | D21: 4,940 | E21: 1,581 | F21: 1,735 | G21: 15,926 | H21: 1,128 | I21: 6,720 | J21: 4,437 | K21: 1,337 | L21: 1,325 | M21: 14,947 | N21: 30,873
A22: ='0'!B21 -> Fuente: SIMAT Corte 30 de Septiembre 2012
A25: ADIELA MOLINA CUTIVA | E25: FENER DE LOS RIOS BARRERA
A26: Secretaria de Eduación | E26: Jefe Oficina de Cobertura
A28: Elaboró Gustavo Carvajal Peralta
A32: ZONA RURAL
A33: MUNICIPIO | B33: FEMENINO | H33: MASCULINO | N33: TOTAL ZONA
B34: PREESCOLAR | C34: PRIMARIA | D34: SECUNDARIA | E34: MEDIA | F34: CICLOS | G34: TOTAL | H34: PREESCOLAR | I34: PRIMARIA | J34: SECUNDARIA | K34: MEDIA | L34: CICLOS | M34: TOTAL
A35: ALBANIA | B35: 38 | C35: 173 | D35: 38 | E35: 13 | F35: 16 | G35: =SUM(B35:F35) -> 278 | H35: 40 | I35: 177 | J35: 52 | K35: 12 | L35: 5 | M35: =SUM(H35:L35) -> 286 | N35: =+G35+M35 -> 564
A36: BELEN | B36: 69 | C36: 354 | D36: 100 | E36: 23 | F36: 89 | G36: =SUM(B36:F36) -> 635 | H36: 58 | I36: 414 | J36: 128 | K36: 25 | L36: 77 | M36: =SUM(H36:L36) -> 702 | N36: =+G36+M36 -> 1,337
A37: CARTAGENA | B37: 218 | C37: 1,707 | D37: 609 | E37: 36 | F37: 188 | G37: 2,758 | H37: 224 | I37: 2,132 | J37: 700 | K37: 29 | L37: 231 | M37: 3,316 | N37: 6,074
A38: CURILLO | B38: 45 | C38: 290 | D38: 95 | F38: 127 | G38: 557 | H38: 43 | I38: 341 | J38: 116 | L38: 115 | M38: 615 | N38: 1,172
A39: EL DONCELLO | B39: 111 | C39: 501 | D39: 306 | E39: 70 | F39: 97 | G39: 1,085 | H39: 126 | I39: 697 | J39: 339 | K39: 89 | L39: 126 | M39: 1,377 | N39: 2,462
A40: EL PAUJIL | B40: 60 | C40: 409 | D40: 76 | F40: 41 | G40: 586 | H40: 76 | I40: 432 | J40: 91 | L40: 47 | M40: 646 | N40: 1,232
A41: LA MONTAÑITA | B41: 154 | C41: 1,125 | D41: 389 | E41: 51 | F41: 148 | G41: 1,867 | H41: 164 | I41: 1,337 | J41: 389 | K41: 64 | L41: 184 | M41: 2,138 | N41: 4,005
A42: MILAN | B42: 100 | C42: 656 | D42: 325 | E42: 48 | F42: 97 | G42: 1,226 | H42: 88 | I42: 818 | J42: 393 | K42: 61 | L42: 128 | M42: 1,488 | N42: 2,714
A43: MORELIA | B43: 9 | C43: 129 | D43: 47 | F43: 23 | G43: 208 | H43: 10 | I43: 151 | J43: 70 | L43: 18 | M43: 249 | N43: 457
A44: PUERTO RICO | B44: 195 | C44: 1,343 | D44: 415 | E44: 42 | F44: 88 | G44: 2,083 | H44: 220 | I44: 1,688 | J44: 429 | K44: 67 | L44: 76 | M44: 2,480 | N44: 4,563
A45: SAN JOSE | B45: 72 | C45: 580 | D45: 317 | E45: 45 | F45: 221 | G45: 1,235 | H45: 68 | I45: 734 | J45: 399 | K45: 49 | L45: 199 | M45: 1,449 | N45: 2,684
A46: SAN VICENTE | B46: 369 | C46: 2,695 | D46: 1,062 | E46: 131 | F46: 382 | G46: 4,639 | H46: 416 | I46: 3,148 | J46: 1,141 | K46: 94 | L46: 314 | M46: 5,113 | N46: 9,752
A47: SOLANO | B47: 98 | C47: 774 | D47: 209 | E47: 17 | F47: 185 | G47: 1,283 | H47: 114 | I47: 944 | J47: 237 | K47: 19 | L47: 197 | M47: 1,511 | N47: 2,794
A48: SOLITA | B48: 31 | C48: 279 | D48: 114 | E48: 19 | F48: 28 | G48: 471 | H48: 31 | I48: 328 | J48: 170 | K48: 18 | L48: 37 | M48: 584 | N48: 1,055
A49: VALPARAISO | B49: 38 | C49: 379 | D49: 201 | E49: 20 | F49: 123 | G49: 761 | H49: 37 | I49: 423 | J49: 220 | K49: 30 | L49: 89 | M49: 799 | N49: 1,560
B50: =SUM(B35:B49) -> 1,607 | C50: =SUM(C35:C49) -> 11,394 | D50: 4,303 | E50: 515 | F50: 1,853 | G50: 19,672 | H50: 1,715 | I50: 13,764 | J50: 4,874 | K50: 557 | L50: 1,843 | M50: 22,753 | N50: 42,425
A51: Fuente: Sistema Información de Matrícula SIMAT A corte 31 agosto 2012
A54: ADIELA MOLINA CUTIVA | E54: FENER DE LOS RIOS BARRERA
A55: Secretaria de Eduación | E55: Jefe Oficina de Cobertura
A57: Elaboró Gustavo Carvajal Peralta

Sheet 1.1
A1: MATRICULA OFICIAL POR MUNICIPIO, ZONA Y NIVELES
A3: MUNCIIPIO | B3: ZONA RURAL | H3: ZONA URBANA | N3: GRAN TOTAL
B4: PREESCOLAR | C4: PRIMARIA | D4: SECUNDARIA | E4: MEDIA | F4: CICLOS | G4: TOTAL MATRICULA | H4: PREESCOLAR | I4: PRIMARIA | J4: SECUNDARIA | K4: MEDIA | L4: CICLOS | M4: TOTAL MATRICULA
A5: ALBANIA | B5: 78 | C5: 348 | D5: 90 | E5: 25 | F5: 1 | G5: 542 | H5: 50 | I5: 240 | J5: 255 | K5: 86 | M5: 631 | N5: 1173
A6: BELEN DE LOS ANDAQUIES | B6: 125 | C6: 756 | D6: 222 | E6: 47 | F6: 170 | G6: 1320 | H6: 154 | I6: 777 | J6: 561 | K6: 170 | L6: 166 | M6: 1828 | N6: 3148
A7: CARTAGENA DEL CHAIRA | B7: 443 | C7: 3800 | D7: 1294 | E7: 65 | F7: 365 | G7: 5967 | H7: 247 | I7: 1643 | J7: 872 | K7: 236 | L7: 155 | M7: 3153 | N7: 9120
A8: CURILLO | B8: 87 | C8: 623 | D8: 209 | F8: 257 | G8: 1176 | H8: 99 | I8: 670 | J8: 537 | K8: 161 | L8: 86 | M8: 1553 | N8: 2729
A9: DONCELLO | B9: 187 | C9: 934 | D9: 336 | E9: 35 | F9: 107 | G9: 1599 | H9: 307 | I9: 1516 | J9: 1102 | K9: 410 | L9: 554 | M9: 3889 | N9: 5488
A10: PAUJIL | B10: 132 | C10: 821 | D10: 148 | F10: 88 | G10: 1189 | H10: 169 | I10: 1006 | J10: 733 | K10: 253 | L10: 338 | M10: 2499 | N10: 3688
A11: MONTAÑITA | B11: 322 | C11: 2444 | D11: 785 | E11: 114 | F11: 322 | G11: 3987 | H11: 54 | I11: 282 | J11: 247 | K11: 118 | L11: 98 | M11: 799 | N11: 4786
A12: MILAN | B12: 191 | C12: 1459 | D12: 712 | E12: 104 | F12: 224 | G12: 2690 | H12: 18 | I12: 164 | J12: 132 | K12: 39 | L12: 13 | M12: 366 | N12: 3056
A13: MORELIA | B13: 16 | C13: 270 | D13: 117 | F13: 41 | G13: 444 | H13: 41 | I13: 253 | J13: 172 | K13: 54 | L13: 108 | M13: 628 | N13: 1072
A14: PUERTO RICO | B14: 398 | C14: 3010 | D14: 806 | E14: 98 | F14: 126 | G14: 4438 | H14: 272 | I14: 1748 | J14: 1376 | K14: 457 | L14: 467 | M14: 4320 | N14: 8758
A15: SAN JOSE DEL FRAGUA | B15: 139 | C15: 1250 | D15: 648 | E15: 87 | F15: 417 | G15: 2541 | H15: 113 | I15: 679 | J15: 530 | K15: 172 | L15: 282 | M15: 1776 | N15: 4317
A16: SAN VICENTE DEL CAGUAN | B16: 790 | C16: 5772 | D16: 2173 | E16: 225 | F16: 662 | G16: 9622 | H16: 503 | I16: 2789 | J16: 1853 | K16: 510 | L16: 456 | M16: 6111 | N16: 15733
A17: SOLANO | B17: 207 | C17: 1702 | D17: 437 | E17: 36 | F17: 365 | G17: 2747 | H17: 121 | I17: 520 | J17: 336 | K17: 66 | L17: 101 | M17: 1144 | N17: 3891
A18: SOLITA | B18: 63 | C18: 610 | D18: 282 | E18: 37 | F18: 65 | G18: 1057 | H18: 72 | I18: 622 | J18: 384 | K18: 107 | L18: 157 | M18: 1342 | N18: 2399
A19: VALPARAISO | B19: 73 | C19: 792 | D19: 411 | E19: 50 | F19: 154 | G19: 1480 | H19: 49 | I19: 340 | J19: 287 | K19: 79 | L19: 79 | M19: 834 | N19: 2314
A20: MATRICULA TOTAL | B20: 3251 | C20: 24591 | D20: 8670 | E20: 923 | F20: 3364 | G20: 40799 | H20: 2269 | I20: 13249 | J20: 9377 | K20: 2918 | L20: 3060 | M20: 30873 | N20: 71672
A21: =INDICE!A9 -> Fuente: SIMAT Corte 30 de Septiembre 2012
A24: ADIELA MOLINA CUTIVA | F24: FENER DE LOS RIOS BARRERA
A25: Secretaria de Eduación | F25: Jefe Oficina de Cobertura
A27: Elaboró Gustavo Carvajal Peralta

Sheet 1.2
A1: MATRICULA OFICIAL POR MUNICIPIO, ESTABLECIMIENTO EDUCATIVO, ZONA Y NIVELES
A3: MUNICIPIO | B3: ESTABLECIMIENTO EDUCATIVO | C3: ZONA RURAL | I3: ZONA URBANA | O3: GRAN TOTAL
C4: PREESCOLAR | D4: PRIMARIA | E4: SECUNDARIA | F4: MEDIA | G4: CICLOS | H4: TOTAL MATRICULA | I4: PREESCOLAR | J4: PRIMARIA | K4: SECUNDARIA | L4: MEDIA | M4: CICLOS | N4: TOTAL MATRICULA
A5: ALBANIA | B5: C.E LA CHORROSA | C5: 32 | D5: 156 | H5: 188 | N5: 0 | O5: 188
B6: C.E VERSALLES | C6: 17 | D6: 55 | E6: 14 | H6: 86 | N6: 0 | O6: 86
B7: I.E ALBANIA | H7: 0 | I7: 50 | J7: 240 | K7: 255 | L7: 86 | N7: 631 | O7: 631
B8: I.E EL DORADO | C8: 29 | D8: 137 | E8: 76 | F8: 25 | G8: 1 | H8: 268 | N8: 0 | O8: 268
B9: TOTAL | C9: 78 | D9: 348 | E9: 90 | F9: 25 | G9: 1 | H9: 542 | I9: 50 | J9: 240 | K9: 255 | L9: 86 | N9: 631 | O9: 1173
A10: BELEN | B10: C.E ALTO SARABANDO | C10: 11 | D10: 86 | E10: 23 | H10: 120 | N10: 0 | O10: 120
B11: C.E EL CHOCHO | C11: 15 | D11: 87 | G11: 54 | H11: 156 | N11: 0 | O11: 156
B12: I. E. R. PUEBLO NUEVO | C12: 23 | D12: 154 | E12: 52 | G12: 21 | H12: 250 | N12: 0 | O12: 250
B13: I.E AGROTECNICO MIXTO | H13: 0 | I13: 71 | J13: 279 | K13: 209 | L13: 44 | M13: 115 | N13: 718 | O13: 718
B14: I.E GABRIELA MISTRAL | H14: 0 | I14: 83 | J14: 498 | K14: 352 | L14: 126 | M14: 51 | N14: 1110 | O14: 1110
B15: I.E RURAL EL PORTAL LA MONO | C15: 29 | D15: 189 | E15: 78 | F15: 24 | G15: 51 | H15: 371 | N15: 0 | O15: 371
B16: I.E SAN LUIS | C16: 47 | D16: 240 | E16: 69 | F16: 23 | G16: 44 | H16: 423 | N16: 0 | O16: 423
B17: TOTAL | C17: 125 | D17: 756 | E17: 222 | F17: 47 | G17: 170 | H17: 1320 | I17: 154 | J17: 777 | K17: 561 | L17: 170 | M17: 166 | N17: 1828 | O17: 3148
A18: CARTAGENA DEL CHAIRA | B18: I. E. R. LA ESMERALDA | C18: 29 | D18: 299 | E18: 49 | H18: 377 | N18: 0 | O18: 377
B19: I. E. R. LOS CRISTALES | C19: 28 | D19: 292 | E19: 113 | G19: 1 | H19: 434 | N19: 0 | O19: 434
B20: I. E. R. MONSERRATE | C20: 41 | D20: 387 | E20: 219 | G20: 177 | H20: 824 | N20: 0 | O20: 824
B21: I. E. R. PEÑAS COLORADAS | C21: 15 | D21: 226 | E21: 82 | G21: 43 | H21: 366 | N21: 0 | O21: 366
B22: I. E. R. SANTA CRUZ DEL AGUILA | C22: 14 | D22: 189 | E22: 39 | H22: 242 | N22: 0 | O22: 242
B23: I. E. R. SANTAFE DEL CAGUAN | C23: 46 | D23: 482 | E23: 200 | F23: 32 | H23: 760 | N23: 0 | O23: 760
B24: I.E AGROECOLOGICO AMAZONICO | H24: 0 | I24: 101 | J24: 801 | K24: 258 | L24: 77 | M24: 55 | N24: 1292 | O24: 1292
B25: I.E EL CHAIRA JOSE MARIA CORDOBA | H25: 0 | I25: 146 | J25: 842 | K25: 614 | L25: 159 | M25: 100 | N25: 1861 | O25: 1861
B26: I.E. R. DIVINO NIÑO | C26: 36 | D26: 189 | E26: 54 | G26: 23 | H26: 302 | N26: 0 | O26: 302
B27: I.E. R. EL EDEN | C27: 34 | D27: 167 | E27: 97 | H27: 298 | N27: 0 | O27: 298
B28: I.E. R. LA SARDINATA | C28: 38 | D28: 287 | E28: 26 | H28: 351 | N28: 0 | O28: 351
B29: I.E. R. SAN PEDRO CLAVER | C29: 33 | D29: 322 | E29: 61 | G29: 75 | H29: 491 | N29: 0 | O29: 491
B30: I.E. R. TEUSAQUILLO | C30: 45 | D30: 275 | E30: 74 | H30: 394 | N30: 0 | O30: 394
B31: I.E. R. VILLALUZ | C31: 64 | D31: 399 | E31: 111 | G31: 23 | H31: 597 | N31: 0 | O31: 597
B32: I.E.R JOSE ANTONIO GALAN | C32: 20 | D32: 286 | E32: 169 | F32: 33 | G32: 23 | H32: 531 | N32: 0 | O32: 531
B33: TOTAL | C33: 443 | D33: 3800 | E33: 1294 | F33: 65 | G33: 365 | H33: 5967 | I33: 247 | J33: 1643 | K33: 872 | L33: 236 | M33: 155 | N33: 3153 | O33: 9120
A34: CURILLO | B34: C.E. EL LIBERTADOR | C34: 27 | D34: 153 | E34: 30 | G34: 100 | H34: 310 | N34: 0 | O34: 310
B35: C.E. LA NOVIA | C35: 34 | D35: 189 | E35: 52 | G35: 74 | H35: 349 | N35: 0 | O35: 349
B36: I.E ANGEL CUNIBERTI | H36: 0 | I36: 99 | J36: 670 | K36: 537 | L36: 161 | M36: 86 | N36: 1553 | O36: 1553
B37: I.E. R. HORIZONTE | C37: 17 | D37: 107 | E37: 41 | G37: 25 | H37: 190 | N37: 0 | O37: 190
B38: I.E. R. SALAMINA | C38: 9 | D38: 174 | E38: 86 | G38: 58 | H38: 327 | N38: 0 | O38: 327
B39: TOTAL | C39: 87 | D39: 623 | E39: 209 | G39: 257 | H39: 1176 | I39: 99 | J39: 670 | K39: 537 | L39: 161 | M39: 86 | N39: 1553 | O39: 2729
A40: DONCELLO | B40: C.E EL QUEBRADON | C40: 34 | D40: 110 | H40: 144 | N40: 0 | O40: 144
B41: I.E CORAZON INMACULADO DE MARIA | H41: 0 | I41: 51 | J41: 404 | K41: 314 | L41: 130 | N41: 899 | O41: 899
B42: I.E JORGE ABEL MOLINA | H42: 0 | I42: 76 | J42: 327 | K42: 141 | L42: 41 | M42: 121 | N42: 706 | O42: 706
B43: I.E R. PUERTO MANRIQUE | C43: 11 | D43: 97 | E43: 73 | F43: 19 | H43: 200 | N43: 0 | O43: 200
B44: I.E R. SIMON BOLIVAR | C44: 39 | D44: 256 | E44: 68 | F44: 16 | H44: 379 | N44: 0 | O44: 379
B45: I.E RUFINO QUICHOYA | H45: 0 | I45: 127 | J45: 525 | K45: 338 | L45: 116 | M45: 342 | N45: 1448 | O45: 1448
B46: I.E. MARCO FIDEL SUAREZ | H46: 0 | I46: 53 | J46: 260 | K46: 309 | L46: 123 | M46: 91 | N46: 836 | O46: 836
B47: I.E. R. BERLIN | C47: 20 | D47: 211 | E47: 119 | G47: 84 | H47: 434 | N47: 0 | O47: 434
B48: I.E. R. LA CEIBA | C48: 58 | D48: 158 | E48: 38 | H48: 254 | N48: 0 | O48: 254
B49: I.E. R. SAN JUDAS TADEO | C49: 25 | D49: 102 | E49: 38 | G49: 23 | H49: 188 | N49: 0 | O49: 188
B50: TOTAL | C50: 187 | D50: 934 | E50: 336 | F50: 35 | G50: 107 | H50: 1599 | I50: 307 | J50: 1516 | K50: 1102 | L50: 410 | M50: 554 | N50: 3889 | O50: 5488
A51: PAUJIL | B51: C.E NIÑA DEL CARMEN | C51: 16 | D51: 130 | H51: 146 | N51: 0 | O51: 146
B52: C.E R. LA PROVIDENCIA | C52: 6 | D52: 131 | E52: 8 | H52: 145 | N52: 0 | O52: 145
B53: C.E SANTA TERESA | C53: 21 | D53: 160 | E53: 18 | G53: 47 | H53: 246 | N53: 0 | O53: 246
B54: I.E AGROECOLOGICO AMAZONICO | H54: 0 | I54: 153 | J54: 907 | K54: 322 | L54: 118 | M54: 320 | N54: 1820 | O54: 1820
B55: I.E NUESTRA SE¿ORA DE LAS MERCEDES | H55: 0 | I55: 16 | J55: 99 | K55: 411 | L55: 135 | M55: 18 | N55: 679 | O55: 679
B56: I.E R. LA CONCORDIA | C56: 21 | D56: 127 | E56: 66 | H56: 214 | N56: 0 | O56: 214
B57: I.E R. RAFAEL URIBE URIBE | C57: 27 | D57: 133 | E57: 15 | G57: 41 | H57: 216 | N57: 0 | O57: 216
B58: I.E. R. BOLIVIA | C58: 41 | D58: 140 | E58: 41 | H58: 222 | N58: 0 | O58: 222
B59: TOTAL | C59: 132 | D59: 821 | E59: 148 | G59: 88 | H59: 1189 | I59: 169 | J59: 1006 | K59: 733 | L59: 253 | M59: 338 | N59: 2499 | O59: 3688
A60: MONTAÑITA | B60: C.E BALCONES | C60: 12 | D60: 100 | G60: 19 | H60: 131 | N60: 0 | O60: 131
B61: C.E EL CEDRO | C61: 9 | D61: 108 | E61: 34 | H61: 151 | N61: 0 | O61: 151
B62: C.E LA ARGENTINA | C62: 22 | D62: 196 | H62: 218 | N62: 0 | O62: 218
B63: C.E. EL DIVISO | C63: 27 | D63: 255 | E63: 38 | H63: 320 | N63: 0 | O63: 320
B64: C.E. EL JARDIN | C64: 35 | D64: 201 | G64: 27 | H64: 263 | N64: 0 | O64: 263
B65: C.E. GAITANIA | C65: 12 | D65: 138 | G65: 24 | H65: 174 | N65: 0 | O65: 174
B66: C.E. LOS ALPINOS | C66: 18 | D66: 98 | H66: 116 | N66: 0 | O66: 116
B67: I.E LA ESTRELLA | C67: 24 | D67: 83 | E67: 35 | H67: 142 | N67: 0 | O67: 142
B68: I.E NTRA SRA DEL PERPETUO SOCORRO | H68: 0 | I68: 54 | J68: 282 | K68: 247 | L68: 118 | M68: 98 | N68: 799 | O68: 799
B69: I.E R. MATEGUADUA | C69: 13 | D69: 81 | E69: 72 | H69: 166 | N69: 0 | O69: 166
B70: I.E RURAL SABIO CALDAS | C70: 29 | D70: 217 | E70: 120 | F70: 60 | G70: 45 | H70: 471 | N70: 0 | O70: 471
B71: I.E. R. AGRO NUÑEZ | C71: 31 | D71: 164 | E71: 87 | G71: 113 | H71: 395 | N71: 0 | O71: 395
B72: I.E. R. BRISAS DE SAN ISIDRO | C72: 28 | D72: 193 | E72: 59 | G72: 31 | H72: 311 | N72: 0 | O72: 311
B73: I.E. R. JOSE HILARIO LOPEZ | C73: 11 | D73: 131 | E73: 74 | H73: 216 | N73: 0 | O73: 216
B74: I.E. R. PALMA ARRIBA | C74: 8 | D74: 128 | E74: 63 | H74: 199 | N74: 0 | O74: 199
B75: I.E. R. REINA BAJA | C75: 30 | D75: 135 | E75: 36 | H75: 201 | N75: 0 | O75: 201
B76: I.E.R SIMON BOLIVAR | C76: 13 | D76: 216 | E76: 167 | F76: 54 | G76: 63 | H76: 513 | N76: 0 | O76: 513
B77: TOTAL | C77: 322 | D77: 2444 | E77: 785 | F77: 114 | G77: 322 | H77: 3987 | I77: 54 | J77: 282 | K77: 247 | L77: 118 | M77: 98 | N77: 799 | O77: 4786
A78: MILAN | B78: C.E EL DIAMANTE (MIRAVALLE) | C78: 6 | D78: 172 | G78: 51 | H78: 229 | N78: 0 | O78: 229
B79: C.E. GRANARIO | C79: 23 | D79: 152 | E79: 13 | H79: 188 | N79: 0 | O79: 188
B80: C.E. LA ANGUILLA | C80: 26 | D80: 167 | E80: 53 | G80: 25 | H80: 271 | N80: 0 | O80: 271
B81: I.E MARCO FIDEL SUAREZ | H81: 0 | I81: 18 | J81: 164 | K81: 132 | L81: 39 | M81: 13 | N81: 366 | O81: 366
B82: I.E. R. LA FLORIDA | C82: 24 | D82: 193 | E82: 82 | G82: 73 | H82: 372 | N82: 0 | O82: 372
B83: I.E.R ANGEL RICARDO ACOSTA | C83: 33 | D83: 255 | E83: 194 | F83: 51 | G83: 1 | H83: 534 | N83: 0 | O83: 534
B84: I.E.R LA RASTRA | C84: 12 | D84: 82 | E84: 96 | F84: 19 | G84: 10 | H84: 219 | N84: 0 | O84: 219
B85: I.E.R. ILUSION MATICURU | C85: 21 | D85: 204 | E85: 77 | G85: 64 | H85: 366 | N85: 0 | O85: 366
B86: I.E.R. MAMA BWE REOJACHE | C86: 46 | D86: 234 | E86: 197 | F86: 34 | H86: 511 | N86: 0 | O86: 511
B87: TOTAL | C87: 191 | D87: 1459 | E87: 712 | F87: 104 | G87: 224 | H87: 2690 | I87: 18 | J87: 164 | K87: 132 | L87: 39 | M87: 13 | N87: 366 | O87: 3056
A88: MORELIA | B88: C.E PALMARITO | C88: 8 | D88: 136 | G88: 23 | H88: 167 | N88: 0 | O88: 167
B89: I.E CERVANTES | H89: 0 | I89: 41 | J89: 253 | K89: 172 | L89: 54 | M89: 108 | N89: 628 | O89: 628
B90: I.E R. JUAN XXIII | C90: 8 | D90: 134 | E90: 117 | G90: 18 | H90: 277 | N90: 0 | O90: 277
B91: TOTAL | C91: 16 | D91: 270 | E91: 117 | G91: 41 | H91: 444 | I91: 41 | J91: 253 | K91: 172 | L91: 54 | M91: 108 | N91: 628 | O91: 1072
A92: PUERTO RICO | B92: C.E EL AGUILA | C92: 18 | D92: 159 | H92: 177 | N92: 0 | O92: 177
B93: C.E LA FLORESTA # 5 | C93: 14 | D93: 135 | H93: 149 | N93: 0 | O93: 149
B94: C.E. CAMPO HERMOSO | C94: 20 | D94: 152 | E94: 44 | G94: 6 | H94: 222 | N94: 0 | O94: 222
B95: C.E. EL CARMELO | C95: 37 | D95: 254 | H95: 291 | N95: 0 | O95: 291
B96: C.E. LOMA ALTA | C96: 34 | D96: 174 | E96: 48 | G96: 65 | H96: 321 | N96: 0 | O96: 321
B97: I.E ACEVEDO Y GOMEZ | H97: 0 | I97: 138 | J97: 862 | K97: 706 | L97: 236 | M97: 87 | N97: 2029 | O97: 2029
B98: I.E R. CENTRO INDIGENA | C98: 9 | D98: 112 | E98: 39 | G98: 18 | H98: 178 | N98: 0 | O98: 178
B99: I.E RURAL RIO NEGRO | C99: 41 | D99: 271 | E99: 125 | F99: 25 | H99: 462 | N99: 0 | O99: 462
B100: I.E SAGRADOS CORAZONES | H100: 0 | I100: 134 | J100: 886 | K100: 670 | L100: 221 | M100: 380 | N100: 2291 | O100: 2291
B101: I.E. R. VILLA DEL RIO | C101: 30 | D101: 244 | E101: 52 | G101: 37 | H101: 363 | N101: 0 | O101: 363
B102: I.E. R. EL LOBO | C102: 33 | D102: 252 | E102: 77 | H102: 362 | N102: 0 | O102: 362
B103: I.E. R. JORGE ELIECER GAITAN | C103: 31 | D103: 231 | E103: 119 | F103: 26 | H103: 407 | N103: 0 | O103: 407
B104: I.E. R. LA AGUILILLA | C104: 53 | D104: 349 | E104: 75 | F104: 24 | H104: 501 | N104: 0 | O104: 501
B105: I.E. R. LA ESMERALDA | C105: 50 | D105: 380 | E105: 97 | F105: 23 | H105: 550 | N105: 0 | O105: 550
B106: I.E. R. SANTANA RAMOS | C106: 28 | D106: 297 | E106: 130 | H106: 455 | N106: 0 | O106: 455
B107: TOTAL | C107: 398 | D107: 3010 | E107: 806 | F107: 98 | G107: 126 | H107: 4438 | I107: 272 | J107: 1748 | K107: 1376 | L107: 457 | M107: 467 | N107: 4320 | O107: 8758
A108: SAN JOSE DEL FRAGUA | B108: I.E DON QUIJOTE | H108: 0 | I108: 71 | J108: 413 | K108: 329 | L108: 101 | M108: 65 | N108: 979 | O108: 979
B109: I.E PARROQUIAL | H109: 0 | I109: 42 | J109: 266 | K109: 201 | L109: 71 | M109: 217 | N109: 797 | O109: 797
B110: I.E. R. LA GALLINETA | C110: 25 | D110: 170 | E110: 97 | H110: 292 | N110: 0 | O110: 292
B111: I.E. R. MARIA AUXILIADORA | C111: 21 | D111: 97 | E111: 49 | H111: 167 | N111: 0 | O111: 167
B112: I.E. R. PLATANILLO | C112: 19 | D112: 245 | E112: 71 | G112: 122 | H112: 457 | N112: 0 | O112: 457
B113: I.E. RURAL LAS LAJAS | C113: 43 | D113: 360 | E113: 197 | F113: 56 | G113: 45 | H113: 701 | N113: 0 | O113: 701
B114: I.E.R. DIVINO NIÑO | C114: 22 | D114: 322 | E114: 164 | F114: 23 | G114: 250 | H114: 781 | N114: 0 | O114: 781
B115: INST INGA YACHAICURY | C115: 9 | D115: 56 | E115: 70 | F115: 8 | H115: 143 | N115: 0 | O115: 143
B116: TOTAL | C116: 139 | D116: 1250 | E116: 648 | F116: 87 | G116: 417 | H116: 2541 | I116: 113 | J116: 679 | K116: 530 | L116: 172 | M116: 282 | N116: 1776 | O116: 4317
A117: SAN VICENTE DEL CAGUAN | B117: C.E. CRISTO REY (ANTONIO NARI¿O) | C117: 39 | D117: 252 | E117: 93 | H117: 384 | N117: 0 | O117: 384
B118: C.E. GIBRALTAR | C118: 13 | D118: 72 | E118: 14 | H118: 99 | N118: 0 | O118: 99
B119: C.E. SANTA ROSA | C119: 14 | D119: 72 | E119: 24 | G119: 6 | H119: 116 | N119: 0 | O119: 116
B120: I. E. R. EL RUBI | C120: 11 | D120: 114 | E120: 55 | H120: 180 | N120: 0 | O120: 180
B121: I. E. R. LOS FUNDADORES | C121: 76 | D121: 468 | E121: 75 | H121: 619 | N121: 0 | O121: 619
B122: I. E. R. NUEVO HORIZONTE | C122: 9 | D122: 97 | E122: 51 | G122: 21 | H122: 178 | N122: 0 | O122: 178
B123: I.E DANTE ALIGHIERI | H123: 0 | I123: 181 | J123: 1037 | K123: 631 | L123: 145 | M123: 26 | N123: 2020 | O123: 2020
B124: I.E DOMINGO SAVIO | H124: 0 | I124: 66 | J124: 368 | K124: 226 | L124: 79 | M124: 249 | N124: 988 | O124: 988
B125: I.E PROMOCION SOCIAL | H125: 0 | I125: 138 | J125: 732 | K125: 691 | L125: 227 | M125: 181 | N125: 1969 | O125: 1969
B126: I.E VERDE AMAZONICO | H126: 0 | I126: 118 | J126: 652 | K126: 305 | L126: 59 | N126: 1134 | O126: 1134
B127: I.E. R. ALTO QUEBRADON | C127: 15 | D127: 145 | E127: 55 | G127: 18 | H127: 233 | N127: 0 | O127: 233
B128: I.E. R. BRISAS DEL LOSADA | C128: 12 | D128: 113 | E128: 47 | H128: 172 | N128: 0 | O128: 172
B129: I.E. R. CRISTALINA TRONCALES | C129: 30 | D129: 231 | E129: 101 | G129: 12 | H129: 374 | N129: 0 | O129: 374
B130: I.E. R. LA SOMBRA | C130: 29 | D130: 291 | E130: 130 | G130: 48 | H130: 498 | N130: 0 | O130: 498
B131: I.E. R. LA UNION | C131: 18 | D131: 120 | E131: 106 | F131: 23 | H131: 267 | N131: 0 | O131: 267
B132: I.E. R. LOS POZOS | C132: 73 | D132: 348 | E132: 98 | H132: 519 | N132: 0 | O132: 519
B133: I.E. R. PLAYA RICA | C133: 9 | D133: 124 | E133: 73 | G133: 23 | H133: 229 | N133: 0 | O133: 229
B134: I.E. R. SAN JUAN DEL LOSADA | C134: 19 | D134: 237 | E134: 153 | F134: 38 | G134: 49 | H134: 496 | N134: 0 | O134: 496
B135: I.E. R. SANTO DOMINGO SAVIO | C135: 10 | D135: 112 | E135: 44 | F135: 14 | H135: 180 | N135: 0 | O135: 180
B136: I.E.R GUILLERMO RIOS | C136: 33 | D136: 141 | E136: 81 | F136: 30 | G136: 75 | H136: 360 | N136: 0 | O136: 360
B137: I.E.R. ARENOSO | C137: 32 | D137: 344 | E137: 87 | G137: 82 | H137: 545 | N137: 0 | O137: 545
B138: I.E.R. BOCANA POSETAS | C138: 20 | D138: 124 | E138: 40 | H138: 184 | N138: 0 | O138: 184
B139: I.E.R. CAMPO HERMOSO | C139: 62 | D139: 353 | E139: 147 | F139: 35 | G139: 157 | H139: 754 | N139: 0 | O139: 754
B140: I.E.R. CRISTALINA DEL LOSADA | C140: 42 | D140: 330 | E140: 192 | F140: 42 | G140: 103 | H140: 709 | N140: 0 | O140: 709
B141: I.E.R. GUAYABAL | C141: 35 | D141: 227 | E141: 87 | F141: 20 | H141: 369 | N141: 0 | O141: 369
B142: I.E.R. LA INMACULADA | C142: 49 | D142: 328 | E142: 117 | F142: 23 | G142: 41 | H142: 558 | N142: 0 | O142: 558
B143: I.E.R. LA SAMARIA | C143: 25 | D143: 333 | E143: 105 | G143: 27 | H143: 490 | N143: 0 | O143: 490
B144: I.E.R. LOS ANDES | C144: 37 | D144: 169 | E144: 41 | H144: 247 | N144: 0 | O144: 247
B145: I.E.R. PUERTO AMOR | C145: 31 | D145: 248 | E145: 84 | H145: 363 | N145: 0 | O145: 363
B146: I.E.R. SAN JOSE DE CAQUETANIA | C146: 24 | D146: 158 | E146: 27 | H146: 209 | N146: 0 | O146: 209
B147: I.E.R. VILLA CARMONA | C147: 23 | D147: 221 | E147: 46 | H147: 290 | N147: 0 | O147: 290
B148: TOTAL | C148: 790 | D148: 5772 | E148: 2173 | F148: 225 | G148: 662 | H148: 9622 | I148: 503 | J148: 2789 | K148: 1853 | L148: 510 | M148: 456 | N148: 6111 | O148: 15733
A149: SOLANO | B149: C.E. CAMPOALEGRE | C149: 36 | D149: 245 | E149: 26 | H149: 307 | N149: 0 | O149: 307
B150: C.E. EL DANUBIO | C150: 16 | D150: 236 | G150: 79 | H150: 331 | N150: 0 | O150: 331
B151: C.E. LA CABAÑITA | C151: 18 | D151: 142 | E151: 31 | H151: 191 | N151: 0 | O151: 191
B152: C.E. LAS MERCEDES | C152: 19 | D152: 158 | E152: 50 | H152: 227 | N152: 0 | O152: 227
B153: C.E. MONONGUETE | C153: 24 | D153: 263 | E153: 116 | G153: 103 | H153: 506 | N153: 0 | O153: 506
B154: C.E. PEÑAS BLANCAS | C154: 33 | D154: 221 | E154: 31 | H154: 285 | N154: 0 | O154: 285
B155: C.E. PUERTO TEJADA | C155: 49 | D155: 301 | E155: 40 | G155: 49 | H155: 439 | N155: 0 | O155: 439
B156: I.E CAMPO ELIAS MARULANDA | H156: 0 | I156: 121 | J156: 520 | K156: 336 | L156: 66 | M156: 101 | N156: 1144 | O156: 1144
B157: I.E.R. INDIGENA COEMANI FORTUNATO REALLY | C157: 12 | D157: 136 | E157: 143 | F157: 36 | G157: 134 | H157: 461 | N157: 0 | O157: 461
B158: TOTAL | C158: 207 | D158: 1702 | E158: 437 | F158: 36 | G158: 365 | H158: 2747 | I158: 121 | J158: 520 | K158: 336 | L158: 66 | M158: 101 | N158: 1144 | O158: 3891
A159: SOLITA | B159: C.E CAMPOLEJANO | C159: 17 | D159: 143 | E159: 76 | F159: 18 | H159: 254 | N159: 0 | O159: 254
B160: C.E. AGUA BLANCA CUZUMBE | C160: 25 | D160: 194 | E160: 47 | G160: 65 | H160: 331 | N160: 0 | O160: 331
B161: C.E. CHONTILLOSA MEDIO | C161: 21 | D161: 273 | E161: 159 | F161: 19 | H161: 472 | N161: 0 | O161: 472
B162: I.E INTERNADO RURAL SOLITA | H162: 0 | I162: 72 | J162: 622 | K162: 384 | L162: 107 | M162: 157 | N162: 1342 | O162: 1342
B163: TOTAL | C163: 63 | D163: 610 | E163: 282 | F163: 37 | G163: 65 | H163: 1057 | I163: 72 | J163: 622 | K163: 384 | L163: 107 | M163: 157 | N163: 1342 | O163: 2399
A164: VALPARAISO | B164: C.E LA RICO KM 30 | C164: 19 | D164: 139 | E164: 33 | G164: 14 | H164: 205 | N164: 0 | O164: 205
B165: C.E. LA MUÑOZ | C165: 1 | D165: 121 | E165: 102 | G165: 76 | H165: 300 | N165: 0 | O165: 300
B166: C.E. MIRAVALLE SANTROPEL | C166: 9 | D166: 93 | E166: 59 | H166: 161 | N166: 0 | O166: 161
B167: C.E. NIEVES ARRIBA | C167: 6 | D167: 139 | E167: 60 | G167: 22 | H167: 227 | N167: 0 | O167: 227
B168: C.E. PLAYA RICA | C168: 12 | D168: 140 | E168: 88 | F168: 31 | H168: 271 | N168: 0 | O168: 271
B169: C.E. SANTIAGO DE LA SELVA | C169: 26 | D169: 160 | E169: 69 | F169: 19 | G169: 42 | H169: 316 | N169: 0 | O169: 316
B170: I.E VALPARAISO | H170: 0 | I170: 49 | J170: 340 | K170: 287 | L170: 79 | M170: 79 | N170: 834 | O170: 834
B171: TOTAL | C171: 73 | D171: 792 | E171: 411 | F171: 50 | G171: 154 | H171: 1480 | I171: 49 | J171: 340 | K171: 287 | L171: 79 | M171: 79 | N171: 834 | O171: 2314
A172: TOTAL MATRICULA DEPARTAMENTO | C172: 3251 | D172: 24591 | E172: 8670 | F172: 923 | G172: 3364 | H172: 40799 | I172: 2269 | J172: 13249 | K172: 9377 | L172: 2918 | M172: 3060 | N172: 30873 | O172: 71672
A173: =INDICE!A9 -> Fuente: SIMAT Corte 30 de Septiembre 2012
A176: ADIELA MOLINA CUTIVA | F176: FENER DE LOS RIOS BARRERA
A177: Secretaria de Eduación | F177: Jefe Oficina de Cobertura
A179: Elaboró Gustavo Carvajal Peralta

Sheet 1.3
A1: MATRICULA OFICIAL POR MUNICIPIO, ESTABLECIMIENTO EDUCATIVO, SEDES, GRADOS, ZONA Y NIVELES | X1: MATRICULA OFICIAL POR MUNICIPIO, ESTABLECIMIENTO EDUCATIVO, SEDES, GRADOS, ZONA Y NIVELES
A3: MUNICIPIO, ESTABLECIMIENTO EDUCATIVO Y POR SEDES | B3: ZONA RURAL Y POR NIVELES | Z3: ZONA URBANA Y POR NIVELES | AY3: GRAN TOTAL
B4: PREESCOLAR | D4: PRIMARIA | J4: SECUNDARIA | O4: MEDIA | R4: CICLOS | Y4: TOTAL MATRICULA RURAL | Z4: PREESCOLAR | AB4: PRIMARIA | AI4: SECUNDARIA | AN4: MEDIA | AQ4: CICLOS | AX4: TOTAL MATRICULA URBANA
B5: 0 | C5: TOTAL | D5: 1 | E5: 2 | F5: 3 | G5: 4 | H5: 5 | I5: TOTAL | J5: 6 | K5: 7 | L5: 8 | M5: 9 | N5: TOTAL | O5: 10 | P5: 11 | Q5: TOTAL | R5: C1 | S5: C2 | T5: C3 | U5: C4 | V5: C5 | W5: C6 | X5: TOTAL | Z5: 0 | AA5: TOTAL | AB5: ACEL. | AC5: 1 | AD5: 2 | AE5: 3 | AF5: 4 | AG5: 5 | AH5: TOTAL | AI5: 6 | AJ5: 7 | AK5: 8 | AL5: 9 | AM5: TOTAL | AN5: 10 | AO5: 11 | AP5: TOTAL | AQ5: C1 | AR5: C2 | AS5: C3 | AT5: C4 | AU5: C5 | AV5: C6 | AW5: TOTAL
A6: C.E LA CHORROSA | B6: 32 | C6: 32 | D6: 33 | E6: 34 | F6: 33 | G6: 28 | H6: 28 | I6: =SUM(D6:H6) -> 156 | Y6: =+X6+Q6+N6+I6+C6 -> 188 | AX6: =+AW6+AP6+AM6+AH6+AA6 -> 0 | AY6: =+AX6+Y6 -> 188
A7: ALTO CASTAÑAL | B7: 2 | C7: 2 | D7: 3 | E7: 1 | F7: 4 | H7: 3 | I7: 11 | Y7: =+X7+Q7+N7+I7+C7 -> 13 | AX7: =+AW7+AP7+AM7+AH7+AA7 -> 0 | AY7: =+AX7+Y7 -> 13
A8: BERLIN | B8: 2 | C8: 2 | D8: 4 | E8: 2 | F8: 2 | G8: 5 | H8: 1 | I8: 14 | Y8: 16 | AX8: 0 | AY8: 16
A9: EL CARMEN | D9: 1 | E9: 4 | F9: 1 | H9: 3 | I9: 9 | Y9: 9 | AX9: 0 | AY9: 9
A10: EL DIVISO | B10: 1 | C10: 1 | D10: 1 | F10: 2 | G10: 2 | H10: 2 | I10: 7 | Y10: 8 | AX10: 0 | AY10: 8
A11: EL JAZMIN | B11: 1 | C11: 1 | D11: 5 | E11: 3 | F11: 1 | G11: 3 | H11: 2 | I11: 14 | Y11: 15 | AX11: 0 | AY11: 15
A12: EL ROSAL | B12: 2 | C12: 2 | D12: 2 | E12: 1 | F12: 1 | H12: 2 | I12: 6 | Y12: 8 | AX12: 0 | AY12: 8
A13: FLORIDA BLANCA | D13: 2 | E13: 5 | F13: 6 | H13: 3 | I13: 16 | Y13: 16 | AX13: 0 | AY13: 16
A14: FLORIDA NO. 1 | B14: 1 | C14: 1 | D14: 2 | G14: 3 | H14: 4 | I14: 9 | Y14: 10 | AX14: 0 | AY14: 10
A15: INDIGENA LA CHUSCALOSA | B15: 6 | C15: 6 | D15: 1 | E15: 3 | F15: 1 | H15: 3 | I15: 8 | Y15: 14 | AX15: 0 | AY15: 14
A16: LA ARENOSA | E16: 2 | F16: 3 | G16: 3 | H16: 1 | I16: 9 | Y16: 9 | AX16: 0 | AY16: 9
A17: LA CHORROSA | B17: 3 | C17: 3 | D17: 5 | E17: 4 | F17: 1 | G17: 4 | H17: 2 | I17: 16 | Y17: 19 | AX17: 0 | AY17: 19
A18: LA ESPERANZA | B18: 3 | C18: 3 | E18: 5 | F18: 2 | G18: 4 | H18: 1 | I18: 12 | Y18: 15 | AX18: 0 | AY18: 15
A19: LAS MERCEDES | B19: 4 | C19: 4 | D19: 1 | E19: 2 | F19: 2 | H19: 1 | I19: 6 | Y19: 10 | AX19: 0 | AY19: 10
A20: LOS LIBERTADORES | B20: 2 | C20: 2 | D20: 3 | E20: 1 | F20: 2 | G20: 3 | I20: 9 | Y20: 11 | AX20: 0 | AY20: 11
A21: SAN ISIDRO | B21: 5 | C21: 5 | D21: 3 | E21: 1 | F21: 5 | G21: 1 | I21: 10 | Y21: 15 | AX21: 0 | AY21: 15
A22: C.E VERSALLES | B22: 17 | C22: 17 | D22: 16 | E22: 13 | F22: 8 | G22: 11 | H22: 7 | I22: 55 | J22: 5 | K22: 2 | L22: 4 | M22: 3 | N22: =SUM(J22:M22) -> 14 | Y22: 86 | AX22: 0 | AY22: 86
A23: CARMEN BALATA | D23: 3 | E23: 2 | F23: 2 | G23: 3 | H23: 1 | I23: 11 | Y23: 11 | AX23: 0 | AY23: 11
A24: EL QUEBRADON NO 1 | B24: 2 | C24: 2 | D24: 4 | F24: 1 | G24: 1 | I24: 6 | Y24: 8 | AX24: 0 | AY24: 8
A25: LOS JARDINES | B25: 7 | C25: 7 | D25: 1 | E25: 2 | F25: 1 | G25: 1 | I25: 5 | Y25: 12 | AX25: 0 | AY25: 12
A26: PENSILVANIA | B26: 3 | C26: 3 | D26: 3 | E26: 2 | G26: 3 | I26: 8 | Y26: 11 | AX26: 0 | AY26: 11
A27: VERSALLES | B27: 5 | C27: 5 | D27: 5 | E27: 7 | F27: 4 | G27: 3 | H27: 6 | I27: 25 | J27: 5 | K27: 2 | L27: 4 | M27: 3 | N27: =SUM(J27:M27) -> 14 | Y27: 44 | AX27: 0 | AY27: 44
A28: I.E ALBANIA | Y28: 0 | Z28: 50 | AA28: =SUM(Z28:Z28) -> 50 | AC28: 45 | AD28: 43 | AE28: 39 | AF28: 50 | AG28: 63 | AH28: =SUM(AB28:AG28) -> 240 | AI28: 74 | AJ28: 67 | AK28: 55 | AL28: 59 | AM28: =SUM(AI28:AL28) -> 255 | AN28: 45 | AO28: 41 | AP28: =SUM(AN28:AO28) -> 86 | AX28: 631 | AY28: 631
A29: PEREGRINO LOZANO | Y29: 0 | Z29: 50 | AA29: =SUM(Z29:Z29) -> 50 | AC29: 45 | AD29: 43 | AE29: 39 | AF29: 50 | AG29: 63 | AH29: =SUM(AB29:AG29) -> 240 | AX29: 290 | AY29: 290
A30: SAN CARLOS | Y30: 0 | AI30: 74 | AJ30: 67 | AK30: 55 | AL30: 59 | AM30: =SUM(AI30:AL30) -> 255 | AN30: 45 | AO30: 41 | AP30: =SUM(AN30:AO30) -> 86 | AX30: 341 | AY30: 341
A31: I.E EL DORADO | B31: 29 | C31: 29 | D31: 19 | E31: 29 | F31: 24 | G31: 33 | H31: 32 | I31: =SUM(D31:H31) -> 137 | J31: 36 | K31: 12 | L31: 16 | M31: 12 | N31: =SUM(J31:M31) -> 76 | O31: 13 | P31: 12 | Q31: =SUM(O31:P31) -> 25 | U31: 1 | X31: =SUM(R31:W31) -> 1 | Y31: 268 | AX31: 0 | AY31: 268
A32: AGUAS CLARAS | B32: 1 | C32: 1 | D32: 1 | F32: 1 | G32: 3 | H32: 2 | I32: 7 | Y32: 8 | AX32: 0 | AY32: 8
A33: BELLA AURORA | B33: 3 | C33: 3 | E33: 2 | G33: 2 | H33: 2 | I33: 6 | Y33: 9 | AX33: 0 | AY33: 9
A34: EL DIAMANTE | D34: 1 | F34: 1 | H34: 1 | I34: 3 | Y34: 3 | AX34: 0 | AY34: 3
A35: EL DORADO | B35: 7 | C35: 7 | D35: 6 | E35: 12 | F35: 11 | G35: 12 | H35: 8 | I35: 49 | J35: 36 | K35: 12 | L35: 16 | M35: 12 | N35: =SUM(J35:M35) -> 76 | O35: 13 | P35: 12 | Q35: =SUM(O35:P35) -> 25 | U35: 1 | X35: =SUM(R35:W35) -> 1 | Y35: 158 | AX35: 0 | AY35: 158
A36: EL PARAISO | B36: 5 | C36: 5 | D36: 2 | E36: 3 | F36: 2 | G36: 8 | H36: 5 | I36: 20 | Y36: 25 | AX36: 0 | AY36: 25
A37: LA ARGENTINA | B37: 5 | C37: 5 | D37: 5 | E37: 4 | F37: 2 | G37: 3 | H37: 7 | I37: 21 | Y37: 26 | AX37: 0 | AY37: 26
A38: LA PAZ | B38: 2 | C38: 2 | D38: 1 | E38: 3 | F38: 1 | G38: 1 | H38: 2 | I38: 8 | Y38: 10 | AX38: 0 | AY38: 10
A39: LAS MARGARITAS | B39: 3 | C39: 3 | D39: 3 | E39: 2 | F39: 2 | G39: 3 | H39: 2 | I39: 12 | Y39: 15 | AX39: 0 | AY39: 15
A40: MARIANO OSPINA PEREZ | B40: 3 | C40: 3 | E40: 3 | F40: 4 | G40: 1 | H40: 3 | I40: 11 | Y40: 14 | AX40: 0 | AY40: 14
A41: TOTAL ALBANIA | B41: =+B31+B28+B22+B6 -> 78 | C41: 78 | D41: =+D31+D28+D22+D6 -> 68 | E41: 76 | F41: 65 | G41: 72 | H41: 67 | I41: =SUM(D41:H41) -> 348 | J41: 41 | K41: 14 | L41: 20 | M41: 15 | N41: =SUM(J41:M41) -> 90 | O41: 13 | P41: 12 | Q41: =SUM(O41:P41) -> 25 | R41: 0 | S41: 0 | T41: 0 | U41: 1 | V41: 0 | W41: 0 | X41: =SUM(R41:W41) -> 1 | Y41: 542 | Z41: =+Z31+Z28+Z22+Z6 -> 50 | AA41: =SUM(Z41:Z41) -> 50 | AB41: 0 | AC41: 45 | AD41: 43 | AE41: 39 | AF41: 50 | AG41: 63 | AH41: =SUM(AB41:AG41) -> 240 | AI41: 74 | AJ41: 67 | AK41: 55 | AL41: 59 | AM41: =SUM(AI41:AL41) -> 255 | AN41: 45 | AO41: 41 | AP41: =SUM(AN41:AO41) -> 86 | AX41: 631 | AY41: 1173
A42: C.E ALTO SARABANDO | B42: 11 | C42: 11 | D42: 10 | E42: 27 | F42: 17 | G42: 18 | H42: 14 | I42: 86 | J42: 7 | K42: 10 | L42: 4 | M42: 2 | N42: =SUM(J42:M42) -> 23 | Y42: 120 | AX42: 0 | AY42: 120
A43: ALTAMIRA | B43: 2 | C43: 2 | D43: 1 | E43: 4 | F43: 1 | G43: 1 | H43: 1 | I43: 8 | Y43: 10 | AX43: 0 | AY43: 10
A44: ALTO SAN JUAN | B44: 3 | C44: 3 | D44: 3 | E44: 5 | F44: 8 | G44: 2 | H44: 1 | I44: 19 | Y44: 22 | AX44: 0 | AY44: 22
A45: ALTO SARABANDO | D45: 1 | E45: 4 | F45: 1 | G45: 5 | H45: 4 | I45: 15 | J45: 7 | K45: 10 | L45: 4 | M45: 2 | N45: =SUM(J45:M45) -> 23 | Y45: 38 | AX45: 0 | AY45: 38
A46: CRISTALINA | E46: 4 | F46: 2 | H46: 3 | I46: 9 | Y46: 9 | AX46: 0 | AY46: 9
A47: LAS PLATAS | B47: 5 | C47: 5 | E47: 2 | F47: 2 | G47: 1 | H47: 1 | I47: 6 | Y47: 11 | AX47: 0 | AY47: 11
A48: LOS ANDES | D48: 2 | E48: 4 | F48: 1 | G48: 3 | H48: 3 | I48: 13 | Y48: 13 | AX48: 0 | AY48: 13
A49: SANTA ROSA | B49: 1 | C49: 1 | D49: 1 | E49: 2 | F49: 1 | G49: 2 | H49: 1 | I49: 7 | Y49: 8 | AX49: 0 | AY49: 8
A50: SARABANDO MEDIO | D50: 2 | E50: 2 | F50: 1 | G50: 4 | I50: 9 | Y50: 9 | AX50: 0 | AY50: 9
A51: C.E EL CHOCHO | B51: 15 | C51: 15 | D51: 22 | E51: 19 | F51: 13 | G51: 14 | H51: 19 | I51: 87 | R51: 54 | X51: =SUM(R51:W51) -> 54 | Y51: 156 | AX51: 0 | AY51: 156
A52: AGUA AZUL | B52: 1 | C52: 1 | D52: 2 | E52: 4 | F52: 2 | G52: 1 | H52: 1 | I52: 10 | Y52: 11 | AX52: 0 | AY52: 11
A53: ALTO PUEBLITOS | D53: 2 | E53: 1 | F53: 1 | H53: 1 | I53: 5 | Y53: 5 | AX53: 0 | AY53: 5
A54: BAJO PUEBLITOS | B54: 1 | C54: 1 | E54: 2 | G54: 2 | H54: 2 | I54: 6 | Y54: 7 | AX54: 0 | AY54: 7
A55: BRUSELAS | B55: 2 | C55: 2 | D55: 7 | E55: 3 | F55: 1 | G55: 1 | H55: 4 | I55: 16 | Y55: 18 | AX55: 0 | AY55: 18
A56: CANELITOS | B56: 6 | C56: 6 | D56: 2 | E56: 3 | F56: 1 | G56: 3 | H56: 5 | I56: 14 | Y56: 20 | AX56: 0 | AY56: 20
A57: EL CHOCHO | B57: 4 | C57: 4 | D57: 2 | E57: 3 | F57: 1 | G57: 2 | I57: 8 | R57: 54 | X57: =SUM(R57:W57) -> 54 | Y57: 66 | AX57: 0 | AY57: 66
A58: SAN ISIDRO | D58: 4 | E58: 3 | F58: 2 | G58: 3 | H58: 2 | I58: 14 | Y58: 14 | AX58: 0 | AY58: 14
A59: SANTA ELENA | B59: 1 | C59: 1 | D59: 3 | F59: 5 | G59: 2 | H59: 4 | I59: 14 | Y59: 15 | AX59: 0 | AY59: 15
A60: I. E. R. PUEBLO NUEVO | B60: 23 | C60: 23 | D60: 38 | E60: 40 | F60: 26 | G60: 26 | H60: 24 | I60: 154 | J60: 23 | K60: 13 | L60: 11 | M60: 5 | N60: =SUM(J60:M60) -> 52 | T60: 21 | X60: =SUM(R60:W60) -> 21 | Y60: 250 | AX60: 0 | AY60: 250
A61: BOCANA DE LAS VERDES | B61: 2 | C61: 2 | D61: 4 | E61: 4 | F61: 1 | G61: 1 | H61: 2 | I61: 12 | Y61: 14 | AX61: 0 | AY61: 14
A62: GUAMBIANA | B62: 2 | C62: 2 | D62: 6 | E62: 5 | F62: 2 | G62: 7 | H62: 1 | I62: 21 | Y62: 23 | AX62: 0 | AY62: 23
A63: INDIGENA LA CERINDA | B63: 2 | C63: 2 | D63: 5 | E63: 7 | F63: 5 | H63: 5 | I63: 22 | Y63: 24 | AX63: 0 | AY63: 24
A64: LA PRIMAVERA | B64: 4 | C64: 4 | D64: 6 | E64: 2 | F64: 3 | G64: 1 | H64: 5 | I64: 17 | Y64: 21 | AX64: 0 | AY64: 21
A65: PRADO DE LOS ANGELES | B65: 5 | C65: 5 | D65: 4 | E65: 4 | F65: 2 | G65: 6 | H65: 2 | I65: 18 | Y65: 23 | AX65: 0 | AY65: 23
A66: PUEBLO NUEVO | B66: 8 | C66: 8 | D66: 13 | E66: 18 | F66: 13 | G66: 11 | H66: 9 | I66: 64 | J66: 23 | K66: 13 | L66: 11 | M66: 5 | N66: =SUM(J66:M66) -> 52 | T66: 21 | X66: =SUM(R66:W66) -> 21 | Y66: 145 | AX66: 0 | AY66: 145
A67: I.E AGROTECNICO MIXTO | Y67: 0 | Z67: 71 | AA67: =SUM(Z67:Z67) -> 71 | AC67: 60 | AD67: 59 | AE67: 58 | AF67: 50 | AG67: 52 | AH67: =SUM(AB67:AG67) -> 279 | AI67: 52 | AJ67: 53 | AK67: 57 | AL67: 47 | AM67: =SUM(AI67:AL67) -> 209 | AN67: 20 | AO67: 24 | AP67: =SUM(AN67:AO67) -> 44 | AQ67: 44 | AR67: 20 | AS67: 16 | AT67: 19 | AU67: 2 | AV67: 14 | AW67: =SUM(AQ67:AV67) -> 115 | AX67: 718 | AY67: 718
A68: AGROTECNICO MIXTO | Y68: 0 | Z68: 71 | AA68: =SUM(Z68:Z68) -> 71 | AC68: 60 | AD68: 59 | AE68: 58 | AF68: 50 | AG68: 52 | AH68: =SUM(AB68:AG68) -> 279 | AI68: 52 | AJ68: 53 | AK68: 57 | AL68: 47 | AM68: =SUM(AI68:AL68) -> 209 | AN68: 20 | AO68: 24 | AP68: =SUM(AN68:AO68) -> 44 | AQ68: 44 | AR68: 20 | AS68: 16 | AT68: 19 | AU68: 2 | AV68: 14 | AW68: =SUM(AQ68:AV68) -> 115 | AX68: 718 | AY68: 718
A69: I.E GABRIELA MISTRAL | Y69: 0 | Z69: 83 | AA69: =SUM(Z69:Z69) -> 83 | AC69: 95 | AD69: 103 | AE69: 90 | AF69: 111 | AG69: 99 | AH69: =SUM(AB69:AG69) -> 498 | AI69: 99 | AJ69: 95 | AK69: 85 | AL69: 73 | AM69: =SUM(AI69:AL69) -> 352 | AN69: 70 | AO69: 56 | AP69: =SUM(AN69:AO69) -> 126 | AR69: 16 | AS69: 8 | AT69: 14 | AV69: 13 | AW69: =SUM(AQ69:AV69) -> 51 | AX69: 1110 | AY69: 1110
A70: GABRIELA MISTRAL | Y70: 0 | AI70: 99 | AJ70: 95 | AK70: 85 | AL70: 73 | AM70: =SUM(AI70:AL70) -> 352 | AN70: 70 | AO70: 56 | AP70: =SUM(AN70:AO70) -> 126 | AR70: 16 | AS70: 8 | AT70: 14 | AV70: 13 | AW70: =SUM(AQ70:AV70) -> 51 | AX70: 529 | AY70: 529
A71: JOSE ACEVEDO Y GOMEZ | Y71: =+X71+Q71+N71+I71+C71 -> 0 | Z71: 83 | AA71: =SUM(Z71:Z71) -> 83 | AC71: 95 | AD71: 103 | AE71: 90 | AF71: 111 | AG71: 99 | AH71: =SUM(AB71:AG71) -> 498 | AX71: =+AW71+AP71+AM71+AH71+AA71 -> 581 | AY71: =+AX71+Y71 -> 581
A72: I.E RURAL EL PORTAL LA MONO | B72: 29 | C72: 29 | D72: 51 | E72: 40 | F72: 35 | G72: 30 | H72: 33 | I72: =SUM(D72:H72) -> 189 | J72: 29 | K72: 20 | L72: 15 | M72: 14 | N72: =SUM(J72:M72) -> 78 | O72: 7 | P72: 17 | Q72: =SUM(O72:P72) -> 24 | R72: 25 | T72: 8 | U72: 10 | V72: 8 | X72: =SUM(R72:W72) -> 51 | Y72: 371 | AX72: 0 | AY72: 371
A73: AGUADULCE | B73: 5 | C73: 5 | D73: 10 | E73: 6 | F73: 8 | G73: 12 | H73: 7 | I73: 43 | Y73: 48 | AX73: 0 | AY73: 48
A74: EL CARBON | B74: 3 | C74: 3 | D74: 2 | E74: 6 | F74: 2 | G74: 1 | H74: 4 | I74: 15 | Y74: 18 | AX74: 0 | AY74: 18
A75: EL GALAN | D75: 5 | E75: 2 | F75: 2 | G75: 1 | H75: 1 | I75: 11 | Y75: 11 | AX75: 0 | AY75: 11
A76: EL JAZMIN | B76: 2 | C76: 2 | D76: 6 | E76: 2 | F76: 4 | G76: 2 | H76: 4 | I76: 18 | Y76: 20 | AX76: 0 | AY76: 20
A77: EL PORTAL LA MONO | B77: 12 | C77: 12 | D77: 19 | E77: 9 | F77: 11 | G77: 9 | H77: 9 | I77: 57 | J77: 29 | K77: 20 | L77: 15 | M77: 14 | N77: =SUM(J77:M77) -> 78 | O77: 7 | P77: 17 | Q77: =SUM(O77:P77) -> 24 | R77: 25 | T77: 8 | U77: 10 | V77: 8 | X77: =SUM(R77:W77) -> 51 | Y77: 222 | AX77: 0 | AY77: 222
A78: EL SANCHEZ | B78: 3 | C78: 3 | D78: 3 | E78: 6 | F78: 1 | H78: 5 | I78: 15 | Y78: 18 | AX78: 0 | AY78: 18
A79: GERARDO VALENCIA CANO | B79: 3 | C79: 3 | D79: 4 | E79: 2 | F79: 4 | G79: 3 | H79: 1 | I79: 14 | Y79: 17 | AX79: 0 | AY79: 17
A80: TORTUGA ESTRELLA | B80: 1 | C80: 1 | D80: 2 | E80: 7 | F80: 3 | G80: 2 | H80: 2 | I80: 16 | Y80: 17 | AX80: 0 | AY80: 17
A81: I.E SAN LUIS | B81: 47 | C81: 47 | D81: 66 | E81: 45 | F81: 38 | G81: 47 | H81: 44 | I81: 240 | J81: 27 | K81: 21 | L81: 8 | M81: 13 | N81: =SUM(J81:M81) -> 69 | O81: 11 | P81: 12 | Q81: =SUM(O81:P81) -> 23 | T81: 20 | U81: 13 | V81: 11 | X81: =SUM(R81:W81) -> 44 | Y81: 423 | AX81: 0 | AY81: 423
A82: BELLAVISTA | B82: 3 | C82: 3 | D82: 4 | E82: 3 | G82: 4 | H82: 5 | I82: 16 | Y82: 19 | AX82: 0 | AY82: 19
A83: EL DIAMANTE | B83: 1 | C83: 1 | D83: 6 | F83: 2 | G83: 2 | H83: 1 | I83: 11 | Y83: 12 | AX83: 0 | AY83: 12
A84: EL PORVENIR | B84: 4 | C84: 4 | E84: 1 | F84: 2 | G84: 1 | I84: 4 | Y84: 8 | AX84: 0 | AY84: 8
A85: INDIGENA LA ESPERANZA | D85: 7 | E85: 1 | F85: 2 | G85: 3 | H85: 2 | I85: 15 | Y85: 15 | AX85: 0 | AY85: 15
A86: LA ONDINA | B86: 1 | C86: 1 | D86: 1 | E86: 3 | F86: 2 | G86: 2 | H86: 4 | I86: 12 | Y86: 13 | AX86: 0 | AY86: 13
A87: LA PRADERA | B87: 4 | C87: 4 | D87: 5 | E87: 5 | F87: 1 | G87: 5 | H87: 3 | I87: 19 | Y87: 23 | AX87: 0 | AY87: 23
A88: LA SOLEDAD | B88: 3 | C88: 3 | D88: 5 | E88: 3 | F88: 2 | G88: 1 | H88: 3 | I88: 14 | Y88: 17 | AX88: 0 | AY88: 17
A89: LA UNION | B89: 1 | C89: 1 | D89: 6 | E89: 2 | F89: 1 | G89: 2 | H89: 1 | I89: 12 | Y89: 13 | AX89: 0 | AY89: 13
A90: LAS DELICIAS | B90: 4 | C90: 4 | D90: 1 | E90: 1 | F90: 4 | G90: 1 | H90: 4 | I90: 11 | Y90: 15 | AX90: 0 | AY90: 15
A91: LAS MINAS | B91: 4 | C91: 4 | D91: 5 | E91: 6 | F91: 2 | G91: 3 | I91: 16 | Y91: 20 | AX91: 0 | AY91: 20
A92: LAS VENTANAS | D92: 3 | E92: 2 | F92: 1 | G92: 1 | H92: 1 | I92: 8 | Y92: 8 | AX92: 0 | AY92: 8
A93: LOS ALETONES | B93: 4 | C93: 4 | D93: 3 | E93: 1 | F93: 4 | G93: 4 | H93: 2 | I93: 14 | Y93: 18 | AX93: 0 | AY93: 18
A94: SAN ANTONIO | B94: 18 | C94: 18 | D94: 15 | E94: 10 | F94: 12 | G94: 14 | H94: 14 | I94: 65 | T94: 20 | U94: 13 | V94: 11 | X94: =SUM(R94:W94) -> 44 | Y94: 127 | AX94: 0 | AY94: 127
A95: SAN LUIS | D95: 5 | E95: 7 | F95: 3 | G95: 4 | H95: 4 | I95: 23 | J95: 27 | K95: 21 | L95: 8 | M95: 13 | N95: =SUM(J95:M95) -> 69 | O95: 11 | P95: 12 | Q95: =SUM(O95:P95) -> 23 | Y95: 115 | AX95: 0 | AY95: 115
A96: TOTAL BELÉN DE LOS ANDAQUIES | B96: 125 | C96: 125 | D96: 187 | E96: 171 | F96: 129 | G96: 135 | H96: 134 | I96: =SUM(D96:H96) -> 756 | J96: 86 | K96: 64 | L96: 38 | M96: 34 | N96: =SUM(J96:M96) -> 222 | O96: 18 | P96: 29 | Q96: =SUM(O96:P96) -> 47 | R96: 79 | T96: 49 | U96: 23 | V96: 19 | X96: =SUM(R96:W96) -> 170 | Y96: 1320 | Z96: 154 | AA96: =SUM(Z96:Z96) -> 154 | AC96: 155 | AD96: 162 | AE96: 148 | AF96: 161 | AG96: 151 | AH96: =SUM(AB96:AG96) -> 777 | AI96: 151 | AJ96: 148 | AK96: 142 | AL96: 120 | AM96: =SUM(AI96:AL96) -> 561 | AN96: 90 | AO96: 80 | AP96: =SUM(AN96:AO96) -> 170 | AQ96: 44 | AR96: 36 | AS96: 24 | AT96: 33 | AU96: 2 | AV96: 27 | AW96: =SUM(AQ96:AV96) -> 166 | AX96: 1828 | AY96: 3148
A97: I. E. R. LA ESMERALDA | B97: 29 | C97: 29 | D97: 55 | E97: 70 | F97: 46 | G97: 48 | H97: 80 | I97: 299 | J97: 28 | K97: 13 | L97: 2 | M97: 6 | N97: =SUM(J97:M97) -> 49 | Y97: 377 | AX97: 0 | AY97: 377
A98: BANDERAS | B98: 3 | C98: 3 | D98: 2 | E98: 2 | F98: 6 | G98: 3 | H98: 2 | I98: 15 | Y98: 18 | AX98: 0 | AY98: 18
A99: CAMICAYA ALTO | B99: 1 | C99: 1 | D99: 2 | E99: 4 | G99: 4 | H99: 2 | I99: 12 | Y99: 13 | AX99: 0 | AY99: 13
A100: CAMICAYA MEDIO | B100: 2 | C100: 2 | D100: 5 | E100: 1 | F100: 5 | G100: 4 | H100: 7 | I100: 22 | Y100: 24 | AX100: 0 | AY100: 24
A101: COMUNEROS | B101: 5 | C101: 5 | D101: 5 | E101: 10 | F101: 5 | G101: 5 | H101: 8 | I101: 33 | Y101: 38 | AX101: 0 | AY101: 38
A102: EL BRILLANTE | B102: 2 | C102: 2 | E102: 2 | F102: 4 | G102: 2 | H102: 5 | I102: 13 | Y102: 15 | AX102: 0 | AY102: 15
A103: GUADUALOSA | E103: 9 | F103: 6 | G103: 2 | H103: 5 | I103: 22 | Y103: 22 | AX103: 0 | AY103: 22
A104: LA ARGENTINA | B104: 1 | C104: 1 | D104: 3 | E104: 3 | H104: 4 | I104: 10 | Y104: 11 | AX104: 0 | AY104: 11
A105: LA MACARENA | B105: 1 | C105: 1 | D105: 5 | E105: 2 | F105: 1 | G105: 2 | H105: 4 | I105: 14 | J105: 13 | N105: =SUM(J105:M105) -> 13 | Y105: 28 | AX105: 0 | AY105: 28
A106: LA URIBE | B106: 1 | C106: 1 | D106: 6 | E106: 8 | F106: 1 | G106: 3 | H106: 9 | I106: 27 | Y106: 28 | AX106: 0 | AY106: 28
A107: LA ESMERALDA | B107: 1 | C107: 1 | D107: 3 | E107: 5 | F107: 2 | G107: 4 | H107: 2 | I107: 16 | J107: 15 | K107: 13 | L107: 2 | M107: 6 | N107: =SUM(J107:M107) -> 36 | Y107: 53 | AX107: 0 | AY107: 53
A108: LA LIBERTAD | B108: 2 | C108: 2 | D108: 6 | E108: 8 | F108: 5 | G108: 2 | H108: 6 | I108: 27 | Y108: 29 | AX108: 0 | AY108: 29
A109: LA ORQUIDIA | D109: 3 | E109: 1 | F109: 4 | G109: 4 | H109: 2 | I109: 14 | Y109: 14 | AX109: 0 | AY109: 14
A110: MIRAFLORES DEL SUNCILLAS | B110: 3 | C110: 3 | D110: 1 | E110: 4 | G110: 2 | H110: 3 | I110: 10 | Y110: 13 | AX110: 0 | AY110: 13
A111: PATIO BONITO | B111: 3 | C111: 3 | D111: 5 | E111: 3 | F111: 3 | G111: 2 | H111: 9 | I111: 22 | Y111: 25 | AX111: 0 | AY111: 25
A112: VILLA COLOMBIA | B112: 4 | C112: 4 | D112: 9 | E112: 8 | F112: 4 | G112: 9 | H112: 12 | I112: 42 | Y112: 46 | AX112: 0 | AY112: 46
A113: I. E. R. LOS CRISTALES | B113: 28 | C113: 28 | D113: 48 | E113: 62 | F113: 58 | G113: 67 | H113: 57 | I113: 292 | J113: 35 | K113: 36 | L113: 26 | M113: 16 | N113: =SUM(J113:M113) -> 113 | S113: 1 | X113: =SUM(R113:W113) -> 1 | Y113: 434 | AX113: 0 | AY113: 434
A114: ANIBAL NUÑEZ | B114: 1 | C114: 1 | D114: 5 | E114: 9 | F114: 14 | G114: 16 | H114: 2 | I114: 46 | Y114: 47 | AX114: 0 | AY114: 47
A115: EL PROGRESO | B115: 7 | C115: 7 | D115: 1 | E115: 4 | F115: 4 | G115: 3 | H115: 4 | I115: 16 | Y115: 23 | AX115: 0 | AY115: 23
A116: LA FLORIDA # 1 | B116: 5 | C116: 5 | D116: 8 | E116: 10 | F116: 10 | G116: 15 | H116: 14 | I116: 57 | Y116: 62 | AX116: 0 | AY116: 62
A117: LA FLORIDA # 2 | B117: 4 | C117: 4 | D117: 9 | E117: 8 | F117: 7 | G117: 8 | H117: 12 | I117: 44 | Y117: 48 | AX117: 0 | AY117: 48
A118: LLANITOS | D118: 3 | E118: 2 | G118: 1 | H118: 3 | I118: 9 | Y118: 9 | AX118: 0 | AY118: 9
A119: LOS CRISTALES | B119: 3 | C119: 3 | D119: 13 | E119: 13 | F119: 9 | G119: 8 | H119: 11 | I119: 54 | J119: 35 | K119: 36 | L119: 26 | M119: 16 | N119: =SUM(J119:M119) -> 113 | S119: 1 | X119: =SUM(R119:W119) -> 1 | Y119: 171 | AX119: 0 | AY119: 171
A120: MONTEADENTRO | B120: 1 | C120: 1 | D120: 2 | E120: 7 | F120: 1 | G120: 3 | H120: 3 | I120: 16 | Y120: 17 | AX120: 0 | AY120: 17
A121: PEÑAS BLANCAS | B121: 3 | C121: 3 | D121: 4 | F121: 5 | G121: 4 | H121: 1 | I121: 14 | Y121: 17 | AX121: 0 | AY121: 17
A122: SABALETA ALTA | B122: 2 | C122: 2 | D122: 3 | E122: 5 | F122: 2 | G122: 3 | H122: 3 | I122: 16 | Y122: 18 | AX122: 0 | AY122: 18
A123: VILLANUEVA | B123: 2 | C123: 2 | E123: 4 | F123: 6 | G123: 6 | H123: 4 | I123: 20 | Y123: 22 | AX123: 0 | AY123: 22
A124: I. E. R. MONSERRATE | B124: 41 | C124: 41 | D124: 53 | E124: 78 | F124: 103 | G124: 62 | H124: 91 | I124: 387 | J124: 62 | K124: 64 | L124: 44 | M124: 49 | N124: =SUM(J124:M124) -> 219 | R124: 24 | S124: 58 | T124: 23 | U124: 72 | X124: =SUM(R124:W124) -> 177 | Y124: 824 | AX124: 0 | AY124: 824
A125: BUENAVISTA | E125: 5 | F125: 4 | G125: 9 | H125: 11 | I125: 29 | U125: 25 | X125: =SUM(R125:W125) -> 25 | Y125: 54 | AX125: 0 | AY125: 54
A126: CAÑO NEGRO | B126: 4 | C126: 4 | D126: 5 | E126: 3 | G126: 1 | H126: 3 | I126: 12 | Y126: 16 | AX126: 0 | AY126: 16
A127: CAÑO SANTO DOMINGO | B127: 5 | C127: 5 | D127: 2 | E127: 11 | F127: 9 | G127: 4 | H127: 11 | I127: 37 | R127: 24 | X127: =SUM(R127:W127) -> 24 | Y127: 66 | AX127: 0 | AY127: 66
A128: EL CONVENIO | B128: 1 | C128: 1 | D128: 5 | E128: 3 | F128: 3 | G128: 3 | H128: 3 | I128: 17 | Y128: 18 | AX128: 0 | AY128: 18
A129: EL GUAMO | B129: 4 | C129: 4 | D129: 3 | E129: 14 | F129: 22 | G129: 11 | H129: 12 | I129: 62 | Y129: 66 | AX129: 0 | AY129: 66
A130: GABRIEL GARCIA MARQUEZ | B130: 3 | C130: 3 | D130: 3 | E130: 4 | F130: 1 | G130: 4 | H130: 7 | I130: 19 | Y130: 22 | AX130: 0 | AY130: 22
A131: LAS QUILLAS | B131: 2 | C131: 2 | D131: 4 | E131: 4 | F131: 7 | H131: 3 | I131: 18 | Y131: 20 | AX131: 0 | AY131: 20
A132: MANUELA BELTRAN | B132: 2 | C132: 2 | D132: 7 | E132: 14 | F132: 27 | G132: 7 | H132: 6 | I132: 61 | J132: 22 | K132: 18 | L132: 17 | M132: 19 | N132: =SUM(J132:M132) -> 76 | S132: 37 | X132: =SUM(R132:W132) -> 37 | Y132: 176 | AX132: 0 | AY132: 176
A133: MONSERRATE | B133: 8 | C133: 8 | D133: 13 | E133: 7 | F133: 18 | G133: 9 | H133: 18 | I133: 65 | J133: 40 | K133: 46 | L133: 27 | M133: 30 | N133: =SUM(J133:M133) -> 143 | S133: 21 | T133: 23 | X133: =SUM(R133:W133) -> 44 | Y133: 260 | AX133: 0 | AY133: 260
A134: NARANJALES | B134: 5 | C134: 5 | D134: 4 | E134: 7 | F134: 4 | G134: 2 | H134: 6 | I134: 23 | U134: 25 | X134: =SUM(R134:W134) -> 25 | Y134: 53 | AX134: 0 | AY134: 53
A135: SABALETA BAJO CAGUAN | B135: 1 | C135: 1 | F135: 5 | G135: 2 | H135: 7 | I135: 14 | Y135: =+X135+Q135+N135+I135+C135 -> 15 | AX135: =+AW135+AP135+AM135+AH135+AA135 -> 0 | AY135: =+AX135+Y135 -> 15
A136: SANTA ELENA | B136: 4 | C136: 4 | D136: 5 | E136: 2 | G136: 5 | H136: 3 | I136: =SUM(D136:H136) -> 15 | U136: 22 | X136: =SUM(R136:W136) -> 22 | Y136: 41 | AX136: 0 | AY136: 41
A137: SIMON BOLIVAR | B137: 2 | C137: 2 | D137: 2 | E137: 4 | F137: 3 | G137: 5 | H137: 1 | I137: 15 | Y137: 17 | AX137: 0 | AY137: 17
A138: I. E. R. PEÑAS COLORADAS | B138: 15 | C138: 15 | D138: 29 | E138: 47 | F138: 50 | G138: 47 | H138: 53 | I138: 226 | J138: 26 | K138: 21 | L138: 23 | M138: 12 | N138: =SUM(J138:M138) -> 82 | S138: 43 | X138: =SUM(R138:W138) -> 43 | Y138: 366 | AX138: 0 | AY138: 366
A139: ANIMAS ALTAS | D139: 4 | E139: 12 | F139: 2 | G139: 4 | H139: 7 | I139: 29 | Y139: 29 | AX139: 0 | AY139: 29
A140: BELLA LUZ DE LAS ANIMAS | B140: 3 | C140: 3 | D140: 7 | E140: 3 | F140: 8 | G140: 9 | H140: 4 | I140: 31 | J140: 7 | K140: 1 | L140: 14 | M140: 6 | N140: =SUM(J140:M140) -> 28 | Y140: 62 | AX140: 0 | AY140: 62
A141: DOCE DE OCTUBRE | B141: 5 | C141: 5 | D141: 5 | E141: 7 | F141: 9 | G141: 3 | H141: 7 | I141: 31 | Y141: 36 | AX141: 0 | AY141: 36
A142: EL VENADO | B142: 2 | C142: 2 | D142: 4 | E142: 8 | F142: 12 | G142: 11 | H142: 9 | I142: 44 | J142: 15 | N142: =SUM(J142:M142) -> 15 | S142: 21 | X142: =SUM(R142:W142) -> 21 | Y142: 82 | AX142: 0 | AY142: 82
A143: JOSE HILARIO ORTIZ | B143: 2 | C143: 2 | D143: 1 | E143: 3 | F143: 4 | G143: 5 | H143: 6 | I143: 19 | Y143: 21 | AX143: 0 | AY143: 21
A144: JUAN PABLO II | E144: 3 | F144: 3 | G144: 4 | H144: 4 | I144: 14 | J144: 4 | K144: 20 | L144: 9 | M144: 6 | N144: =SUM(J144:M144) -> 39 | S144: 22 | X144: =SUM(R144:W144) -> 22 | Y144: 75 | AX144: 0 | AY144: 75
A145: LAGUNA VERDE | B145: 1 | C145: 1 | D145: 2 | E145: 3 | F145: 11 | G145: 6 | H145: 10 | I145: 32 | Y145: 33 | AX145: 0 | AY145: 33
A146: LOS ANGELES | B146: 2 | C146: 2 | D146: 6 | E146: 8 | F146: 1 | G146: 5 | H146: 6 | I146: 26 | Y146: 28 | AX146: 0 | AY146: 28
A147: I. E. R. SANTA CRUZ DEL AGUILA | B147: 14 | C147: 14 | D147: 47 | E147: 45 | F147: 48 | G147: 21 | H147: 28 | I147: 189 | J147: 11 | K147: 15 | L147: 6 | M147: 7 | N147: =SUM(J147:M147) -> 39 | Y147: 242 | AX147: 0 | AY147: 242
A148: AGUAS CLARAS | B148: 1 | C148: 1 | D148: 3 | E148: 4 | F148: 4 | H148: 5 | I148: 16 | Y148: 17 | AX148: 0 | AY148: 17
A149: EL AGUILA | B149: 4 | C149: 4 | D149: 3 | E149: 10 | F149: 9 | G149: 4 | H149: 1 | I149: 27 | J149: 11 | K149: 15 | L149: 6 | M149: 7 | N149: =SUM(J149:M149) -> 39 | Y149: 70 | AX149: 0 | AY149: 70
A150: EL RECREO | B150: 1 | C150: 1 | D150: 2 | E150: 3 | F150: 4 | G150: 1 | H150: 3 | I150: 13 | Y150: 14 | AX150: 0 | AY150: 14
A151: EL RECREO ALTO | B151: 3 | C151: 3 | D151: 15 | E151: 6 | F151: 12 | G151: 2 | H151: 4 | I151: 39 | Y151: 42 | AX151: 0 | AY151: 42
A152: FRANCISCO JOSE DE CALDAS | B152: 1 | C152: 1 | D152: 3 | E152: 8 | F152: 5 | G152: 1 | H152: 1 | I152: 18 | Y152: 19 | AX152: 0 | AY152: 19
A153: LAS DELICIAS | B153: 1 | C153: 1 | D153: 7 | E153: 3 | F153: 5 | G153: 2 | H153: 6 | I153: 23 | Y153: 24 | AX153: 0 | AY153: 24
A154: NUEVA FLORESTA | B154: 2 | C154: 2 | D154: 5 | E154: 3 | F154: 3 | G154: 3 | H154: 3 | I154: 17 | Y154: 19 | AX154: 0 | AY154: 19
A155: TIGRERA BAJA | D155: 5 | E155: 4 | F155: 3 | G155: 4 | H155: 3 | I155: 19 | Y155: 19 | AX155: 0 | AY155: 19
A156: YAICOGE | B156: 1 | C156: 1 | D156: 4 | E156: 4 | F156: 3 | G156: 4 | H156: 2 | I156: 17 | Y156: 18 | AX156: 0 | AY156: 18
A157: I. E. R. SANTAFE DEL CAGUAN | B157: 46 | C157: 46 | D157: 82 | E157: 110 | F157: 117 | G157: 90 | H157: 83 | I157: 482 | J157: 74 | K157: 46 | L157: 37 | M157: 43 | N157: =SUM(J157:M157) -> 200 | O157: 24 | P157: 8 | Q157: =SUM(O157:P157) -> 32 | Y157: 760 | AX157: 0 | AY157: 760
A158: EL BOLIVAR | D158: 4 | E158: 7 | F158: 8 | G158: 9 | H158: 2 | I158: 30 | Y158: 30 | AX158: 0 | AY158: 30
A159: EL DANUBIO | B159: 1 | C159: 1 | D159: 8 | E159: 10 | F159: 8 | G159: 9 | H159: 2 | I159: 37 | Y159: 38 | AX159: 0 | AY159: 38
A160: EL JARDIN | D160: 4 | E160: 3 | F160: 6 | G160: 5 | H160: 5 | I160: 23 | Y160: 23 | AX160: 0 | AY160: 23
A161: EL PORE | B161: 1 | C161: 1 | D161: 8 | E161: 4 | F161: 7 | G161: 5 | H161: 11 | I161: 35 | Y161: 36 | AX161: 0 | AY161: 36
A162: EL PORVENIR NO. 3 | B162: 5 | C162: 5 | D162: 1 | E162: 15 | F162: 5 | G162: 5 | H162: 7 | I162: 33 | Y162: 38 | AX162: 0 | AY162: 38
A163: EL RENACER DE ARMERO | B163: 2 | C163: 2 | D163: 3 | E163: 5 | F163: 5 | G163: 4 | H163: 3 | I163: 20 | Y163: 22 | AX163: 0 | AY163: 22
A164: LA PAZ NO. 3 | B164: 5 | C164: 5 | D164: 7 | E164: 9 | F164: 13 | G164: 11 | H164: 12 | I164: 52 | Y164: 57 | AX164: 0 | AY164: 57
A165: LA REDONDA | D165: 1 | E165: 1 | F165: 18 | G165: 5 | H165: 2 | I165: 27 | J165: 17 | N165: =SUM(J165:M165) -> 17 | Y165: 44 | AX165: 0 | AY165: 44
A166: PAZ NO. 2 | B166: 3 | C166: 3 | D166: 5 | E166: 11 | F166: 11 | G166: 12 | H166: 10 | I166: 49 | Y166: 52 | AX166: 0 | AY166: 52
A167: SAN ISIDRO | D167: 5 | E167: 9 | F167: 5 | G167: 2 | H167: 3 | I167: 24 | Y167: 24 | AX167: 0 | AY167: 24
A168: SANTA FE DEL CAGUAN | B168: 29 | C168: 29 | D168: 36 | E168: 36 | F168: 31 | G168: 23 | H168: 26 | I168: 152 | J168: 57 | K168: 46 | L168: 37 | M168: 43 | N168: =SUM(J168:M168) -> 183 | O168: 24 | P168: 8 | Q168: =SUM(O168:P168) -> 32 | Y168: 396 | AX168: 0 | AY168: 396
A169: I.E AGROECOLOGICO AMAZONICO | Y169: 0 | Z169: 101 | AA169: =SUM(Z169:Z169) -> 101 | AC169: 266 | AD169: 161 | AE169: 136 | AF169: 126 | AG169: 112 | AH169: =SUM(AB169:AG169) -> 801 | AI169: 94 | AJ169: 77 | AK169: 56 | AL169: 31 | AM169: =SUM(AI169:AL169) -> 258 | AN169: 42 | AO169: 35 | AP169: =SUM(AN169:AO169) -> 77 | AR169: 3 | AS169: 7 | AT169: 18 | AU169: 27 | AW169: =SUM(AQ169:AV169) -> 55 | AX169: 1292 | AY169: 1292
A170: AGROECOLOGICO | Y170: 0 | AC170: 33 | AD170: 29 | AE170: 35 | AF170: 29 | AG170: 29 | AH170: =SUM(AB170:AG170) -> 155 | AI170: 94 | AJ170: 77 | AK170: 56 | AL170: 31 | AM170: =SUM(AI170:AL170) -> 258 | AN170: 42 | AO170: 35 | AP170: =SUM(AN170:AO170) -> 77 | AX170: 490 | AY170: 490
A171: ATANASIO GIRARDOT | Y171: 0 | Z171: 77 | AA171: =SUM(Z171:Z171) -> 77 | AC171: 170 | AD171: 101 | AE171: 75 | AF171: 66 | AG171: 56 | AH171: =SUM(AB171:AG171) -> 468 | AR171: 3 | AS171: 7 | AT171: 18 | AU171: 27 | AW171: =SUM(AQ171:AV171) -> 55 | AX171: 600 | AY171: 600
A172: BUENOS AIRES | Y172: 0 | Z172: 24 | AA172: =SUM(Z172:Z172) -> 24 | AC172: 63 | AD172: 31 | AE172: 26 | AF172: 31 | AG172: 27 | AH172: =SUM(AB172:AG172) -> 178 | AX172: 202 | AY172: 202
A173: I.E EL CHAIRA JOSE MARIA CORDOBA | Y173: 0 | Z173: 146 | AA173: =SUM(Z173:Z173) -> 146 | AB173: 44 | AC173: 177 | AD173: 175 | AE173: 161 | AF173: 135 | AG173: 150 | AH173: =SUM(AB173:AG173) -> 842 | AI173: 212 | AJ173: 170 | AK173: 118 | AL173: 114 | AM173: =SUM(AI173:AL173) -> 614 | AN173: 109 | AO173: 50 | AP173: =SUM(AN173:AO173) -> 159 | AS173: 23 | AT173: 41 | AU173: 4 | AV173: 32 | AW173: =SUM(AQ173:AV173) -> 100 | AX173: 1861 | AY173: 1861
A174: EL CHAIRA | Y174: 0 | AI174: 134 | AJ174: 105 | AK174: 118 | AL174: 114 | AM174: =SUM(AI174:AL174) -> 471 | AN174: 109 | AO174: 50 | AP174: =SUM(AN174:AO174) -> 159 | AS174: 23 | AT174: 41 | AU174: 4 | AV174: 32 | AW174: =SUM(AQ174:AV174) -> 100 | AX174: 730 | AY174: 730
A175: JOSE MARIA CORDOBA | Y175: 0 | Z175: 82 | AA175: =SUM(Z175:Z175) -> 82 | AB175: 44 | AC175: 97 | AD175: 125 | AE175: 107 | AF175: 87 | AG175: 114 | AH175: =SUM(AB175:AG175) -> 574 | AI175: 78 | AJ175: 65 | AM175: =SUM(AI175:AL175) -> 143 | AX175: 799 | AY175: 799
A176: PRIMERO DE AGOSTO | Y176: 0 | Z176: 64 | AA176: =SUM(Z176:Z176) -> 64 | AC176: 80 | AD176: 50 | AE176: 54 | AF176: 48 | AG176: 36 | AH176: =SUM(AB176:AG176) -> 268 | AX176: 332 | AY176: 332
A177: I.E. R. DIVINO NIÑO | B177: 36 | C177: 36 | D177: 42 | E177: 45 | F177: 41 | G177: 34 | H177: 27 | I177: =SUM(D177:H177) -> 189 | J177: 18 | K177: 18 | L177: 16 | M177: 2 | N177: =SUM(J177:M177) -> 54 | T177: 8 | U177: 14 | V177: 1 | X177: =SUM(R177:W177) -> 23 | Y177: 302 | AX177: 0 | AY177: 302
A178: ALTO BONITO | B178: 2 | C178: 2 | D178: 2 | E178: 2 | F178: 2 | H178: 2 | I178: 8 | Y178: 10 | AX178: 0 | AY178: 10
A179: BOCANA DEL ANAYA | B179: 2 | C179: 2 | D179: 8 | E179: 5 | F179: 5 | G179: 1 | H179: 2 | I179: 21 | Y179: 23 | AX179: 0 | AY179: 23
A180: CAMPOALEGRE | B180: 4 | C180: 4 | D180: 1 | E180: 2 | F180: 3 | G180: 2 | H180: 3 | I180: 11 | Y180: 15 | AX180: 0 | AY180: 15
A181: DIVINO NIÑO # 2 | B181: 10 | C181: 10 | D181: 6 | E181: 12 | F181: 8 | G181: 6 | H181: 7 | I181: 39 | J181: 18 | K181: 18 | L181: 16 | M181: 2 | N181: =SUM(J181:M181) -> 54 | T181: 8 | U181: 5 | X181: =SUM(R181:W181) -> 13 | Y181: 116 | AX181: 0 | AY181: 116
A182: EL RUBI | B182: 3 | C182: 3 | D182: 3 | E182: 2 | F182: 2 | G182: 2 | H182: 2 | I182: 11 | Y182: 14 | AX182: 0 | AY182: 14
A183: FUNDACION | B183: 7 | C183: 7 | D183: 10 | E183: 2 | F183: 4 | G183: 5 | H183: 3 | I183: 24 | U183: 9 | V183: 1 | X183: =SUM(R183:W183) -> 10 | Y183: 41 | AX183: 0 | AY183: 41
A184: LAS MERCEDES | D184: 5 | E184: 6 | F184: 5 | G184: 1 | I184: 17 | Y184: 17 | AX184: 0 | AY184: 17
A185: RIO CLARO | B185: 4 | C185: 4 | D185: 1 | E185: 6 | F185: 5 | G185: 3 | H185: 1 | I185: 16 | Y185: 20 | AX185: 0 | AY185: 20
A186: RISARALDA | B186: 1 | C186: 1 | D186: 2 | E186: 2 | F186: 3 | G186: 5 | H186: 3 | I186: 15 | Y186: 16 | AX186: 0 | AY186: 16
A187: SAN ANTONIO DEL HIGUERON | B187: 2 | C187: 2 | D187: 2 | E187: 3 | F187: 4 | G187: 5 | H187: 3 | I187: 17 | Y187: 19 | AX187: 0 | AY187: 19
A188: VISTA HERMOSA | B188: 1 | C188: 1 | D188: 2 | E188: 3 | G188: 4 | H188: 1 | I188: 10 | Y188: 11 | AX188: 0 | AY188: 11
A189: I.E. R. EL EDEN | B189: 34 | C189: 34 | D189: 37 | E189: 38 | F189: 35 | G189: 27 | H189: 30 | I189: 167 | J189: 26 | K189: 32 | L189: 24 | M189: 15 | N189: =SUM(J189:M189) -> 97 | Y189: 298 | AX189: 0 | AY189: 298
A190: ALTO ARENOSO | B190: 3 | C190: 3 | D190: 5 | E190: 2 | F190: 1 | G190: 3 | H190: 1 | I190: 12 | Y190: 15 | AX190: 0 | AY190: 15
A191: EL CAIRO | B191: 1 | C191: 1 | D191: 3 | E191: 1 | G191: 2 | H191: 2 | I191: 8 | Y191: 9 | AX191: 0 | AY191: 9
A192: EL EDEN | B192: 4 | C192: 4 | D192: 8 | E192: 1 | F192: 3 | G192: 7 | H192: 7 | I192: 26 | J192: 6 | K192: 2 | L192: 1 | N192: =SUM(J192:M192) -> 9 | Y192: 39 | AX192: 0 | AY192: 39
A193: EL TRIUNFO | B193: 1 | C193: 1 | E193: 2 | F193: 1 | G193: 3 | I193: 6 | Y193: 7 | AX193: 0 | AY193: 7
A194: LA PRIMAVERA | B194: 9 | C194: 9 | D194: 8 | E194: 10 | F194: 9 | G194: 6 | H194: 5 | I194: 38 | J194: 7 | K194: 15 | L194: 10 | M194: 6 | N194: =SUM(J194:M194) -> 38 | Y194: 85 | AX194: 0 | AY194: 85
A195: LA REFORMA | B195: 7 | C195: 7 | D195: 5 | E195: 7 | F195: 10 | G195: 1 | H195: 6 | I195: 29 | J195: 8 | K195: 5 | L195: 3 | N195: =SUM(J195:M195) -> 16 | Y195: 52 | AX195: 0 | AY195: 52
A196: LOS ESPEJOS | B196: 2 | C196: 2 | D196: 5 | E196: 9 | F196: 6 | G196: 2 | H196: 7 | I196: 29 | J196: 5 | K196: 10 | L196: 10 | M196: 9 | N196: =SUM(J196:M196) -> 34 | Y196: 65 | AX196: 0 | AY196: 65
A197: TRIUNFO ALTO | B197: 7 | C197: 7 | D197: 3 | E197: 6 | F197: 5 | G197: 3 | H197: 2 | I197: 19 | Y197: 26 | AX197: 0 | AY197: 26
A198: I.E. R. LA SARDINATA | B198: 38 | C198: 38 | D198: 75 | E198: 72 | F198: 54 | G198: 52 | H198: 34 | I198: 287 | J198: 15 | K198: 4 | L198: 3 | M198: 4 | N198: =SUM(J198:M198) -> 26 | Y198: 351 | AX198: 0 | AY198: 351
A199: ALTA SARDINATA | D199: 3 | E199: 4 | F199: 1 | G199: 3 | H199: 1 | I199: 12 | Y199: =+X199+Q199+N199+I199+C199 -> 12 | AX199: =+AW199+AP199+AM199+AH199+AA199 -> 0 | AY199: =+AX199+Y199 -> 12
A200: ANDAKI | B200: 10 | C200: 10 | D200: 12 | E200: 14 | F200: 13 | G200: 10 | H200: 8 | I200: 57 | Y200: 67 | AX200: 0 | AY200: 67
A201: DIVINO NIÑO 1 | B201: 1 | C201: 1 | D201: 8 | E201: 5 | F201: 2 | G201: 4 | H201: 1 | I201: 20 | Y201: 21 | AX201: 0 | AY201: 21
... 1206 more rows

Sheet 1.4
A1: MATRICULA PRIVADA POR MUNICIPIO, ZONA Y NIVELES
B3: ZONA URBANA | G3: TOTAL
A4: MUNICIPIO | B4: PREESCOLAR | C4: PRIMARIA | D4: SECUNDARIA | E4: MEDIA | F4: CICLOS | G4: MATRICULA
A5: DONCELLO | B5: 56 | C5: 53 | G5: =SUM(B5:F5) -> 109
A6: SAN VICENTE DEL CAGUÁN | B6: 41 | C6: 136 | D6: 51 | F6: 554 | G6: =SUM(B6:F6) -> 782
A7: MATRICULA TOTAL PRIVADA | B7: 97 | C7: 189 | D7: 51 | E7: 0 | F7: 554 | G7: =SUM(G5:G6) -> 891
A8: =INDICE!A9 -> Fuente: SIMAT Corte 30 de Septiembre 2012
A12: ADIELA MOLINA CUTIVA | D12: FENER DE LOS RIOS BARRERA
A13: Secretaria de Eduación | D13: Jefe Oficina de Cobertura
A15: Elaboró Gustavo Carvajal Peralta

Sheet 1.5
A1: MATRICULA PRIVADA POR MUNICIPIO, ESTABLECIMIENTO EDUCATIVO, SEDES, GRADOS, ZONA Y NIVELES
A3: MUNICIPIO, ESTABLECIMIENTO EDUCATIVO Y POR SEDES | B3: ZONA URBANA Y POR NIVELES
B4: PREESCOLAR | F4: PRIMARIA | L4: SECUNADARIA | Q4: MEDIA | T4: CICLOS | AA4: TOTAL
B5: JRD I/KIND | C5: PRE-JARDIN | D5: 0 | E5: TOTAL | F5: 1 | G5: 2 | H5: 3 | I5: 4 | J5: 5 | K5: TOTAL | L5: 6 | M5: 7 | N5: 8 | O5: 9 | P5: TOTAL | Q5: 10 | R5: 11 | S5: TOTAL | T5: C1 | U5: C2 | V5: C3 | W5: C4 | X5: C5 | Y5: C6 | Z5: TOTAL | AA5: MATRICULA
A6: LICEO INFANTIL WINNIE POOH | B6: 20 | C6: 19 | D6: 17 | E6: =SUM(B6:D6) -> 56 | F6: 20 | G6: 15 | H6: 11 | I6: 7 | K6: =SUM(F6:J6) -> 53 | AA6: =+Z6+S6+P6+K6+E6 -> 109
A7: DONCELLO | B7: 20 | C7: 19 | D7: 17 | E7: =SUM(B7:D7) -> 56 | F7: 20 | G7: 15 | H7: 11 | I7: 7 | K7: =SUM(F7:J7) -> 53 | AA7: =+Z7+S7+P7+K7+E7 -> 109
A8: I.E CIUDADELA JUVENIL AMAZONICA DON BOSCO | W8: 1 | X8: 13 | Y8: 12 | Z8: =SUM(T8:Y8) -> 26 | AA8: 26
A9: COLEGIO BASICO EL BERLIN - SEDE PRINCIPAL | U9: 4 | V9: 17 | W9: 29 | X9: 56 | Y9: 31 | Z9: =SUM(T9:Y9) -> 137 | AA9: 137
A10: IDEHA_SANVICENTE | V10: 14 | W10: 35 | Y10: 71 | Z10: =SUM(T10:Y10) -> 120 | AA10: 120
A11: INST FRANCISCO DE ASIS | T11: 6 | U11: 10 | V11: 70 | W11: 92 | X11: 59 | Y11: 34 | Z11: 271 | AA11: 271
A12: FRANCISCO_ASIS_SOLANO | X12: 3 | Z12: 3 | AA12: 3
A13: FRANCISCO_CARTAGENA | T13: 6 | U13: 2 | V13: 21 | W13: 18 | X13: 27 | Y13: 9 | Z13: 83 | AA13: 83
A14: INST FRANCISCO DE ASIS | U14: 8 | V14: 49 | W14: 74 | X14: 29 | Y14: 25 | Z14: 185 | AA14: 185
A15: LICEO MODERNO INFANTIL | B15: 15 | C15: 14 | D15: 12 | E15: =SUM(B15:D15) -> 41 | F15: 28 | G15: 31 | H15: 33 | I15: 20 | J15: 24 | K15: =SUM(F15:J15) -> 136 | L15: 16 | M15: 18 | N15: 8 | O15: 9 | P15: =SUM(L15:O15) -> 51 | AA15: 228
A16: SAN VICENTE DEL CAGUÁN | B16: 15 | C16: 14 | D16: 12 | E16: =SUM(B16:D16) -> 41 | F16: 28 | G16: 31 | H16: 33 | I16: 20 | J16: 24 | K16: =SUM(F16:J16) -> 136 | L16: 16 | M16: 18 | N16: 8 | O16: 9 | P16: =SUM(L16:O16) -> 51 | S16: =SUM(Q16:R16) -> 0 | T16: 6 | U16: 14 | V16: 101 | W16: 157 | X16: 128 | Y16: 158 | Z16: 554 | AA16: 782
B17: =+B16+B7 -> 35 | C17: =+C16+C7 -> 33 | D17: =+D16+D7 -> 29 | E17: 97 | F17: 48 | G17: 46 | H17: 44 | I17: 27 | J17: 24 | K17: 189 | L17: 16 | M17: 18 | N17: 8 | O17: 9 | P17: 51 | Q17: 0 | R17: 0 | S17: 0 | T17: 6 | U17: 14 | V17: 101 | W17: 157 | X17: 128 | Y17: 158 | Z17: 554 | AA17: 891
A18: =INDICE!A9 -> Fuente: SIMAT Corte 30 de Septiembre 2012
A21: ADIELA MOLINA CUTIVA | F21: FENER DE LOS RIOS BARRERA
A22: Secretaria de Eduación | F22: Jefe Oficina de Cobertura
A24: Elaboró Gustavo Carvajal Peralta

Sheet 2
B1: MATRICULA OFICIAL Y PRIVADA POR MODELO EDUCATIVO
B4: PROGRAMA | C4: ALUMNOS
B5: A CRECER | C5: 385
B6: ACELERACIÓN DEL APRENDIZAJE | C6: 143
B7: CAFAM | C7: 2214
B8: CIRCULOS DEL APRENDIZAJE | C8: 92
B9: EDUCACIÓN TRADICIONAL | C9: 32611
B10: ESCUELA NUEVA | C10: 25296
B11: ETNOEDUCACIÓN | C11: 1148
B12: MEDIA RURAL | C12: 99
B13: POST PRIMARIA | C13: 4553
B14: PREESCOLAR NO ESCOLARIZADO/SEMIESCOLARIZADO | C14: 12
B15: PROGRAMA PARA JÓVENES EN EXTRAEDAD Y ADULTOS (DECRETO 3011) | C15: 4108
B16: SER | C16: 271
B17: TELESECUNDARIA | C17: 1631
B18: Total general | C18: 72563
B19: ='0'!B21 -> Fuente: SIMAT Corte 30 de Septiembre 2012
B23: ADIELA MOLINA CUTIVA | C23: FENER DE LOS RIOS BARRERA
B24: Secretaria de Educación | C24: Jefe División de Cobertura
A26: Elaboró: Luz Angela Medina, Jefe de Permanencia

Sheet 2.1
A1: MATRICULA OFICIAL Y PRIVADA POR MUNICIPIO, MODELO EDUACTIVO Y ZONA
A3: MUNICIPIOS / MODELOS EDUCATIVOS | B3: A CRECER | C3: ACELERACIÓN DEL APRENDIZAJE | D3: CAFAM | E3: CIRCULOS DEL APRENDIZAJE | F3: EDUCACIÓN TRADICIONAL | G3: ESCUELA NUEVA | H3: ETNOEDUCACIÓN | I3: MEDIA RURAL | J3: POST PRIMARIA | K3: PREESCOLAR NO ESCOLARIZADO/SEMIESCOLARIZADO | L3: PROGRAMA PARA JÓVENES EN EXTRAEDAD Y ADULTOS (DECRETO 3011) | M3: SER | N3: TELESECUNDARIA | O3: TOTAL GENERAL
A4: ALBANIA | D4: 1 | F4: 631 | G4: 426 | I4: 25 | J4: 90 | O4: 1173
A5: BELÉN DE LOS ANDAQUIES | B5: 117 | D5: 6 | F5: 1685 | G5: 881 | I5: 24 | J5: 222 | L5: 213 | O5: 3148
A6: CARTAGENA DEL CHAIRÁ | B6: 23 | C6: 44 | D6: 296 | E6: 92 | F6: 2927 | G6: 4243 | L6: 201 | N6: 1294 | O6: 9120
A7: CURILLO | C7: 14 | D7: 161 | F7: 1483 | G7: 710 | J7: 179 | L7: 182 | O7: 2729
A8: DONCELLO | F8: 109 | O8: 109
A9: EL DONCELLO | C9: 20 | D9: 133 | F9: 3529 | G9: 1083 | J9: 195 | L9: 528 | O9: 5488
A10: EL PAUJIL | D10: 41 | F10: 2161 | G10: 953 | J10: 148 | L10: 385 | O10: 3688
A11: LA MONTAÑITA | B11: 45 | C11: 15 | D11: 138 | F11: 1673 | G11: 2353 | J11: 325 | L11: 237 | O11: 4786
A12: MILÁN | B12: 26 | D12: 176 | F12: 1216 | G12: 1098 | H12: 280 | J12: 225 | L12: 35 | O12: 3056
A13: MORELIA | D13: 41 | F13: 520 | G13: 286 | J13: 117 | L13: 108 | O13: 1072
A14: PUERTO RICO | D14: 264 | F14: 4531 | G14: 3094 | H14: 76 | J14: 464 | L14: 329 | O14: 8758
A15: SAN JOSÉ DEL FRAGUA | B15: 43 | D15: 144 | F15: 1970 | G15: 1064 | H15: 194 | J15: 310 | K15: 9 | L15: 512 | N15: 71 | O15: 4317
A16: SAN VICENTE DEL CAGUÁN | B16: 62 | C16: 50 | D16: 443 | F16: 7156 | G16: 6009 | H16: 68 | J16: 1291 | K16: 3 | L16: 896 | M16: 271 | N16: 266 | O16: 16515
A17: SOLANO | B17: 26 | D17: 151 | F17: 1043 | G17: 1558 | H17: 530 | J17: 294 | L17: 289 | O17: 3891
A18: SOLITA | B18: 29 | D18: 79 | F18: 1203 | G18: 673 | I18: 19 | J18: 282 | L18: 114 | O18: 2399
A19: VALPARAÍSO | B19: 14 | D19: 140 | F19: 774 | G19: 865 | I19: 31 | J19: 411 | L19: 79 | O19: 2314
A20: TOTAL GENERAL | B20: 385 | C20: 143 | D20: 2214 | E20: 92 | F20: 32611 | G20: 25296 | H20: 1148 | I20: 99 | J20: 4553 | K20: 12 | L20: 4108 | M20: 271 | N20: 1631 | O20: 72563
A21: ='0'!B21 -> Fuente: SIMAT Corte 30 de Septiembre 2012
G24: ADIELA MOLINA CUTIVA | O24: FENER DE LOS RIOS BARRERA
A25: Elaboró: Luz Angela Medina, Jefe de Permanencia | G25: Secretaria de Educación | O25: Jefe División de Cobertura

Sheet 2.2
A1: MATRICULA OFCIAL Y PRIVADA POR MUNICIPIO, MODELO EDUCACTIVO, GENERO Y ZONA
A3: MUNICIPIOS | B3: MODELO_EDUCATIVO | C3: NO OFICIAL | E3: TOTAL URBANA | F3: TOTAL NO OFICIAL | G3: OFICIAL | L3: TOTAL URBANA | M3: TOTAL OFICIAL | N3: TOTAL GENERAL
C4: URBANA | G4: RURAL | I4: TOTAL RURAL | J4: URBANA
C5: FEMENINO | D5: MASCULINO | G5: FEMENINO | H5: MASCULINO | J5: FEMENINO | K5: MASCULINO
A6: ALBANIA | B6: CAFAM | G6: 1 | I6: 1 | M6: 1 | N6: 1
B7: EDUCACIÓN TRADICIONAL | J7: 332 | K7: 299 | L7: 631 | M7: 631 | N7: 631
B8: ESCUELA NUEVA | G8: 210 | H8: 216 | I8: 426 | M8: 426 | N8: 426
B9: MEDIA RURAL | G9: 13 | H9: 12 | I9: 25 | M9: 25 | N9: 25
B10: POST PRIMARIA | G10: 38 | H10: 52 | I10: 90 | M10: 90 | N10: 90
A11: Total ALBANIA | G11: 262 | H11: 280 | I11: 542 | J11: 332 | K11: 299 | L11: 631 | M11: 1173 | N11: 1173
A12: BELÉN DE LOS ANDAQUIES | B12: A CRECER | G12: 47 | H12: 26 | I12: 73 | J12: 29 | K12: 15 | L12: 44 | M12: 117 | N12: 117
B13: CAFAM | G13: 5 | H13: 1 | I13: 6 | M13: 6 | N13: 6
B14: EDUCACIÓN TRADICIONAL | G14: 11 | H14: 12 | I14: 23 | J14: 859 | K14: 803 | L14: 1662 | M14: 1685 | N14: 1685
B15: ESCUELA NUEVA | G15: 420 | H15: 461 | I15: 881 | M15: 881 | N15: 881
B16: MEDIA RURAL | G16: 12 | H16: 12 | I16: 24 | M16: 24 | N16: 24
B17: POST PRIMARIA | G17: 97 | H17: 125 | I17: 222 | M17: 222 | N17: 222
B18: PROGRAMA PARA JÓVENES EN EXTRAEDAD Y ADULTOS (DECRETO 3011) | G18: 36 | H18: 55 | I18: 91 | J18: 58 | K18: 64 | L18: 122 | M18: 213 | N18: 213
A19: Total BELÉN DE LOS ANDAQUIES | G19: 628 | H19: 692 | I19: 1320 | J19: 946 | K19: 882 | L19: 1828 | M19: 3148 | N19: 3148
A20: CARTAGENA DEL CHAIRÁ | B20: A CRECER | G20: 9 | H20: 14 | I20: 23 | M20: 23 | N20: 23
B21: ACELERACIÓN DEL APRENDIZAJE | J21: 23 | K21: 21 | L21: 44 | M21: 44 | N21: 44
B22: CAFAM | G22: 127 | H22: 169 | I22: 296 | M22: 296 | N22: 296
B23: CIRCULOS DEL APRENDIZAJE | J23: 38 | K23: 54 | L23: 92 | M23: 92 | N23: 92
B24: EDUCACIÓN TRADICIONAL | G24: 36 | H24: 29 | I24: 65 | J24: 1524 | K24: 1338 | L24: 2862 | M24: 2927 | N24: 2927
B25: ESCUELA NUEVA | G25: 1907 | H25: 2336 | I25: 4243 | M25: 4243 | N25: 4243
B26: PROGRAMA PARA JÓVENES EN EXTRAEDAD Y ADULTOS (DECRETO 3011) | G26: 27 | H26: 19 | I26: 46 | J26: 89 | K26: 66 | L26: 155 | M26: 201 | N26: 201
B27: TELESECUNDARIA | G27: 600 | H27: 694 | I27: 1294 | M27: 1294 | N27: 1294
A28: Total CARTAGENA DEL CHAIRÁ | G28: 2706 | H28: 3261 | I28: 5967 | J28: 1674 | K28: 1479 | L28: 3153 | M28: 9120 | N28: 9120
A29: CURILLO | B29: ACELERACIÓN DEL APRENDIZAJE | J29: 8 | K29: 6 | L29: 14 | M29: 14 | N29: 14
B30: CAFAM | G30: 85 | H30: 76 | I30: 161 | M30: 161 | N30: 161
B31: EDUCACIÓN TRADICIONAL | G31: 15 | H31: 15 | I31: 30 | J31: 728 | K31: 725 | L31: 1453 | M31: 1483 | N31: 1483
B32: ESCUELA NUEVA | G32: 332 | H32: 378 | I32: 710 | M32: 710 | N32: 710
B33: POST PRIMARIA | G33: 79 | H33: 100 | I33: 179 | M33: 179 | N33: 179
B34: PROGRAMA PARA JÓVENES EN EXTRAEDAD Y ADULTOS (DECRETO 3011) | G34: 52 | H34: 44 | I34: 96 | J34: 45 | K34: 41 | L34: 86 | M34: 182 | N34: 182
A35: Total CURILLO | G35: 563 | H35: 613 | I35: 1176 | J35: 781 | K35: 772 | L35: 1553 | M35: 2729 | N35: 2729
A36: DONCELLO | B36: EDUCACIÓN TRADICIONAL | C36: 55 | D36: 54 | E36: 109 | F36: 109 | N36: 109
A37: Total DONCELLO | C37: 55 | D37: 54 | E37: 109 | F37: 109 | N37: 109
A38: EL DONCELLO | B38: ACELERACIÓN DEL APRENDIZAJE | J38: 8 | K38: 12 | L38: 20 | M38: 20 | N38: 20
B39: CAFAM | G39: 43 | H39: 64 | I39: 107 | J39: 16 | K39: 10 | L39: 26 | M39: 133 | N39: 133
B40: EDUCACIÓN TRADICIONAL | G40: 87 | H40: 127 | I40: 214 | J40: 1706 | K40: 1609 | L40: 3315 | M40: 3529 | N40: 3529
B41: ESCUELA NUEVA | G41: 445 | H41: 638 | I41: 1083 | M41: 1083 | N41: 1083
B42: POST PRIMARIA | G42: 90 | H42: 105 | I42: 195 | M42: 195 | N42: 195
B43: PROGRAMA PARA JÓVENES EN EXTRAEDAD Y ADULTOS (DECRETO 3011) | J43: 310 | K43: 218 | L43: 528 | M43: 528 | N43: 528
A44: Total EL DONCELLO | G44: 665 | H44: 934 | I44: 1599 | J44: 2040 | K44: 1849 | L44: 3889 | M44: 5488 | N44: 5488
A45: EL PAUJIL | B45: CAFAM | G45: 24 | H45: 17 | I45: 41 | M45: 41 | N45: 41
B46: EDUCACIÓN TRADICIONAL | J46: 1075 | K46: 1086 | L46: 2161 | M46: 2161 | N46: 2161
B47: ESCUELA NUEVA | G47: 460 | H47: 493 | I47: 953 | M47: 953 | N47: 953
B48: POST PRIMARIA | G48: 71 | H48: 77 | I48: 148 | M48: 148 | N48: 148
B49: PROGRAMA PARA JÓVENES EN EXTRAEDAD Y ADULTOS (DECRETO 3011) | G49: 17 | H49: 30 | I49: 47 | J49: 188 | K49: 150 | L49: 338 | M49: 385 | N49: 385
A50: Total EL PAUJIL | G50: 572 | H50: 617 | I50: 1189 | J50: 1263 | K50: 1236 | L50: 2499 | M50: 3688 | N50: 3688
A51: LA MONTAÑITA | B51: A CRECER | G51: 25 | H51: 20 | I51: 45 | M51: 45 | N51: 45
B52: ACELERACIÓN DEL APRENDIZAJE | J52: 3 | K52: 12 | L52: 15 | M52: 15 | N52: 15
B53: CAFAM | G53: 56 | H53: 82 | I53: 138 | M53: 138 | N53: 138
B54: EDUCACIÓN TRADICIONAL | G54: 489 | H54: 498 | I54: 987 | J54: 342 | K54: 344 | L54: 686 | M54: 1673 | N54: 1673
B55: ESCUELA NUEVA | G55: 1069 | H55: 1284 | I55: 2353 | M55: 2353 | N55: 2353
B56: POST PRIMARIA | G56: 154 | H56: 171 | I56: 325 | M56: 325 | N56: 325
B57: PROGRAMA PARA JÓVENES EN EXTRAEDAD Y ADULTOS (DECRETO 3011) | G57: 65 | H57: 74 | I57: 139 | J57: 57 | K57: 41 | L57: 98 | M57: 237 | N57: 237
A58: Total LA MONTAÑITA | G58: 1858 | H58: 2129 | I58: 3987 | J58: 402 | K58: 397 | L58: 799 | M58: 4786 | N58: 4786
A59: MILÁN | B59: A CRECER | G59: 10 | H59: 16 | I59: 26 | M59: 26 | N59: 26
B60: CAFAM | G60: 73 | H60: 90 | I60: 163 | J60: 9 | K60: 4 | L60: 13 | M60: 176 | N60: 176
B61: EDUCACIÓN TRADICIONAL | G61: 381 | H61: 482 | I61: 863 | J61: 168 | K61: 185 | L61: 353 | M61: 1216 | N61: 1216
B62: ESCUELA NUEVA | G62: 492 | H62: 606 | I62: 1098 | M62: 1098 | N62: 1098
B63: ETNOEDUCACIÓN | G63: 132 | H63: 148 | I63: 280 | M63: 280 | N63: 280
B64: POST PRIMARIA | G64: 106 | H64: 119 | I64: 225 | M64: 225 | N64: 225
B65: PROGRAMA PARA JÓVENES EN EXTRAEDAD Y ADULTOS (DECRETO 3011) | G65: 13 | H65: 22 | I65: 35 | M65: 35 | N65: 35
A66: Total MILÁN | G66: 1207 | H66: 1483 | I66: 2690 | J66: 177 | K66: 189 | L66: 366 | M66: 3056 | N66: 3056
A67: MORELIA | B67: CAFAM | G67: 23 | H67: 18 | I67: 41 | M67: 41 | N67: 41
B68: EDUCACIÓN TRADICIONAL | J68: 272 | K68: 248 | L68: 520 | M68: 520 | N68: 520
B69: ESCUELA NUEVA | G69: 136 | H69: 150 | I69: 286 | M69: 286 | N69: 286
B70: POST PRIMARIA | G70: 47 | H70: 70 | I70: 117 | M70: 117 | N70: 117
B71: PROGRAMA PARA JÓVENES EN EXTRAEDAD Y ADULTOS (DECRETO 3011) | J71: 57 | K71: 51 | L71: 108 | M71: 108 | N71: 108
A72: Total MORELIA | G72: 206 | H72: 238 | I72: 444 | J72: 329 | K72: 299 | L72: 628 | M72: 1072 | N72: 1072
A73: PUERTO RICO | B73: CAFAM | G73: 43 | H73: 51 | I73: 94 | J73: 111 | K73: 59 | L73: 170 | M73: 264 | N73: 264
B74: EDUCACIÓN TRADICIONAL | G74: 326 | H74: 352 | I74: 678 | J74: 1901 | K74: 1952 | L74: 3853 | M74: 4531 | N74: 4531
B75: ESCUELA NUEVA | G75: 1387 | H75: 1707 | I75: 3094 | M75: 3094 | N75: 3094
B76: ETNOEDUCACIÓN | G76: 33 | H76: 43 | I76: 76 | M76: 76 | N76: 76
B77: POST PRIMARIA | G77: 225 | H77: 239 | I77: 464 | M77: 464 | N77: 464
B78: PROGRAMA PARA JÓVENES EN EXTRAEDAD Y ADULTOS (DECRETO 3011) | G78: 23 | H78: 9 | I78: 32 | J78: 158 | K78: 139 | L78: 297 | M78: 329 | N78: 329
A79: Total PUERTO RICO | G79: 2037 | H79: 2401 | I79: 4438 | J79: 2170 | K79: 2150 | L79: 4320 | M79: 8758 | N79: 8758
A80: SAN JOSÉ DEL FRAGUA | B80: A CRECER | J80: 30 | K80: 13 | L80: 43 | M80: 43 | N80: 43
B81: CAFAM | G81: 66 | H81: 56 | I81: 122 | J81: 17 | K81: 5 | L81: 22 | M81: 144 | N81: 144
B82: EDUCACIÓN TRADICIONAL | G82: 228 | H82: 248 | I82: 476 | J82: 789 | K82: 705 | L82: 1494 | M82: 1970 | N82: 1970
B83: ESCUELA NUEVA | G83: 481 | H83: 583 | I83: 1064 | M83: 1064 | N83: 1064
B84: ETNOEDUCACIÓN | G84: 79 | H84: 115 | I84: 194 | M84: 194 | N84: 194
B85: POST PRIMARIA | G85: 136 | H85: 174 | I85: 310 | M85: 310 | N85: 310
B86: PREESCOLAR NO ESCOLARIZADO/SEMIESCOLARIZADO | G86: 4 | H86: 5 | I86: 9 | M86: 9 | N86: 9
B87: PROGRAMA PARA JÓVENES EN EXTRAEDAD Y ADULTOS (DECRETO 3011) | G87: 154 | H87: 141 | I87: 295 | J87: 89 | K87: 128 | L87: 217 | M87: 512 | N87: 512
B88: TELESECUNDARIA | G88: 31 | H88: 40 | I88: 71 | M88: 71 | N88: 71
A89: Total SAN JOSÉ DEL FRAGUA | G89: 1179 | H89: 1362 | I89: 2541 | J89: 925 | K89: 851 | L89: 1776 | M89: 4317 | N89: 4317
A90: SAN VICENTE DEL CAGUÁN | B90: A CRECER | G90: 14 | H90: 22 | I90: 36 | J90: 18 | K90: 8 | L90: 26 | M90: 62 | N90: 62
B91: ACELERACIÓN DEL APRENDIZAJE | J91: 21 | K91: 29 | L91: 50 | M91: 50 | N91: 50
B92: CAFAM | G92: 237 | H92: 206 | I92: 443 | M92: 443 | N92: 443
B93: EDUCACIÓN TRADICIONAL | C93: 119 | D93: 109 | E93: 228 | F93: 228 | G93: 676 | H93: 680 | I93: 1356 | J93: 2903 | K93: 2669 | L93: 5572 | M93: 6928 | N93: 7156
B94: ESCUELA NUEVA | G94: 2766 | H94: 3210 | I94: 5976 | J94: 19 | K94: 14 | L94: 33 | M94: 6009 | N94: 6009
B95: ETNOEDUCACIÓN | G95: 43 | H95: 25 | I95: 68 | M95: 68 | N95: 68
B96: POST PRIMARIA | G96: 593 | H96: 698 | I96: 1291 | M96: 1291 | N96: 1291
B97: PREESCOLAR NO ESCOLARIZADO/SEMIESCOLARIZADO | G97: 1 | H97: 2 | I97: 3 | M97: 3 | N97: 3
B98: PROGRAMA PARA JÓVENES EN EXTRAEDAD Y ADULTOS (DECRETO 3011) | C98: 112 | D98: 171 | E98: 283 | F98: 283 | G98: 100 | H98: 83 | I98: 183 | J98: 265 | K98: 165 | L98: 430 | M98: 613 | N98: 896
B99: SER | C99: 139 | D99: 132 | E99: 271 | F99: 271 | N99: 271
B100: TELESECUNDARIA | G100: 129 | H100: 137 | I100: 266 | M100: 266 | N100: 266
A101: Total SAN VICENTE DEL CAGUÁN | C101: 370 | D101: 412 | E101: 782 | F101: 782 | G101: 4559 | H101: 5063 | I101: 9622 | J101: 3226 | K101: 2885 | L101: 6111 | M101: 15733 | N101: 16515
A102: SOLANO | B102: A CRECER | G102: 15 | H102: 11 | I102: 26 | M102: 26 | N102: 26
B103: CAFAM | G103: 70 | H103: 73 | I103: 143 | J103: 3 | K103: 5 | L103: 8 | M103: 151 | N103: 151
B104: EDUCACIÓN TRADICIONAL | J104: 510 | K104: 533 | L104: 1043 | M104: 1043 | N104: 1043
B105: ESCUELA NUEVA | G105: 703 | H105: 855 | I105: 1558 | M105: 1558 | N105: 1558
B106: ETNOEDUCACIÓN | G106: 243 | H106: 287 | I106: 530 | M106: 530 | N106: 530
B107: POST PRIMARIA | G107: 135 | H107: 159 | I107: 294 | M107: 294 | N107: 294
B108: PROGRAMA PARA JÓVENES EN EXTRAEDAD Y ADULTOS (DECRETO 3011) | G108: 89 | H108: 107 | I108: 196 | J108: 42 | K108: 51 | L108: 93 | M108: 289 | N108: 289
A109: Total SOLANO | G109: 1255 | H109: 1492 | I109: 2747 | J109: 555 | K109: 589 | L109: 1144 | M109: 3891 | N109: 3891
A110: SOLITA | B110: A CRECER | G110: 7 | H110: 15 | I110: 22 | J110: 5 | K110: 2 | L110: 7 | M110: 29 | N110: 29
B111: CAFAM | G111: 21 | H111: 22 | I111: 43 | J111: 31 | K111: 5 | L111: 36 | M111: 79 | N111: 79
B112: EDUCACIÓN TRADICIONAL | G112: 11 | H112: 7 | I112: 18 | J112: 594 | K112: 591 | L112: 1185 | M112: 1203 | N112: 1203
B113: ESCUELA NUEVA | G113: 310 | H113: 363 | I113: 673 | M113: 673 | N113: 673
B114: MEDIA RURAL | G114: 8 | H114: 11 | I114: 19 | M114: 19 | N114: 19
B115: POST PRIMARIA | G115: 114 | H115: 168 | I115: 282 | M115: 282 | N115: 282
B116: PROGRAMA PARA JÓVENES EN EXTRAEDAD Y ADULTOS (DECRETO 3011) | J116: 69 | K116: 45 | L116: 114 | M116: 114 | N116: 114
A117: Total SOLITA | G117: 471 | H117: 586 | I117: 1057 | J117: 699 | K117: 643 | L117: 1342 | M117: 2399 | N117: 2399
A118: VALPARAÍSO | B118: A CRECER | G118: 5 | H118: 9 | I118: 14 | M118: 14 | N118: 14
B119: CAFAM | G119: 87 | H119: 53 | I119: 140 | M119: 140 | N119: 140
B120: EDUCACIÓN TRADICIONAL | G120: 7 | H120: 12 | I120: 19 | J120: 368 | K120: 387 | L120: 755 | M120: 774 | N120: 774
B121: ESCUELA NUEVA | G121: 410 | H121: 455 | I121: 865 | M121: 865 | N121: 865
B122: MEDIA RURAL | G122: 13 | H122: 18 | I122: 31 | M122: 31 | N122: 31
B123: POST PRIMARIA | G123: 198 | H123: 213 | I123: 411 | M123: 411 | N123: 411
B124: PROGRAMA PARA JÓVENES EN EXTRAEDAD Y ADULTOS (DECRETO 3011) | J124: 39 | K124: 40 | L124: 79 | M124: 79 | N124: 79
A125: Total VALPARAÍSO | G125: 720 | H125: 760 | I125: 1480 | J125: 407 | K125: 427 | L125: 834 | M125: 2314 | N125: 2314
A126: TOTAL GENERAL | C126: 425 | D126: 466 | E126: 891 | F126: 891 | G126: 18888 | H126: 21911 | I126: 40799 | J126: 15926 | K126: 14947 | L126: 30873 | M126: 71672 | N126: 72563
A128: =INDICE!A9 -> Fuente: SIMAT Corte 30 de Septiembre 2012
G131: ADIELA MOLINA CUTIVA | O131: FENER DE LOS RIOS BARRERA
A132: Elaboró: Luz Angela Medina, Jefe de Permanencia | G132: Secretaria de Educación | O132: Jefe División de Cobertura

Sheet 3
B1: MATRICULA OFICIAL Y PRIVADA POR MUNICIPIO Y EDAD EN GRUPOS ETAREOS
B3: MUNICIPIO | C3: EDAD
C4: ( 0 A 4 ) | D4: ( 5 A ) | E4: ( 6 A 10 ) | F4: (11 A 14 ) | G4: (15 A 17 ) | H4: (18 A 85 ) | I4: TOTAL GENERAL
B5: ALBANIA | C5: 14 | D5: 63 | E5: 501 | F5: 391 | G5: 183 | H5: 21 | I5: 1173
B6: BELÉN DE LOS ANDAQUIES | C6: 16 | D6: 170 | E6: 1178 | F6: 966 | G6: 493 | H6: 325 | I6: 3148
B7: CARTAGENA DEL CHAIRÁ | C7: 29 | D7: 395 | E7: 4108 | F7: 2744 | G7: 1139 | H7: 705 | I7: 9120
B8: CURILLO | C8: 11 | D8: 108 | E8: 979 | F8: 837 | G8: 427 | H8: 367 | I8: 2729
B9: DONCELLO | C9: 36 | D9: 16 | E9: 57 | F9: 0 | G9: 0 | H9: 0 | I9: 109
B10: EL DONCELLO | C10: 111 | D10: 216 | E10: 2041 | F10: 1583 | G10: 916 | H10: 621 | I10: 5488
B11: EL PAUJIL | C11: 17 | D11: 175 | E11: 1436 | F11: 1141 | G11: 579 | H11: 340 | I11: 3688
B12: LA MONTAÑITA | C12: 37 | D12: 216 | E12: 2019 | F12: 1383 | G12: 631 | H12: 500 | I12: 4786
B13: MILÁN | C13: 12 | D13: 108 | E13: 1211 | F13: 934 | G13: 465 | H13: 326 | I13: 3056
B14: MORELIA | C14: 1 | D14: 42 | E14: 428 | F14: 317 | G14: 185 | H14: 99 | I14: 1072
B15: PUERTO RICO | C15: 70 | D15: 366 | E15: 3614 | F15: 2720 | G15: 1284 | H15: 704 | I15: 8758
B16: SAN JOSÉ DEL FRAGUA | C16: 15 | D16: 159 | E16: 1511 | F16: 1231 | G16: 777 | H16: 624 | I16: 4317
B17: SAN VICENTE DEL CAGUÁN | C17: 87 | D17: 809 | E17: 6667 | F17: 4977 | G17: 2392 | H17: 1583 | I17: 16515
B18: SOLANO | C18: 45 | D18: 174 | E18: 1540 | F18: 1120 | G18: 485 | H18: 527 | I18: 3891
B19: SOLITA | C19: 4 | D19: 88 | E19: 911 | F19: 766 | G19: 378 | H19: 252 | I19: 2399
B20: VALPARAÍSO | C20: 9 | D20: 63 | E20: 883 | F20: 732 | G20: 372 | H20: 255 | I20: 2314
B21: TOTAL GENERAL | C21: 514 | D21: 3168 | E21: 29084 | F21: 21842 | G21: 10706 | H21: 7249 | I21: 72563
B22: =INDICE!A9 -> Fuente: SIMAT Corte 30 de Septiembre 2012
B26: ADIELA MOLINA CUTIVA | C26: FENER DE LOS RIOS BARRERA
B27: Secretaria de Educación | C27: Jefe División de Cobertura
B29: Elaboró: Luz Angela Medina, Jefe de Permanencia

Sheet 3.1
A1: MATRICULA OFICIAL Y PRIVADA POR MUNICIPIO Y EDAD
A2: MUNICIPIO | B2: EDAD
B3: 0 | C3: 1 | D3: 2 | E3: 3 | F3: 4 | G3: ( 0 A 4 ) | H3: 5 | I3: 6 | J3: 7 | K3: 8 | L3: 9 | M3: 10 | N3: ( 6 A 10 ) | O3: 11 | P3: 12 | Q3: 13 | R3: 14 | S3: (11 A 14 ) | T3: 15 | U3: 16 | V3: 17 | W3: (15 A 17 ) | X3: 18 | Y3: 19 | Z3: 20 | AA3: 21 | AB3: 22 | AC3: 23 | AD3: 24 | AE3: 25 | AF3: 26 | AG3: 27 | AH3: 28 | AI3: 29 | AJ3: 30 | AK3: 31 | AL3: 32 | AM3: 33 | AN3: 34 | AO3: 35 | AP3: 36 | AQ3: 37 | AR3: 38 | AS3: 39 | AT3: 40 | AU3: 41 | AV3: 42 | AW3: 43 | AX3: 44 | AY3: 45 | AZ3: 46 | BA3: 47 | BB3: 48 | BC3: 49 | BD3: 50 | BE3: 51 | BF3: 52 | BG3: 53 | BH3: 54 | BI3: 55 | BJ3: 56 | BK3: 57 | BL3: 58 | BM3: 59 | BN3: 60 | BO3: 61 | BP3: 62 | BQ3: 63 | BR3: 64 | BS3: 65 | BT3: 66 | BU3: 67 | BV3: 68 | BW3: 69 | BX3: 70 | BY3: 71 | BZ3: 72 | CA3: 73 | CB3: 74 | CC3: 75 | CD3: 76 | CE3: 77 | CF3: 78 | CG3: 79 | CH3: 80 | CI3: 81 | CJ3: 82 | CK3: 85 | CL3: (18 A 85 ) | CM3: TOTAL GENERAL
A4: ALBANIA | E4: 1 | F4: 13 | G4: =F4+E4+D4+C4+B4 -> 14 | H4: 63 | I4: 85 | J4: 98 | K4: 86 | L4: 112 | M4: 120 | N4: =M4+L4+K4+J4+I4 -> 501 | O4: 116 | P4: 118 | Q4: 79 | R4: 78 | S4: =R4+Q4+P4+O4 -> 391 | T4: 74 | U4: 65 | V4: 44 | W4: =V4+U4+T4 -> 183 | X4: 17 | Y4: 2 | Z4: 2 | CL4: =SUM(X4:CK4) -> 21 | CM4: 1173
A5: BELÉN DE LOS ANDAQUIES | F5: 16 | G5: 16 | H5: 170 | I5: 192 | J5: 282 | K5: 218 | L5: 248 | M5: 238 | N5: 1178 | O5: 256 | P5: 259 | Q5: 232 | R5: 219 | S5: 966 | T5: 202 | U5: 170 | V5: 121 | W5: 493 | X5: 69 | Y5: 28 | Z5: 19 | AA5: 8 | AB5: 5 | AC5: 8 | AD5: 12 | AE5: 2 | AF5: 6 | AG5: 7 | AH5: 5 | AI5: 4 | AJ5: 6 | AK5: 6 | AL5: 10 | AM5: 6 | AN5: 5 | AO5: 4 | AP5: 3 | AQ5: 2 | AR5: 7 | AS5: 3 | AT5: 2 | AU5: 7 | AV5: 9 | AW5: 2 | AX5: 9 | AY5: 2 | AZ5: 1 | BA5: 5 | BB5: 5 | BC5: 6 | BD5: 2 | BE5: 7 | BF5: 4 | BG5: 2 | BH5: 2 | BJ5: 2 | BK5: 4 | BL5: 4 | BM5: 3 | BN5: 3 | BO5: 1 | BP5: 4 | BQ5: 3 | BS5: 2 | BT5: 3 | BX5: 2 | CD5: 1 | CE5: 1 | CF5: 2 | CL5: 325 | CM5: 3148
A6: CARTAGENA DEL CHAIRÁ | E6: 1 | F6: 28 | G6: 29 | H6: 395 | I6: 600 | J6: 902 | K6: 896 | L6: 878 | M6: 832 | N6: 4108 | O6: 776 | P6: 724 | Q6: 670 | R6: 574 | S6: 2744 | T6: 481 | U6: 380 | V6: 278 | W6: 1139 | X6: 187 | Y6: 89 | Z6: 59 | AA6: 28 | AB6: 14 | AC6: 20 | AD6: 5 | AE6: 9 | AF6: 8 | AG6: 8 | AH6: 16 | AI6: 9 | AJ6: 10 | AK6: 12 | AL6: 17 | AM6: 10 | AN6: 14 | AO6: 13 | AP6: 6 | AQ6: 15 | AR6: 11 | AS6: 7 | AT6: 12 | AU6: 10 | AV6: 17 | AW6: 12 | AX6: 12 | AY6: 10 | AZ6: 4 | BA6: 9 | BB6: 9 | BC6: 8 | BD6: 8 | BE6: 3 | BF6: 6 | BG6: 2 | BI6: 1 | BJ6: 2 | BK6: 3 | BL6: 1 | BM6: 2 | BO6: 1 | BQ6: 2 | BR6: 2 | BW6: 1 | BX6: 1 | CL6: 705 | CM6: 9120
A7: CURILLO | F7: 11 | G7: 11 | H7: 108 | I7: 140 | J7: 222 | K7: 178 | L7: 230 | M7: 209 | N7: 979 | O7: 221 | P7: 230 | Q7: 216 | R7: 170 | S7: 837 | T7: 156 | U7: 155 | V7: 116 | W7: 427 | X7: 77 | Y7: 34 | Z7: 23 | AA7: 18 | AB7: 7 | AC7: 5 | AD7: 8 | AE7: 8 | AF7: 11 | AG7: 8 | AH7: 5 | AI7: 10 | AJ7: 10 | AK7: 6 | AL7: 11 | AM7: 9 | AN7: 8 | AO7: 6 | AP7: 5 | AQ7: 3 | AR7: 7 | AS7: 4 | AT7: 9 | AU7: 5 | AV7: 6 | AW7: 3 | AX7: 6 | AY7: 3 | AZ7: 4 | BA7: 2 | BB7: 3 | BC7: 3 | BD7: 3 | BE7: 4 | BF7: 1 | BG7: 4 | BH7: 2 | BI7: 2 | BK7: 2 | BL7: 3 | BN7: 3 | BO7: 1 | BP7: 2 | BQ7: 2 | BR7: 1 | BT7: 1 | BU7: 2 | BV7: 1 | BY7: 2 | BZ7: 2 | CA7: 1 | CC7: 1 | CL7: 367 | CM7: 2729
A8: DONCELLO | E8: 15 | F8: 21 | G8: 36 | H8: 16 | I8: 15 | J8: 16 | K8: 15 | L8: 9 | M8: 2 | N8: 57 | S8: 0 | W8: 0 | CL8: 0 | CM8: 109
A9: EL DONCELLO | D9: 1 | E9: 13 | F9: 97 | G9: 111 | H9: 216 | I9: 274 | J9: 453 | K9: 365 | L9: 482 | M9: 467 | N9: 2041 | O9: 419 | P9: 386 | Q9: 392 | R9: 386 | S9: 1583 | T9: 352 | U9: 351 | V9: 213 | W9: 916 | X9: 105 | Y9: 58 | Z9: 35 | AA9: 26 | AB9: 20 | AC9: 19 | AD9: 14 | AE9: 13 | AF9: 11 | AG9: 18 | AH9: 16 | AI9: 16 | AJ9: 17 | AK9: 6 | AL9: 10 | AM9: 12 | AN9: 9 | AO9: 8 | AP9: 8 | AQ9: 16 | AR9: 11 | AS9: 10 | AT9: 7 | AU9: 11 | AV9: 12 | AW9: 10 | AX9: 4 | AY9: 9 | AZ9: 7 | BA9: 8 | BB9: 9 | BC9: 4 | BD9: 5 | BE9: 5 | BF9: 1 | BG9: 9 | BH9: 4 | BI9: 3 | BJ9: 3 | BK9: 4 | BL9: 5 | BM9: 5 | BN9: 1 | BO9: 5 | BP9: 3 | BR9: 2 | BS9: 3 | BT9: 1 | BU9: 1 | BV9: 3 | BW9: 3 | BX9: 1 | BY9: 3 | BZ9: 3 | CA9: 1 | CB9: 1 | CC9: 3 | CD9: 2 | CE9: 1 | CJ9: 1 | CL9: 621 | CM9: 5488
A10: EL PAUJIL | E10: 1 | F10: 16 | G10: 17 | H10: 175 | I10: 201 | J10: 319 | K10: 303 | L10: 330 | M10: 283 | N10: 1436 | O10: 321 | P10: 286 | Q10: 277 | R10: 257 | S10: 1141 | T10: 216 | U10: 213 | V10: 150 | W10: 579 | X10: 86 | Y10: 58 | Z10: 15 | AA10: 23 | AB10: 18 | AC10: 11 | AD10: 10 | AE10: 8 | AF10: 6 | AG10: 5 | AH10: 11 | AI10: 3 | AJ10: 7 | AK10: 3 | AL10: 3 | AM10: 7 | AN10: 2 | AO10: 7 | AP10: 3 | AQ10: 3 | AR10: 1 | AS10: 2 | AT10: 5 | AU10: 5 | AV10: 7 | AW10: 5 | AX10: 2 | AY10: 3 | AZ10: 1 | BA10: 3 | BB10: 2 | BC10: 3 | BE10: 2 | BF10: 1 | BH10: 1 | BI10: 1 | BJ10: 1 | BM10: 2 | BN10: 1 | BS10: 1 | BU10: 1 | CD10: 1 | CL10: 340 | CM10: 3688
A11: LA MONTAÑITA | E11: 3 | F11: 34 | G11: 37 | H11: 216 | I11: 279 | J11: 453 | K11: 420 | L11: 461 | M11: 406 | N11: 2019 | O11: 422 | P11: 361 | Q11: 321 | R11: 279 | S11: 1383 | T11: 266 | U11: 216 | V11: 149 | W11: 631 | X11: 83 | Y11: 65 | Z11: 37 | AA11: 17 | AB11: 16 | AC11: 11 | AD11: 15 | AE11: 16 | AF11: 13 | AG11: 12 | AH11: 10 | AI11: 17 | AJ11: 11 | AK11: 10 | AL11: 15 | AM11: 9 | AN11: 13 | AO11: 7 | AP11: 9 | AQ11: 9 | AR11: 6 | AS11: 7 | AT11: 6 | AU11: 6 | AV11: 8 | AW11: 7 | AX11: 3 | AY11: 6 | AZ11: 5 | BA11: 5 | BB11: 3 | BC11: 2 | BD11: 4 | BE11: 4 | BF11: 2 | BG11: 3 | BH11: 5 | BI11: 2 | BJ11: 2 | BL11: 1 | BM11: 5 | BN11: 2 | BO11: 1 | BQ11: 1 | BR11: 1 | BS11: 3 | BT11: 1 | CC11: 1 | CD11: 1 | CE11: 1 | CF11: 1 | CL11: 500 | CM11: 4786
A12: MILÁN | B12: 1 | F12: 11 | G12: 12 | H12: 108 | I12: 190 | J12: 253 | K12: 225 | L12: 279 | M12: 264 | N12: 1211 | O12: 246 | P12: 268 | Q12: 215 | R12: 205 | S12: 934 | T12: 190 | U12: 161 | V12: 114 | W12: 465 | X12: 74 | Y12: 32 | Z12: 24 | AA12: 21 | AB12: 4 | AC12: 8 | AD12: 10 | AE12: 5 | AF12: 8 | AG12: 6 | AH12: 7 | AI12: 8 | AJ12: 2 | AK12: 6 | AL12: 5 | AM12: 6 | AN12: 8 | AO12: 5 | AP12: 9 | AQ12: 6 | AR12: 6 | AS12: 6 | AT12: 6 | AU12: 4 | AV12: 4 | AW12: 3 | AX12: 4 | AY12: 5 | AZ12: 3 | BA12: 2 | BB12: 5 | BC12: 2 | BD12: 2 | BE12: 3 | BF12: 3 | BG12: 1 | BH12: 1 | BI12: 1 | BK12: 1 | BL12: 1 | BN12: 2 | BQ12: 1 | BR12: 1 | BT12: 2 | BX12: 1 | BZ12: 1 | CB12: 1 | CL12: 326 | CM12: 3056
A13: MORELIA | F13: 1 | G13: 1 | H13: 42 | I13: 49 | J13: 99 | K13: 97 | L13: 97 | M13: 86 | N13: 428 | O13: 79 | P13: 92 | Q13: 73 | R13: 73 | S13: 317 | T13: 76 | U13: 64 | V13: 45 | W13: 185 | X13: 26 | Y13: 9 | Z13: 8 | AA13: 7 | AB13: 7 | AC13: 5 | AD13: 1 | AE13: 1 | AF13: 3 | AG13: 1 | AH13: 2 | AI13: 1 | AJ13: 1 | AK13: 2 | AM13: 2 | AN13: 1 | AO13: 2 | AQ13: 1 | AS13: 4 | AT13: 3 | AV13: 1 | AW13: 1 | AX13: 1 | AZ13: 1 | BA13: 1 | BB13: 2 | BC13: 1 | BE13: 2 | BK13: 1 | BU13: 1 | CL13: 99 | CM13: 1072
A14: PUERTO RICO | C14: 1 | E14: 3 | F14: 66 | G14: 70 | H14: 366 | I14: 538 | J14: 862 | K14: 631 | L14: 842 | M14: 741 | N14: 3614 | O14: 745 | P14: 722 | Q14: 652 | R14: 601 | S14: 2720 | T14: 520 | U14: 440 | V14: 324 | W14: 1284 | X14: 176 | Y14: 97 | Z14: 48 | AA14: 31 | AB14: 24 | AC14: 14 | AD14: 17 | AE14: 13 | AF14: 9 | AG14: 19 | AH14: 14 | AI14: 12 | AJ14: 20 | AK14: 15 | AL14: 12 | AM14: 10 | AN14: 8 | AO14: 13 | AP14: 15 | AQ14: 8 | AR14: 10 | AS14: 6 | AT14: 10 | AU14: 6 | AV14: 9 | AW14: 7 | AX14: 5 | AY14: 2 | AZ14: 5 | BA14: 3 | BB14: 6 | BC14: 3 | BD14: 2 | BE14: 5 | BF14: 5 | BG14: 2 | BH14: 8 | BI14: 3 | BJ14: 1 | BK14: 4 | BL14: 1 | BM14: 2 | BN14: 3 | BO14: 3 | BP14: 1 | BQ14: 1 | BR14: 3 | BS14: 1 | BT14: 2 | BU14: 4 | BZ14: 1 | CC14: 2 | CD14: 2 | CI14: 1 | CL14: 704 | CM14: 8758
A15: SAN JOSÉ DEL FRAGUA | F15: 15 | G15: 15 | H15: 159 | I15: 216 | J15: 315 | K15: 290 | L15: 355 | M15: 335 | N15: 1511 | O15: 346 | P15: 315 | Q15: 291 | R15: 279 | S15: 1231 | T15: 314 | U15: 272 | V15: 191 | W15: 777 | X15: 122 | Y15: 60 | Z15: 49 | AA15: 24 | AB15: 16 | AC15: 14 | AD15: 18 | AE15: 17 | AF15: 13 | AG15: 13 | AH15: 18 | AI15: 10 | AJ15: 15 | AK15: 10 | AL15: 9 | AM15: 9 | AN15: 7 | AO15: 12 | AP15: 15 | AQ15: 9 | AR15: 7 | AS15: 6 | AT15: 10 | AU15: 7 | AV15: 8 | AW15: 12 | AX15: 10 | AY15: 4 | AZ15: 5 | BA15: 6 | BB15: 7 | BC15: 10 | BD15: 6 | BE15: 2 | BF15: 3 | BG15: 4 | BH15: 7 | BI15: 1 | BJ15: 2 | BK15: 6 | BL15: 8 | BN15: 3 | BO15: 6 | BP15: 2 | BQ15: 3 | BR15: 3 | BT15: 2 | BV15: 3 | BW15: 1 | BX15: 2 | BY15: 1 | CA15: 2 | CB15: 2 | CD15: 1 | CE15: 1 | CH15: 1 | CL15: 624 | CM15: 4317
A16: SAN VICENTE DEL CAGUÁN | D16: 1 | E16: 7 | F16: 79 | G16: 87 | H16: 809 | I16: 1071 | J16: 1420 | K16: 1342 | L16: 1498 | M16: 1336 | N16: 6667 | O16: 1379 | P16: 1291 | Q16: 1215 | R16: 1092 | S16: 4977 | T16: 1007 | U16: 746 | V16: 639 | W16: 2392 | X16: 387 | Y16: 223 | Z16: 102 | AA16: 79 | AB16: 54 | AC16: 44 | AD16: 47 | AE16: 36 | AF16: 33 | AG16: 55 | AH16: 32 | AI16: 42 | AJ16: 35 | AK16: 29 | AL16: 25 | AM16: 20 | AN16: 24 | AO16: 17 | AP16: 17 | AQ16: 25 | AR16: 28 | AS16: 15 | AT16: 15 | AU16: 22 | AV16: 14 | AW16: 10 | AX16: 20 | AY16: 12 | AZ16: 15 | BA16: 10 | BB16: 9 | BC16: 8 | BD16: 5 | BE16: 6 | BF16: 7 | BG16: 6 | BH16: 2 | BI16: 5 | BJ16: 4 | BK16: 7 | BL16: 3 | BM16: 4 | BN16: 6 | BO16: 2 | BP16: 2 | BQ16: 2 | BR16: 1 | BS16: 2 | BT16: 1 | BU16: 2 | BW16: 2 | BX16: 1 | BY16: 3 | BZ16: 1 | CC16: 1 | CD16: 1 | CG16: 1 | CK16: 2 | CL16: 1583 | CM16: 16515
A17: SOLANO | B17: 2 | D17: 4 | E17: 10 | F17: 29 | G17: 45 | H17: 174 | I17: 228 | J17: 374 | K17: 334 | L17: 307 | M17: 297 | N17: 1540 | O17: 309 | P17: 350 | Q17: 243 | R17: 218 | S17: 1120 | T17: 197 | U17: 160 | V17: 128 | W17: 485 | X17: 81 | Y17: 45 | Z17: 31 | AA17: 16 | AB17: 15 | AC17: 6 | AD17: 13 | AE17: 19 | AF17: 17 | AG17: 22 | AH17: 10 | AI17: 18 | AJ17: 13 | AK17: 12 | AL17: 9 | AM17: 16 | AN17: 11 | AO17: 9 | AP17: 14 | AQ17: 8 | AR17: 11 | AS17: 8 | AT17: 14 | AU17: 3 | AV17: 5 | AW17: 8 | AX17: 12 | AY17: 7 | AZ17: 4 | BA17: 8 | BB17: 4 | BC17: 12 | BD17: 5 | BF17: 7 | BG17: 1 | BH17: 4 | BI17: 2 | BJ17: 2 | BL17: 1 | BM17: 4 | BO17: 7 | BP17: 2 | BQ17: 1 | BS17: 3 | BT17: 3 | BX17: 2 | BY17: 1 | BZ17: 1 | CL17: 527 | CM17: 3891
A18: SOLITA | F18: 4 | G18: 4 | H18: 88 | I18: 114 | J18: 205 | K18: 188 | L18: 205 | M18: 199 | N18: 911 | O18: 214 | P18: 216 | Q18: 179 | R18: 157 | S18: 766 | T18: 142 | U18: 129 | V18: 107 | W18: 378 | X18: 59 | Y18: 34 | Z18: 12 | AA18: 4 | AB18: 5 | AC18: 5 | AD18: 7 | AE18: 3 | AF18: 5 | AG18: 3 | AH18: 5 | AI18: 3 | AJ18: 1 | AK18: 6 | AL18: 4 | AM18: 3 | AN18: 2 | AO18: 4 | AP18: 7 | AQ18: 2 | AR18: 2 | AS18: 7 | AT18: 5 | AU18: 4 | AV18: 5 | AW18: 5 | AX18: 4 | AY18: 5 | AZ18: 1 | BA18: 4 | BB18: 1 | BC18: 3 | BD18: 3 | BF18: 1 | BG18: 5 | BH18: 7 | BI18: 2 | BK18: 2 | BL18: 1 | BM18: 1 | BN18: 1 | BO18: 2 | BP18: 1 | BR18: 1 | BS18: 2 | BT18: 2 | BZ18: 1 | CL18: 252 | CM18: 2399
A19: VALPARAÍSO | F19: 9 | G19: 9 | H19: 63 | I19: 128 | J19: 199 | K19: 150 | L19: 219 | M19: 187 | N19: 883 | O19: 186 | P19: 192 | Q19: 185 | R19: 169 | S19: 732 | T19: 160 | U19: 124 | V19: 88 | W19: 372 | X19: 50 | Y19: 20 | Z19: 15 | AA19: 10 | AB19: 11 | AC19: 6 | AD19: 4 | AE19: 3 | AF19: 4 | AG19: 3 | AH19: 3 | AI19: 5 | AJ19: 6 | AK19: 8 | AL19: 9 | AM19: 4 | AN19: 4 | AO19: 5 | AP19: 2 | AQ19: 12 | AR19: 6 | AS19: 4 | AT19: 3 | AU19: 2 | AV19: 6 | AW19: 7 | AX19: 4 | AY19: 6 | AZ19: 3 | BA19: 6 | BB19: 4 | BC19: 5 | BD19: 1 | BG19: 1 | BI19: 1 | BJ19: 2 | BK19: 1 | BL19: 1 | BM19: 2 | BO19: 1 | BS19: 3 | BY19: 1 | CC19: 1 | CL19: 255 | CM19: 2314
A20: Total general | B20: 3 | C20: 1 | D20: 6 | E20: 54 | F20: 450 | G20: 514 | H20: 3168 | I20: 4320 | J20: 6472 | K20: 5738 | L20: 6552 | M20: 6002 | N20: 29084 | O20: 6035 | P20: 5810 | Q20: 5240 | R20: 4757 | S20: 21842 | T20: 4353 | U20: 3646 | V20: 2707 | W20: 10706 | X20: 1599 | Y20: 854 | Z20: 479 | AA20: 312 | AB20: 216 | AC20: 176 | AD20: 181 | AE20: 153 | AF20: 147 | AG20: 180 | AH20: 154 | AI20: 158 | AJ20: 154 | AK20: 131 | AL20: 139 | AM20: 123 | AN20: 116 | AO20: 112 | AP20: 113 | AQ20: 119 | AR20: 113 | AS20: 89 | AT20: 107 | AU20: 92 | AV20: 111 | AW20: 92 | AX20: 96 | AY20: 74 | AZ20: 59 | BA20: 72 | BB20: 69 | BC20: 70 | BD20: 46 | BE20: 43 | BF20: 41 | BG20: 40 | BH20: 43 | BI20: 24 | BJ20: 21 | BK20: 35 | BL20: 30 | BM20: 30 | BN20: 25 | BO20: 30 | BP20: 17 | BQ20: 16 | BR20: 15 | BS20: 20 | BT20: 18 | BU20: 11 | BV20: 7 | BW20: 7 | BX20: 10 | BY20: 11 | BZ20: 10 | CA20: 4 | CB20: 4 | CC20: 9 | CD20: 9 | CE20: 4 | CF20: 3 | CG20: 1 | CH20: 1 | CI20: 1 | CJ20: 1 | CK20: 2 | CL20: 7249 | CM20: 72563
A21: =INDICE!A9 -> Fuente: SIMAT Corte 30 de Septiembre 2012
A26: ADIELA MOLINA CUTIVA | L26: FENER DE LOS RIOS BARRERA
A27: Secretaria de Educación | L27: Jefe División de Cobertura
A29: Elaboró: Luz Angela Medina, Jefe de Permanencia

Sheet 4
A1: MATRICULA POR MUNICIPIO Y VULNERACION
A3: MUNICIPIO | B3: DESVINCULADOS DE GRUPOS ARMADOS | C3: EN SITUACIÓN DE DESPLAZAMIENTO | D3: HIJOS DE ADULTOS DESMOVILIZADOS | E3: VICTIMAS DE MINAS | F3: TOTAL
A4: ALBANIA | B4: 1 | C4: 103 | E4: 1 | F4: 105
A5: BELÉN DE LOS ANDAQUIES | B5: 1 | C5: 484 | D5: 3 | F5: 488
A6: CARTAGENA DEL CHAIRÁ | C6: 881 | D6: 9 | E6: 5 | F6: 895
A7: CURILLO | B7: 1 | C7: 651 | D7: 4 | E7: 2 | F7: 658
A8: EL DONCELLO | B8: 7 | C8: 323 | D8: 22 | E8: 2 | F8: 354
A9: EL PAUJIL | C9: 355 | D9: 3 | E9: 1 | F9: 359
A10: LA MONTAÑITA | B10: 2 | C10: 646 | D10: 6 | E10: 3 | F10: 657
A11: MILÁN | C11: 84 | D11: 4 | F11: 88
A12: MORELIA | C12: 188 | F12: 188
A13: PUERTO RICO | B13: 6 | C13: 746 | D13: 1 | E13: 1 | F13: 754
A14: SAN JOSÉ DEL FRAGUA | B14: 6 | C14: 473 | D14: 2 | E14: 1 | F14: 482
A15: SAN VICENTE DEL CAGUÁN | B15: 6 | C15: 990 | D15: 19 | E15: 2 | F15: 1017
A16: SOLANO | C16: 85 | D16: 8 | F16: 93
A17: SOLITA | C17: 306 | F17: 306
A18: VALPARAÍSO | B18: 3 | C18: 473 | E18: 1 | F18: 477
A19: TOTAL | B19: 33 | C19: 6788 | D19: 81 | E19: 19 | F19: 6921
A20: ='0'!B21 -> Fuente: SIMAT Corte 30 de Septiembre 2012
A26: ADIELA MOLINA CUTIVA | D26: FENER DE LOS RIOS BARRERA
A27: Secretaria de Educación | D27: Jefe División de Cobertura
A29: Elaboró: Luz Angela Medina, Jefe de Permanencia

Sheet 4.1
B1: MATRICULA OFICIAL POR MUNICIPIO, VULNERABILIDAD, ZONA Y GENERO
A3: MUNICIPIOS | B3: ETNIAS
B4: DESVINCULADOS DE GRUPOS ARMADOS | I4: EN SITUACIÓN DE DESPLAZAMIENTO | P4: HIJOS DE ADULTOS DESMOVILIZADOS | W4: VICTIMAS DE MINAS | AD4: TOTAL GENENRAL
B5: RURAL | D5: TOTAL RURAL | E5: URBANA | G5: TOTAL URBANA | H5: TOTAL DESVIN. GRUP. ARMA | I5: RURAL | K5: TOTAL RURAL | L5: URBANA | N5: TOTAL URBANA | O5: TOTAL EN SITUA. DESPLAZ | P5: RURAL | R5: Total RURAL | S5: URBANA | U5: Total URBANA | V5: TOTAL HIJOS DE ADUL.DESM | W5: RURAL | Y5: Total RURAL | Z5: URBANA | AB5: Total URBANA | AC5: TOTAL VICTIMAS DE MINAS
B6: F | C6: M | E6: F | F6: M | I6: F | J6: M | L6: F | M6: M | P6: F | Q6: M | S6: F | T6: M | W6: F | X6: M | Z6: F | AA6: M
A7: ALBANIA | C7: 1 | D7: 1 | H7: 1 | I7: 13 | J7: 18 | K7: 31 | L7: 46 | M7: 26 | N7: 72 | O7: 103 | W7: 1 | Y7: 1 | AC7: 1 | AD7: 105
A8: BELÉN DE LOS ANDAQUIES | E8: 1 | G8: 1 | H8: 1 | I8: 51 | J8: 55 | K8: 106 | L8: 178 | M8: 200 | N8: 378 | O8: 484 | P8: 1 | Q8: 1 | R8: 2 | T8: 1 | U8: 1 | V8: 3 | AD8: 488
A9: CARTAGENA DEL CHAIRÁ | I9: 68 | J9: 98 | K9: 166 | L9: 404 | M9: 311 | N9: 715 | O9: 881 | P9: 3 | Q9: 6 | R9: 9 | V9: 9 | W9: 4 | X9: 1 | Y9: 5 | AC9: 5 | AD9: 895
A10: CURILLO | F10: 1 | G10: 1 | H10: 1 | I10: 37 | J10: 47 | K10: 84 | L10: 280 | M10: 287 | N10: 567 | O10: 651 | Q10: 2 | R10: 2 | T10: 2 | U10: 2 | V10: 4 | W10: 1 | X10: 1 | Y10: 2 | AC10: 2 | AD10: 658
A11: EL DONCELLO | E11: 2 | F11: 5 | G11: 7 | H11: 7 | I11: 10 | J11: 28 | K11: 38 | L11: 155 | M11: 130 | N11: 285 | O11: 323 | Q11: 2 | R11: 2 | S11: 12 | T11: 8 | U11: 20 | V11: 22 | X11: 1 | Y11: 1 | Z11: 1 | AB11: 1 | AC11: 2 | AD11: 354
A12: EL PAUJIL | I12: 25 | J12: 20 | K12: 45 | L12: 154 | M12: 156 | N12: 310 | O12: 355 | Q12: 1 | R12: 1 | S12: 1 | T12: 1 | U12: 2 | V12: 3 | AA12: 1 | AB12: 1 | AC12: 1 | AD12: 359
A13: LA MONTAÑITA | C13: 1 | D13: 1 | F13: 1 | G13: 1 | H13: 2 | I13: 187 | J13: 191 | K13: 378 | L13: 136 | M13: 132 | N13: 268 | O13: 646 | P13: 4 | Q13: 2 | R13: 6 | V13: 6 | W13: 1 | X13: 2 | Y13: 3 | AC13: 3 | AD13: 657
A14: MILÁN | I14: 43 | J14: 25 | K14: 68 | L14: 8 | M14: 8 | N14: 16 | O14: 84 | P14: 3 | Q14: 1 | R14: 4 | V14: 4 | AD14: 88
A15: MORELIA | I15: 13 | J15: 16 | K15: 29 | L15: 90 | M15: 69 | N15: 159 | O15: 188 | AD15: 188
A16: PUERTO RICO | C16: 1 | D16: 1 | E16: 2 | F16: 3 | G16: 5 | H16: 6 | I16: 51 | J16: 73 | K16: 124 | L16: 295 | M16: 327 | N16: 622 | O16: 746 | T16: 1 | U16: 1 | V16: 1 | W16: 1 | Y16: 1 | AC16: 1 | AD16: 754
A17: SAN JOSÉ DEL FRAGUA | C17: 2 | D17: 2 | E17: 1 | F17: 3 | G17: 4 | H17: 6 | I17: 69 | J17: 66 | K17: 135 | L17: 189 | M17: 149 | N17: 338 | O17: 473 | P17: 1 | Q17: 1 | R17: 2 | V17: 2 | X17: 1 | Y17: 1 | AC17: 1 | AD17: 482
A18: SAN VICENTE DEL CAGUÁN | B18: 1 | C18: 1 | D18: 2 | E18: 2 | F18: 2 | G18: 4 | H18: 6 | I18: 174 | J18: 179 | K18: 353 | L18: 347 | M18: 290 | N18: 637 | O18: 990 | P18: 7 | Q18: 6 | R18: 13 | S18: 4 | T18: 2 | U18: 6 | V18: 19 | X18: 2 | Y18: 2 | AC18: 2 | AD18: 1017
A19: SOLANO | I19: 15 | J19: 20 | K19: 35 | L19: 25 | M19: 25 | N19: 50 | O19: 85 | P19: 3 | Q19: 3 | R19: 6 | T19: 2 | U19: 2 | V19: 8 | AD19: 93
A20: SOLITA | I20: 17 | J20: 20 | K20: 37 | L20: 158 | M20: 111 | N20: 269 | O20: 306 | AD20: 306
A21: VALPARAÍSO | B21: 2 | D21: 2 | F21: 1 | G21: 1 | H21: 3 | I21: 72 | J21: 81 | K21: 153 | L21: 163 | M21: 157 | N21: 320 | O21: 473 | W21: 1 | Y21: 1 | AC21: 1 | AD21: 477
A22: TOTAL GENERAL | B22: 3 | C22: 6 | D22: 9 | E22: 8 | F22: 16 | G22: 24 | H22: 33 | I22: 845 | J22: 937 | K22: 1782 | L22: 2628 | M22: 2378 | N22: 5006 | O22: 6788 | P22: 22 | Q22: 25 | R22: 47 | S22: 17 | T22: 17 | U22: 34 | V22: 81 | W22: 9 | X22: 8 | Y22: 17 | Z22: 1 | AA22: 1 | AB22: 2 | AC22: 19 | AD22: 6921
X23: Z
S26: ADIELA MOLINA CUTIVA | Y26: FENER DE LOS RIOS BARRERA
S27: Secretaria de Educación | Y27: Jefe División de Cobertura
F28: ADIELA MOLINA CUTIVA | L28: FENER DE LOS RIOS BARRERA
F29: Secretaria de Educación | L29: Jefe División de Cobertura
R30: Elaboró: Luz Angela Medina, Jefe de Permanencia
C31: Elaboró: Luz Angela Medina, Jefe de Permanencia

Sheet 4.3
A1: MATRICULA INDIGENA POR MUNICIPIO, GENERO Y ZONA
A3: MUNICIPIOS | B3: ETNIAS
B4: RURAL | D4: TOTAL RURAL | E4: URBANA | G4: TOTAL URBANA | H4: TOTAL GENERAL
B5: F | C5: M | E5: F | F5: M
A6: ALBANIA | B6: 2 | C6: 5 | D6: 7 | E6: 2 | F6: 5 | G6: 7 | H6: 14
A7: BELÉN DE LOS ANDAQUIES | B7: 25 | C7: 30 | D7: 55 | E7: 6 | F7: 5 | G7: 11 | H7: 66
A8: CARTAGENA DEL CHAIRÁ | B8: 22 | C8: 27 | D8: 49 | E8: 12 | F8: 9 | G8: 21 | H8: 70
A9: CURILLO | B9: 2 | D9: 2 | E9: 11 | F9: 2 | G9: 13 | H9: 15
A10: EL DONCELLO | B10: 1 | C10: 2 | D10: 3 | E10: 5 | F10: 3 | G10: 8 | H10: 11
A11: EL PAUJIL | B11: 15 | C11: 8 | D11: 23 | E11: 2 | F11: 1 | G11: 3 | H11: 26
A12: LA MONTAÑITA | B12: 1 | C12: 2 | D12: 3 | E12: 2 | G12: 2 | H12: 5
A13: MILÁN | B13: 199 | C13: 262 | D13: 461 | E13: 4 | F13: 1 | G13: 5 | H13: 466
A14: MORELIA | B14: 1 | C14: 1 | D14: 2 | E14: 2 | F14: 3 | G14: 5 | H14: 7
A15: PUERTO RICO | B15: 49 | C15: 65 | D15: 114 | E15: 17 | F15: 10 | G15: 27 | H15: 141
A16: SAN JOSÉ DEL FRAGUA | B16: 41 | C16: 33 | D16: 74 | E16: 2 | F16: 3 | G16: 5 | H16: 79
A17: SAN VICENTE DEL CAGUÁN | B17: 95 | C17: 102 | D17: 197 | E17: 21 | F17: 14 | G17: 35 | H17: 232
A18: SOLANO | B18: 254 | C18: 289 | D18: 543 | E18: 26 | F18: 25 | G18: 51 | H18: 594
A19: SOLITA | B19: 13 | C19: 14 | D19: 27 | E19: 3 | F19: 8 | G19: 11 | H19: 38
A20: VALPARAÍSO | B20: 2 | D20: 2 | F20: 1 | G20: 1 | H20: 3
A21: TOTAL | B21: 722 | C21: 840 | D21: 1562 | E21: 115 | F21: 90 | G21: 205 | H21: 1767
A22: =INDICE!A9 -> Fuente: SIMAT Corte 30 de Septiembre 2012
B27: ADIELA MOLINA CUTIVA | E27: FENER DE LOS RIOS BARRERA
B28: Secretaria de Educación | E28: Jefe División de Cobertura
A30: Elaboró: Luz Angela Medina, Jefe de Permanencia

Sheet 4.4
A1: MATRICULA OFICIAL INDIGENA POR MUNICIPIO EN VULNERABILIDAD
A3: MUCIPIO | B3: EN SITUACIÓN DE DESPLAZAMIENTO | H3: TOTAL EN SITUACIÓN DE DESPLAZAMIENTO | I3: HIJOS DE ADULTOS DESMOVILIZADOS | K3: TOTAL HIJOS DE ADULTOS DESMOVILIZADOS | L3: TOTAL GENERAL
B4: RURAL | D4: TOTAL RURAL | E4: URBANA | G4: TOTAL URBANA | I4: RURAL | J4: TOTAL RURAL
B5: F | C5: M | E5: F | F5: M | I5: M
A6: BELÉN DE LOS ANDAQUIES | E6: 2 | F6: 1 | G6: 3 | H6: 3 | L6: 3
A7: CARTAGENA DEL CHAIRÁ | B7: 1 | D7: 1 | F7: 3 | G7: 3 | H7: 4 | L7: 4
A8: CURILLO | E8: 1 | G8: 1 | H8: 1 | L8: 1
A9: EL PAUJIL | B9: 3 | C9: 1 | D9: 4 | H9: 4 | L9: 4
A10: MILÁN | B10: 1 | C10: 1 | D10: 2 | H10: 2 | L10: 2
A11: MORELIA | C11: 1 | D11: 1 | H11: 1 | L11: 1
A12: PUERTO RICO | C12: 1 | D12: 1 | E12: 2 | G12: 2 | H12: 3 | L12: 3
A13: SAN JOSÉ DEL FRAGUA | B13: 2 | C13: 4 | D13: 6 | H13: 6 | L13: 6
A14: SAN VICENTE DEL CAGUÁN | B14: 1 | C14: 3 | D14: 4 | E14: 3 | G14: 3 | H14: 7 | L14: 7
A15: SOLANO | I15: 1 | J15: 1 | K15: 1 | L15: 1
A16: SOLITA | B16: 1 | D16: 1 | H16: 1 | L16: 1
A17: VALPARAÍSO | F17: 1 | G17: 1 | H17: 1 | L17: 1
A18: TOTAL GENERAL | B18: 9 | C18: 11 | D18: 20 | E18: 8 | F18: 5 | G18: 13 | H18: 33 | I18: 1 | J18: 1 | K18: 1 | L18: 34
A19: ='0'!B21 -> Fuente: SIMAT Corte 30 de Septiembre 2012
B25: ADIELA MOLINA CUTIVA | J25: FENER DE LOS RIOS BARRERA
B26: Secretaria de Educación | J26: Jefe División de Cobertura
A28: Elaboró: Luz Angela Medina, Jefe de Permanencia

Sheet 4.5
B1: MATRICULA OFICIAL NEGRITUDES POR MUNICIPIO, ZONA Y GENERO
B3: MUNICIPIO | C3: RURAL | E3: TOTAL RURAL | F3: URBANA | H3: TOTAL URBANA | I3: TOTAL GENERAL
C4: F | D4: M | F4: F | G4: M
B5: ALBANIA | G5: 1 | H5: 1 | I5: 1
B6: BELÉN DE LOS ANDAQUIES | C6: 1 | E6: 1 | F6: 2 | G6: 3 | H6: 5 | I6: 6
B7: CARTAGENA DEL CHAIRÁ | C7: 4 | D7: 2 | E7: 6 | F7: 8 | G7: 6 | H7: 14 | I7: 20
B8: CURILLO | C8: 1 | E8: 1 | F8: 7 | G8: 1 | H8: 8 | I8: 9
B9: EL DONCELLO | D9: 2 | E9: 2 | F9: 3 | G9: 2 | H9: 5 | I9: 7
B10: EL PAUJIL | C10: 1 | E10: 1 | F10: 1 | H10: 1 | I10: 2
B11: LA MONTAÑITA | F11: 1 | H11: 1 | I11: 1
B12: MILÁN | C12: 1 | D12: 3 | E12: 4 | I12: 4
B13: MORELIA | C13: 1 | E13: 1 | F13: 1 | G13: 3 | H13: 4 | I13: 5
B14: PUERTO RICO | C14: 16 | D14: 17 | E14: 33 | F14: 3 | G14: 3 | H14: 6 | I14: 39
B15: SAN JOSÉ DEL FRAGUA | D15: 2 | E15: 2 | G15: 1 | H15: 1 | I15: 3
B16: SAN VICENTE DEL CAGUÁN | C16: 4 | D16: 5 | E16: 9 | F16: 9 | G16: 4 | H16: 13 | I16: 22
B17: SOLANO | C17: 2 | D17: 3 | E17: 5 | F17: 2 | G17: 1 | H17: 3 | I17: 8
B18: SOLITA | D18: 5 | E18: 5 | F18: 2 | G18: 3 | H18: 5 | I18: 10
B19: VALPARAÍSO | C19: 2 | E19: 2 | I19: 2
B20: TOTAL GENERAL | C20: 33 | D20: 39 | E20: 72 | F20: 39 | G20: 28 | H20: 67 | I20: 139
B21: ='0'!B21 -> Fuente: SIMAT Corte 30 de Septiembre 2012
C27: ADIELA MOLINA CUTIVA | F27: FENER DE LOS RIOS BARRERA
C28: Secretaria de Educación | F28: Jefe División de Cobertura
B31: Elaboró: Luz Angela Medina, Jefe de Permanencia

Sheet 4.6
B1: MATRICULA OFICIAL DE NEGRITUDES POR MUNICIPIO EN VULNERABILIDAD
B3: MUNICIPIO | C3: EN SITUACIÓN DE DESPLAZAMIENTO | I3: TOTAL EN SITUACIÓN DE DESPLAZAMIENTO | J3: VICTIMAS DE MINAS | L3: TOTAL VICTIMAS DE MINAS | M3: TOTAL GENRAL
C4: RURAL | E4: TOTAL RURAL | F4: URBANA | H4: TOTAL URBANA | J4: RURAL | K4: TOTAL RURAL
C5: F | D5: M | F5: F | G5: M | J5: F
B6: BELÉN DE LOS ANDAQUIES | G6: 2 | H6: 2 | I6: 2 | M6: 2
B7: CARTAGENA DEL CHAIRÁ | D7: 1 | E7: 1 | F7: 1 | G7: 1 | H7: 2 | I7: 3 | M7: 3
B8: CURILLO | F8: 1 | G8: 1 | H8: 2 | I8: 2 | M8: 2
B9: EL DONCELLO | D9: 1 | E9: 1 | G9: 2 | H9: 2 | I9: 3 | M9: 3
B10: EL PAUJIL | C10: 1 | E10: 1 | I10: 1 | M10: 1
B11: PUERTO RICO | J11: 1 | K11: 1 | L11: 1 | M11: 1
B12: SAN JOSÉ DEL FRAGUA | G12: 1 | H12: 1 | I12: 1 | M12: 1
B13: SAN VICENTE DEL CAGUÁN | F13: 1 | G13: 1 | H13: 2 | I13: 2 | M13: 2
B14: TOTAL | C14: 1 | D14: 2 | E14: 3 | F14: 3 | G14: 8 | H14: 11 | I14: 14 | J14: 1 | K14: 1 | L14: 1 | M14: 15
B15: ='0'!B21 -> Fuente: SIMAT Corte 30 de Septiembre 2012
C21: ADIELA MOLINA CUTIVA | I21: FENER DE LOS RIOS BARRERA
C22: Secretaria de Educación | I22: Jefe División de Cobertura
B24: Elaboró: Luz Angela Medina, Jefe de Permanencia

Sheet 4.7
A1: POBLACION INDIGENA POR MUNICIPIO, E.E, SEDE, ETNIA, RESGUARDO EDAD
A3: MUNICIPIOS | B3: INSTITUCION | C3: SEDE | D3: ETNIA | E3: RESGUARDO | F3: RURAL | I3: URBANA | L3: TOTAL GENERAL
F4: F | G4: M | H4: TOTAL RURAL | I4: F | J4: M | K4: TOTAL URBANA
A5: ALBANIA | B5: C.E LA CHORROSA | C5: INDIGENA LA CHUSCALOSA | D5: COYAIMA-NATAGAIMA | E5: LOS PIJAOS | G5: 2 | H5: 2 | L5: 2
D6: Total COYAIMA-NATAGAIMA | G6: 2 | H6: 2 | L6: 2
D7: OTRAS ETNIAS | E7: ALBANIA | F7: 2 | H7: 2 | L7: 2
D8: Total OTRAS ETNIAS | F8: 2 | H8: 2 | L8: 2
C9: Total INDIGENA LA CHUSCALOSA | F9: 2 | G9: 2 | H9: 4 | L9: 4
B10: Total C.E LA CHORROSA | F10: 2 | G10: 2 | H10: 4 | L10: 4
B11: I.E ALBANIA | C11: SAN CARLOS | D11: COYAIMA-NATAGAIMA | E11: LOS PIJAOS | I11: 2 | J11: 4 | K11: 6 | L11: 6
D12: Total COYAIMA-NATAGAIMA | I12: 2 | J12: 4 | K12: 6 | L12: 6
C13: Total SAN CARLOS | I13: 2 | J13: 4 | K13: 6 | L13: 6
B14: Total I.E ALBANIA | I14: 2 | J14: 4 | K14: 6 | L14: 6
B15: I.E EL DORADO | C15: EL DORADO | D15: KOREGUAJE | E15: ALBANIA | G15: 1 | H15: 1 | L15: 1
D16: Total KOREGUAJE | G16: 1 | H16: 1 | L16: 1
C17: Total EL DORADO | G17: 1 | H17: 1 | L17: 1
B18: Total I.E EL DORADO | G18: 1 | H18: 1 | L18: 1
A19: Total ALBANIA | F19: 2 | G19: 3 | H19: 5 | I19: 2 | J19: 4 | K19: 6 | L19: 11
A20: BELÉN DE LOS ANDAQUIES | B20: I. E. R. PUEBLO NUEVO | C20: GUAMBIANA | D20: GUAMBIANO | E20: GUAMBIA | F20: 1 | G20: 1 | H20: 2 | L20: 2
D21: Total GUAMBIANO | F21: 1 | G21: 1 | H21: 2 | L21: 2
C22: Total GUAMBIANA | F22: 1 | G22: 1 | H22: 2 | L22: 2
C23: INDIGENA LA CERINDA | D23: EMBERA CATIO | E23: LA CERINDA | F23: 4 | G23: 8 | H23: 12 | L23: 12
D24: Total EMBERA CATIO | F24: 4 | G24: 8 | H24: 12 | L24: 12
C25: Total INDIGENA LA CERINDA | F25: 4 | G25: 8 | H25: 12 | L25: 12
C26: PUEBLO NUEVO | D26: EMBERA CATIO | E26: LA CERINDA | F26: 1 | G26: 2 | H26: 3 | L26: 3
D27: Total EMBERA CATIO | F27: 1 | G27: 2 | H27: 3 | L27: 3
C28: Total PUEBLO NUEVO | F28: 1 | G28: 2 | H28: 3 | L28: 3
B29: Total I. E. R. PUEBLO NUEVO | F29: 6 | G29: 11 | H29: 17 | L29: 17
B30: I.E AGROTECNICO MIXTO | C30: AGROTECNICO MIXTO | D30: WITOTO | E30: LA ESPERANZA | I30: 1 | J30: 1 | K30: 2 | L30: 2
D31: Total WITOTO | I31: 1 | J31: 1 | K31: 2 | L31: 2
C32: Total AGROTECNICO MIXTO | I32: 1 | J32: 1 | K32: 2 | L32: 2
B33: Total I.E AGROTECNICO MIXTO | I33: 1 | J33: 1 | K33: 2 | L33: 2
B34: I.E GABRIELA MISTRAL | C34: GABRIELA MISTRAL | D34: DESANO | E34: REMANSO CHORRO BOCON | I34: 1 | K34: 1 | L34: 1
D35: Total DESANO | I35: 1 | K35: 1 | L35: 1
D36: WITOTO | E36: NUSIDO | I36: 1 | K36: 1 | L36: 1
D37: Total WITOTO | I37: 1 | K37: 1 | L37: 1
C38: Total GABRIELA MISTRAL | I38: 2 | K38: 2 | L38: 2
B39: Total I.E GABRIELA MISTRAL | I39: 2 | K39: 2 | L39: 2
B40: I.E SAN LUIS | C40: INDIGENA LA ESPERANZA | D40: PAÉZ | E40: LA ESPERANZA | F40: 2 | H40: 2 | L40: 2
D41: Total PAÉZ | F41: 2 | H41: 2 | L41: 2
D42: WITOTO | E42: LA ESPERANZA | F42: 3 | G42: 3 | H42: 6 | L42: 6
E43: NUEVA ESPERANZA | F43: 1 | H43: 1 | L43: 1
D44: Total WITOTO | F44: 4 | G44: 3 | H44: 7 | L44: 7
C45: Total INDIGENA LA ESPERANZA | F45: 6 | G45: 3 | H45: 9 | L45: 9
C46: LA PRADERA | D46: CHIMILA | E46: AICO | G46: 1 | H46: 1 | L46: 1
D47: Total CHIMILA | G47: 1 | H47: 1 | L47: 1
D48: PAÉZ | E48: ALTO DEL REY | F48: 1 | H48: 1 | L48: 1
E49: AMBALO | G49: 1 | H49: 1 | L49: 1
E50: SAN LUIS | F50: 1 | H50: 1 | L50: 1
D51: Total PAÉZ | F51: 2 | G51: 1 | H51: 3 | L51: 3
C52: Total LA PRADERA | F52: 2 | G52: 2 | H52: 4 | L52: 4
C53: SAN LUIS | D53: WITOTO | E53: LA ESPERANZA | G53: 1 | H53: 1 | L53: 1
D54: Total WITOTO | G54: 1 | H54: 1 | L54: 1
C55: Total SAN LUIS | G55: 1 | H55: 1 | L55: 1
B56: Total I.E SAN LUIS | F56: 8 | G56: 6 | H56: 14 | L56: 14
A57: Total BELÉN DE LOS ANDAQUIES | F57: 14 | G57: 17 | H57: 31 | I57: 3 | J57: 1 | K57: 4 | L57: 35
A58: CARTAGENA DEL CHAIRÁ | B58: I. E. R. LOS CRISTALES | C58: LA FLORIDA # 1 | D58: PAÉZ | E58: SANTA ROSA DE CAPISCO | F58: 1 | H58: 1 | L58: 1
D59: Total PAÉZ | F59: 1 | H59: 1 | L59: 1
C60: Total LA FLORIDA # 1 | F60: 1 | H60: 1 | L60: 1
C61: PEÑAS BLANCAS | D61: PAÉZ | E61: NASA KIWE | F61: 1 | G61: 1 | H61: 2 | L61: 2
D62: Total PAÉZ | F62: 1 | G62: 1 | H62: 2 | L62: 2
C63: Total PEÑAS BLANCAS | F63: 1 | G63: 1 | H63: 2 | L63: 2
B64: Total I. E. R. LOS CRISTALES | F64: 2 | G64: 1 | H64: 3 | L64: 3
B65: I. E. R. MONSERRATE | C65: MANUELA BELTRAN | D65: INGA | E65: INGA DE PUERTO LIMON | G65: 1 | H65: 1 | L65: 1
D66: Total INGA | G66: 1 | H66: 1 | L66: 1
C67: Total MANUELA BELTRAN | G67: 1 | H67: 1 | L67: 1
C68: SIMON BOLIVAR | D68: ACHAGUA | E68: ABEJERO | G68: 1 | H68: 1 | L68: 1
D69: Total ACHAGUA | G69: 1 | H69: 1 | L69: 1
C70: Total SIMON BOLIVAR | G70: 1 | H70: 1 | L70: 1
B71: Total I. E. R. MONSERRATE | G71: 2 | H71: 2 | L71: 2
B72: I.E. R. DIVINO NIÑO | C72: BOCANA DEL ANAYA | D72: INGA | E72: PAEZ DE QUINTANA | F72: 2 | G72: 3 | H72: 5 | L72: 5
D73: Total INGA | F73: 2 | G73: 3 | H73: 5 | L73: 5
C74: Total BOCANA DEL ANAYA | F74: 2 | G74: 3 | H74: 5 | L74: 5
C75: DIVINO NIÑO # 2 | D75: INGA | E75: PAEZ DE QUINTANA | F75: 4 | G75: 2 | H75: 6 | L75: 6
D76: Total INGA | F76: 4 | G76: 2 | H76: 6 | L76: 6
D77: PAÉZ | E77: INGA DE CONDAGUA | G77: 1 | H77: 1 | L77: 1
D78: Total PAÉZ | G78: 1 | H78: 1 | L78: 1
C79: Total DIVINO NIÑO # 2 | F79: 4 | G79: 3 | H79: 7 | L79: 7
B80: Total I.E. R. DIVINO NIÑO | F80: 6 | G80: 6 | H80: 12 | L80: 12
A81: Total CARTAGENA DEL CHAIRÁ | F81: 8 | G81: 9 | H81: 17 | L81: 17
A82: CURILLO | B82: C.E. EL LIBERTADOR | C82: EL LIBERTADOR | D82: INGA | E82: INGA DE PUERTO LIMON | F82: 1 | H82: 1 | L82: 1
D83: Total INGA | F83: 1 | H83: 1 | L83: 1
C84: Total EL LIBERTADOR | F84: 1 | H84: 1 | L84: 1
B85: Total C.E. EL LIBERTADOR | F85: 1 | H85: 1 | L85: 1
B86: I.E ANGEL CUNIBERTI | C86: CUNIBERTI | D86: AWA | E86: AGUA NEGRA | J86: 1 | K86: 1 | L86: 1
D87: Total AWA | J87: 1 | K87: 1 | L87: 1
D88: BARAZANA | E88: AGUAS NEGRAS | I88: 1 | K88: 1 | L88: 1
D89: Total BARAZANA | I89: 1 | K89: 1 | L89: 1
C90: Total CUNIBERTI | I90: 1 | J90: 1 | K90: 2 | L90: 2
C91: SAN PABLO | D91: BETOYE | E91: ALBANIA | I91: 1 | K91: 1 | L91: 1
D92: Total BETOYE | I92: 1 | K92: 1 | L92: 1
C93: Total SAN PABLO | I93: 1 | K93: 1 | L93: 1
B94: Total I.E ANGEL CUNIBERTI | I94: 2 | J94: 1 | K94: 3 | L94: 3
A95: Total CURILLO | F95: 1 | H95: 1 | I95: 2 | J95: 1 | K95: 3 | L95: 4
A96: EL DONCELLO | B96: I.E CORAZON INMACULADO DE MARIA | C96: OLIMPICA | D96: KOREGUAJE | E96: JERICO-CONSAYA-PEÑAS ALTAS | J96: 1 | K96: 1 | L96: 1
D97: Total KOREGUAJE | J97: 1 | K97: 1 | L97: 1
C98: Total OLIMPICA | J98: 1 | K98: 1 | L98: 1
B99: Total I.E CORAZON INMACULADO DE MARIA | J99: 1 | K99: 1 | L99: 1
B100: I.E JORGE ABEL MOLINA | C100: JORGE ABEL MOLINA | D100: INGA | E100: NIÑERAS | I100: 1 | K100: 1 | L100: 1
D101: Total INGA | I101: 1 | K101: 1 | L101: 1
C102: Total JORGE ABEL MOLINA | I102: 1 | K102: 1 | L102: 1
B103: Total I.E JORGE ABEL MOLINA | I103: 1 | K103: 1 | L103: 1
A104: Total EL DONCELLO | I104: 1 | J104: 1 | K104: 2 | L104: 2
A105: EL PAUJIL | B105: C.E SANTA TERESA | C105: EL RECREO | D105: COYAIMA-NATAGAIMA | E105: LOS PIJAOS | F105: 1 | G105: 1 | H105: 2 | L105: 2
D106: Total COYAIMA-NATAGAIMA | F106: 1 | G106: 1 | H106: 2 | L106: 2
C107: Total EL RECREO | F107: 1 | G107: 1 | H107: 2 | L107: 2
C108: LA SOLEDAD | D108: COYAIMA-NATAGAIMA | E108: LOS PIJAOS | F108: 4 | G108: 1 | H108: 5 | L108: 5
D109: Total COYAIMA-NATAGAIMA | F109: 4 | G109: 1 | H109: 5 | L109: 5
C110: Total LA SOLEDAD | F110: 4 | G110: 1 | H110: 5 | L110: 5
C111: SAN PEDRO | D111: COYAIMA-NATAGAIMA | E111: LOS PIJAOS | F111: 4 | G111: 3 | H111: 7 | L111: 7
D112: Total COYAIMA-NATAGAIMA | F112: 4 | G112: 3 | H112: 7 | L112: 7
C113: Total SAN PEDRO | F113: 4 | G113: 3 | H113: 7 | L113: 7
C114: SANTA TERESA | D114: OTRAS ETNIAS | E114: LOS PIJAOS | F114: 2 | G114: 2 | H114: 4 | L114: 4
D115: Total OTRAS ETNIAS | F115: 2 | G115: 2 | H115: 4 | L115: 4
C116: Total SANTA TERESA | F116: 2 | G116: 2 | H116: 4 | L116: 4
B117: Total C.E SANTA TERESA | F117: 11 | G117: 7 | H117: 18 | L117: 18
B118: I.E AGROECOLOGICO AMAZONICO | C118: JHON F. KENNEDY | D118: PAÉZ | E118: NASA KIWE | I118: 1 | K118: 1 | L118: 1
D119: Total PAÉZ | I119: 1 | K119: 1 | L119: 1
C120: Total JHON F. KENNEDY | I120: 1 | K120: 1 | L120: 1
C121: SAN LUIS GONZAGA | D121: INGA | E121: YUNGUILLO | J121: 1 | K121: 1 | L121: 1
D122: Total INGA | J122: 1 | K122: 1 | L122: 1
C123: Total SAN LUIS GONZAGA | J123: 1 | K123: 1 | L123: 1
B124: Total I.E AGROECOLOGICO AMAZONICO | I124: 1 | J124: 1 | K124: 2 | L124: 2
B125: I.E R. RAFAEL URIBE URIBE | C125: RAFAEL URIBE URIBE | D125: ACHAGUA | E125: ABEJERO | F125: 1 | H125: 1 | L125: 1
D126: Total ACHAGUA | F126: 1 | H126: 1 | L126: 1
C127: Total RAFAEL URIBE URIBE | F127: 1 | H127: 1 | L127: 1
B128: Total I.E R. RAFAEL URIBE URIBE | F128: 1 | H128: 1 | L128: 1
A129: Total EL PAUJIL | F129: 12 | G129: 7 | H129: 19 | I129: 1 | J129: 1 | K129: 2 | L129: 21
A130: LA MONTAÑITA | B130: C.E EL CEDRO | C130: LOS MORROS | D130: PAÉZ | E130: YAQUIVA | G130: 1 | H130: 1 | L130: 1
D131: Total PAÉZ | G131: 1 | H131: 1 | L131: 1
C132: Total LOS MORROS | G132: 1 | H132: 1 | L132: 1
B133: Total C.E EL CEDRO | G133: 1 | H133: 1 | L133: 1
B134: I.E NUESTRA SEÑORA DEL PERPETUO SOCORRO | C134: PERPETUO SOCORRO | D134: PAÉZ | E134: TORIBIO | I134: 1 | K134: 1 | L134: 1
D135: Total PAÉZ | I135: 1 | K135: 1 | L135: 1
C136: Total PERPETUO SOCORRO | I136: 1 | K136: 1 | L136: 1
B137: Total I.E NUESTRA SEÑORA DEL PERPETUO SOCORRO | I137: 1 | K137: 1 | L137: 1
B138: I.E RURAL SABIO CALDAS | C138: SABIO CALDAS | D138: SIKUANI | E138: NUSIDO | F138: 1 | H138: 1 | L138: 1
D139: Total SIKUANI | F139: 1 | H139: 1 | L139: 1
C140: Total SABIO CALDAS | F140: 1 | H140: 1 | L140: 1
B141: Total I.E RURAL SABIO CALDAS | F141: 1 | H141: 1 | L141: 1
B142: I.E.R SIMON BOLIVAR | C142: I.E.R SIMON BOLIVAR - SEDE PRINCIPAL | D142: BETOYE | E142: ALBANIA | G142: 1 | H142: 1 | L142: 1
D143: Total BETOYE | G143: 1 | H143: 1 | L143: 1
C144: Total I.E.R SIMON BOLIVAR - SEDE PRINCIPAL | G144: 1 | H144: 1 | L144: 1
B145: Total I.E.R SIMON BOLIVAR | G145: 1 | H145: 1 | L145: 1
A146: Total LA MONTAÑITA | F146: 1 | G146: 2 | H146: 3 | I146: 1 | K146: 1 | L146: 4
A147: MILÁN | B147: C.E. GRANARIO | C147: BELLO HORIZONTE | D147: KOREGUAJE | E147: AGUA NEGRA | G147: 1 | H147: 1 | L147: 1
E148: WITOTO DE TUKUNARE | F148: 2 | G148: 2 | H148: 4 | L148: 4
D149: Total KOREGUAJE | F149: 2 | G149: 3 | H149: 5 | L149: 5
C150: Total BELLO HORIZONTE | F150: 2 | G150: 3 | H150: 5 | L150: 5
C151: ENTRE RIOS | D151: KOREGUAJE | E151: AGUA NEGRA | F151: 1 | G151: 1 | H151: 2 | L151: 2
E152: AGUANEGRA | G152: 1 | H152: 1 | L152: 1
D153: Total KOREGUAJE | F153: 1 | G153: 2 | H153: 3 | L153: 3
C154: Total ENTRE RIOS | F154: 1 | G154: 2 | H154: 3 | L154: 3
B155: Total C.E. GRANARIO | C155: MARCO FIDEL SUAREZ | F155: 3 | G155: 5 | H155: 8 | L155: 8
B156: I.E MARCO FIDEL SUAREZ | D156: KOREGUAJE | E156: GORGONIA | I156: 3 | K156: 3 | L156: 3
D157: Total KOREGUAJE | I157: 3 | K157: 3 | L157: 3
C158: Total MARCO FIDEL SUAREZ | I158: 3 | K158: 3 | L158: 3
C159: SERGIO MOSSONI | D159: KOREGUAJE | E159: GORGONIA | I159: 1 | J159: 1 | K159: 2 | L159: 2
D160: Total KOREGUAJE | I160: 1 | J160: 1 | K160: 2 | L160: 2
C161: Total SERGIO MOSSONI | I161: 1 | J161: 1 | K161: 2 | L161: 2
B162: Total I.E MARCO FIDEL SUAREZ | I162: 4 | J162: 1 | K162: 5 | L162: 5
B163: I.E. R. LA FLORIDA | C163: LA FLORIDA | D163: WITOTO | E163: PUERTO ZABALO-LOS MONOS | F163: 1 | H163: 1 | L163: 1
D164: Total WITOTO | F164: 1 | H164: 1 | L164: 1
C165: Total LA FLORIDA | F165: 1 | H165: 1 | L165: 1
B166: Total I.E. R. LA FLORIDA | F166: 1 | H166: 1 | L166: 1
B167: I.E.R ANGEL RICARDO ACOSTA | C167: ANGEL RICARDO | D167: KOREGUAJE | E167: GETUCHA | F167: 1 | G167: 2 | H167: 3 | L167: 3
E168: JACOME | F168: 5 | G168: 3 | H168: 8 | L168: 8
E169: JERICO-CONSAYA-PEÑAS ALTAS | G169: 1 | H169: 1 | L169: 1
E170: LA ESPERANZA | G170: 4 | H170: 4 | L170: 4
E171: POCARA | F171: 1 | H171: 1 | L171: 1
E172: SAN LUIS | F172: 1 | G172: 1 | H172: 2 | L172: 2
D173: Total KOREGUAJE | F173: 8 | G173: 11 | H173: 19 | L173: 19
C174: Total ANGEL RICARDO | F174: 8 | G174: 11 | H174: 19 | L174: 19
C175: SAN ANTONIO | D175: KOREGUAJE | E175: SAN LUIS | F175: 1 | G175: 3 | H175: 4 | L175: 4
D176: Total KOREGUAJE | F176: 1 | G176: 3 | H176: 4 | L176: 4
C177: Total SAN ANTONIO | F177: 1 | G177: 3 | H177: 4 | L177: 4
B178: Total I.E.R ANGEL RICARDO ACOSTA | F178: 9 | G178: 14 | H178: 23 | L178: 23
B179: I.E.R LA RASTRA | C179: LA RASTRA | D179: KOREGUAJE | E179: POCARA | F179: 1 | H179: 1 | L179: 1
D180: Total KOREGUAJE | F180: 1 | H180: 1 | L180: 1
D181: WITOTO | E181: PREDIO PUTUMAYO (PUERTO LIMÓN) | F181: 1 | H181: 1 | L181: 1
D182: Total WITOTO | F182: 1 | H182: 1 | L182: 1
C183: Total LA RASTRA | F183: 2 | H183: 2 | L183: 2
B184: Total I.E.R LA RASTRA | F184: 2 | H184: 2 | L184: 2
B185: I.E.R. ILUSION MATICURU | C185: LA PRIMAVERA | D185: KOREGUAJE | E185: PALMA ALTA | G185: 1 | H185: 1 | L185: 1
D186: Total KOREGUAJE | G186: 1 | H186: 1 | L186: 1
C187: Total LA PRIMAVERA | G187: 1 | H187: 1 | L187: 1
B188: Total I.E.R. ILUSION MATICURU | G188: 1 | H188: 1 | L188: 1
B189: I.E.R. MAMA BWE REOJACHE | C189: INDIGENA AGUA NEGRA MIUPU | D189: KOREGUAJE | E189: AGUA NEGRA | F189: 21 | G189: 14 | H189: 35 | L189: 35
E190: AGUANEGRA | F190: 1 | H190: 1 | L190: 1
E191: JACOME | F191: 1 | G191: 3 | H191: 4 | L191: 4
E192: PEÑAS ROJAS | G192: 1 | H192: 1 | L192: 1
E193: SAN FRANCISCO | F193: 6 | G193: 12 | H193: 18 | L193: 18
D194: Total KOREGUAJE | F194: 29 | G194: 30 | H194: 59 | L194: 59
C195: Total INDIGENA AGUA NEGRA MIUPU | F195: 29 | G195: 30 | H195: 59 | L195: 59
C196: INDIGENA GETUCHA | D196: KOREGUAJE | E196: GETUCHA | F196: 3 | G196: 5 | H196: 8 | L196: 8
E197: GORGONIA | F197: 3 | H197: 3 | L197: 3
D198: Total KOREGUAJE | F198: 6 | G198: 5 | H198: 11 | L198: 11
C199: Total INDIGENA GETUCHA | F199: 6 | G199: 5 | H199: 11 | L199: 11
C200: INDIGENA GORGONIA | D200: KOREGUAJE | E200: AGUA NEGRA | F200: 1 | G200: 1 | H200: 2 | L200: 2
E201: GORGONIA | F201: 9 | G201: 16 | H201: 25 | L201: 25
... 587 more rows

Sheet 5
D1: MATRICULA OFICIAL EN DISCAPACIDAD POR MUNICIPIO,E.E, ZONA Y GENERO
C2: MUNICIPIO | D2: AUTISMO | G2: Total AUTISMO | H2: BAJA VISIÓN DIAGN... | N2: Total BAJA VISIÓN DIAGN... | O2: CEGUERA | T2: Total CEGUERA | U2: DEFICIENCIA COGNI... | AA2: Total DEFICIENCIA COGNI... | AB2: HIPOACUSIA O BAJA... | AH2: Total HIPOACUSIA O BAJA... | AI2: LESIÓN NEUROMUSCULAR | AO2: Total LESIÓN NEUROMUSCULAR | AP2: LIMITACIÓN FISICA... | AS2: Total LIMITACIÓN FISICA... | AT2: MÚLTIPLE | AZ2: Total MÚLTIPLE | BA2: OTRA | BG2: Total OTRA | BH2: PARALISIS CEREBRAL | BN2: Total PARALISIS CEREBRAL | BO2: SÍNDROME DE DOWN | BU2: Total SÍNDROME DE DOWN | BV2: SORDERA PROFUNDA | CB2: TOTAL SORDERA PROFUNDA | CC2: TOTAL GENERAL
D3: RURAL | F3: Total RURAL | H3: RURAL | J3: Total RURAL | K3: URBANA | M3: Total URBANA | O3: RURAL | P3: Total RURAL | Q3: URBANA | S3: Total URBANA | U3: RURAL | W3: Total RURAL | X3: URBANA | Z3: Total URBANA | AB3: RURAL | AD3: Total RURAL | AE3: URBANA | AG3: Total URBANA | AI3: RURAL | AK3: Total RURAL | AL3: URBANA | AN3: Total URBANA | AP3: URBANA | AR3: Total URBANA | AT3: RURAL | AV3: Total RURAL | AW3: URBANA | AY3: Total URBANA | BA3: RURAL | BC3: Total RURAL | BD3: URBANA | BF3: Total URBANA | BH3: RURAL | BJ3: Total RURAL | BK3: URBANA | BM3: Total URBANA | BO3: RURAL | BQ3: Total RURAL | BR3: URBANA | BT3: Total URBANA | BV3: RURAL | BX3: Total RURAL | BY3: URBANA | CA3: Total URBANA | CD3: 1
D4: F | E4: M | H4: F | I4: M | K4: F | L4: M | O4: M | Q4: F | R4: M | U4: F | V4: M | X4: F | Y4: M | AB4: F | AC4: M | AE4: F | AF4: M | AI4: F | AJ4: M | AL4: F | AM4: M | AP4: F | AQ4: M | AT4: F | AU4: M | AW4: F | AX4: M | BA4: F | BB4: M | BD4: F | BE4: M | BH4: F | BI4: M | BK4: F | BL4: M | BO4: F | BP4: M | BR4: F | BS4: M | BV4: F | BW4: M | BY4: F | BZ4: M
C5: ALBANIA | AB5: 1 | AD5: 1 | AH5: 1 | AQ5: 1 | AR5: 1 | AS5: 1 | AT5: 1 | AV5: 1 | AZ5: 1 | BW5: 1 | BX5: 1 | BZ5: 1 | CA5: 1 | CB5: 2 | CC5: 5
C6: I.E ALBANIA | AQ6: 1 | AR6: 1 | AS6: 1 | BZ6: 1 | CA6: 1 | CB6: 1 | CC6: 2
C7: I.E EL DORADO | AB7: 1 | AD7: 1 | AH7: 1 | AT7: 1 | AV7: 1 | AZ7: 1 | BW7: 1 | BX7: 1 | CB7: 1 | CC7: 3
C8: BELÉN DE LOS ANDAQUIES | I8: 1 | J8: 1 | K8: 9 | L8: 5 | M8: 14 | N8: 15 | U8: 1 | V8: 1 | W8: 2 | X8: 4 | Y8: 5 | Z8: 9 | AA8: 11 | AB8: 1 | AD8: 1 | AE8: 2 | AF8: 1 | AG8: 3 | AH8: 4 | AL8: 1 | AN8: 1 | AO8: 1 | AW8: 4 | AX8: 2 | AY8: 6 | AZ8: 6 | BE8: 1 | BF8: 1 | BG8: 1 | BP8: 3 | BQ8: 3 | BR8: 1 | BT8: 1 | BU8: 4 | BV8: 1 | BX8: 1 | CB8: 1 | CC8: 43
C9: C.E ALTO SARABANDO | I9: 1 | J9: 1 | N9: 1 | CC9: 1
C10: C.E EL CHOCHO | U10: 1 | W10: 1 | AA10: 1 | CC10: 1
C11: I.E AGROTECNICO MIXTO | K11: 5 | L11: 4 | M11: 9 | N11: 9 | X11: 2 | Z11: 2 | AA11: 2 | AE11: 1 | AF11: 1 | AG11: 2 | AH11: 2 | AW11: 2 | AX11: 1 | AY11: 3 | AZ11: 3 | BE11: 1 | BF11: 1 | BG11: 1 | CC11: 17
C12: I.E GABRIELA MISTRAL | K12: 4 | L12: 1 | M12: 5 | N12: 5 | X12: 2 | Y12: 5 | Z12: 7 | AA12: 7 | AE12: 1 | AG12: 1 | AH12: 1 | AL12: 1 | AN12: 1 | AO12: 1 | AW12: 2 | AX12: 1 | AY12: 3 | AZ12: 3 | BR12: 1 | BT12: 1 | BU12: 1 | CC12: 18
C13: I.E RURAL EL PORTAL LA MONO | V13: 1 | W13: 1 | AA13: 1 | AB13: 1 | AD13: 1 | AH13: 1 | BP13: 3 | BQ13: 3 | BU13: 3 | BV13: 1 | BX13: 1 | CB13: 1 | CC13: 6
C14: CARTAGENA DEL CHAIRÁ | E14: 1 | F14: 1 | G14: 1 | H14: 1 | J14: 1 | N14: 1 | Q14: 1 | R14: 1 | S14: 2 | T14: 2 | U14: 3 | V14: 5 | W14: 8 | X14: 18 | Y14: 11 | Z14: 29 | AA14: 37 | AE14: 1 | AG14: 1 | AH14: 1 | AI14: 1 | AK14: 1 | AO14: 1 | AU14: 1 | AV14: 1 | AW14: 1 | AY14: 1 | AZ14: 2 | BA14: 3 | BB14: 2 | BC14: 5 | BG14: 5 | BH14: 1 | BI14: 1 | BJ14: 2 | BN14: 2 | BO14: 1 | BP14: 2 | BQ14: 3 | BU14: 3 | BW14: 1 | BX14: 1 | BY14: 1 | CA14: 1 | CB14: 2 | CC14: 57
C15: I. E. R. LA ESMERALDA | V15: 1 | W15: 1 | AA15: 1 | CC15: 1
C16: I. E. R. LOS CRISTALES | H16: 1 | J16: 1 | N16: 1 | V16: 1 | W16: 1 | AA16: 1 | CC16: 2
C17: I. E. R. PEÑAS COLORADAS | V17: 1 | W17: 1 | AA17: 1 | BW17: 1 | BX17: 1 | CB17: 1 | CC17: 2
C18: I. E. R. SANTA CRUZ DEL AGUILA | U18: 1 | W18: 1 | AA18: 1 | AI18: 1 | AK18: 1 | AO18: 1 | CC18: 2
C19: I. E. R. SANTAFE DEL CAGUAN | U19: 1 | W19: 1 | AA19: 1 | AU19: 1 | AV19: 1 | AZ19: 1 | CC19: 2
C20: I.E AGROECOLOGICO AMAZONICO | X20: 1 | Z20: 1 | AA20: 1 | AW20: 1 | AY20: 1 | AZ20: 1 | CC20: 2
C21: I.E EL CHAIRA JOSE MARIA CORDOBA | Q21: 1 | R21: 1 | S21: 2 | T21: 2 | X21: 17 | Y21: 11 | Z21: 28 | AA21: 28 | AE21: 1 | AG21: 1 | AH21: 1 | BY21: 1 | CA21: 1 | CB21: 1 | CC21: 32
C22: I.E. R. DIVINO NIÑO | E22: 1 | F22: 1 | G22: 1 | BI22: 1 | BJ22: 1 | BN22: 1 | CC22: 2
C23: I.E. R. EL EDEN | U23: 1 | W23: 1 | AA23: 1 | CC23: 1
C24: I.E. R. LA SARDINATA | BH24: 1 | BJ24: 1 | BN24: 1 | BP24: 1 | BQ24: 1 | BU24: 1 | CC24: 2
C25: I.E. R. SAN PEDRO CLAVER | BA25: 3 | BB25: 2 | BC25: 5 | BG25: 5 | CC25: 5
C26: I.E. R. TEUSAQUILLO | V26: 2 | W26: 2 | AA26: 2 | BO26: 1 | BQ26: 1 | BU26: 1 | CC26: 3
C27: I.E. R. VILLALUZ | BP27: 1 | BQ27: 1 | BU27: 1 | CC27: 1
C28: CURILLO | K28: 10 | L28: 5 | M28: 15 | N28: 15 | Q28: 1 | S28: 1 | T28: 1 | U28: 4 | V28: 3 | W28: 7 | X28: 5 | Y28: 11 | Z28: 16 | AA28: 23 | BD28: 1 | BF28: 1 | BG28: 1 | BR28: 1 | BT28: 1 | BU28: 1 | BZ28: 1 | CA28: 1 | CB28: 1 | CC28: 42
C29: C.E. EL LIBERTADOR | U29: 2 | V29: 1 | W29: 3 | AA29: 3 | CC29: 3
C30: I.E ANGEL CUNIBERTI | K30: 10 | L30: 5 | M30: 15 | N30: 15 | Q30: 1 | S30: 1 | T30: 1 | X30: 5 | Y30: 11 | Z30: 16 | AA30: 16 | BD30: 1 | BF30: 1 | BG30: 1 | BR30: 1 | BT30: 1 | BU30: 1 | BZ30: 1 | CA30: 1 | CB30: 1 | CC30: 35
C31: I.E. R. HORIZONTE | U31: 2 | V31: 2 | W31: 4 | AA31: 4 | CC31: 4
C32: EL DONCELLO | I32: 1 | J32: 1 | K32: 15 | L32: 11 | M32: 26 | N32: 27 | R32: 1 | S32: 1 | T32: 1 | U32: 1 | W32: 1 | X32: 2 | Y32: 7 | Z32: 9 | AA32: 10 | AF32: 1 | AG32: 1 | AH32: 1 | AM32: 2 | AN32: 2 | AO32: 2 | AP32: 1 | AR32: 1 | AS32: 1 | AX32: 1 | AY32: 1 | AZ32: 1 | BE32: 1 | BF32: 1 | BG32: 1 | BL32: 1 | BM32: 1 | BN32: 1 | BR32: 1 | BS32: 3 | BT32: 4 | BU32: 4 | BW32: 1 | BX32: 1 | BY32: 2 | BZ32: 1 | CA32: 3 | CB32: 4 | CC32: 53
C33: C.E EL QUEBRADON | U33: 1 | W33: 1 | AA33: 1 | BW33: 1 | BX33: 1 | CB33: 1 | CC33: 2
C34: I.E CORAZON INMACULADO DE MARIA | K34: 2 | L34: 1 | M34: 3 | N34: 3 | BE34: 1 | BF34: 1 | BG34: 1 | CC34: 4
C35: I.E JORGE ABEL MOLINA | K35: 4 | L35: 7 | M35: 11 | N35: 11 | R35: 1 | S35: 1 | T35: 1 | X35: 2 | Y35: 6 | Z35: 8 | AA35: 8 | AF35: 1 | AG35: 1 | AH35: 1 | AM35: 2 | AN35: 2 | AO35: 2 | AX35: 1 | AY35: 1 | AZ35: 1 | BS35: 2 | BT35: 2 | BU35: 2 | BZ35: 1 | CA35: 1 | CB35: 1 | CC35: 27
C36: I.E RUFINO QUICHOYA | K36: 5 | L36: 1 | M36: 6 | N36: 6 | BL36: 1 | BM36: 1 | BN36: 1 | BS36: 1 | BT36: 1 | BU36: 1 | CC36: 8
C37: I.E. MARCO FIDEL SUAREZ | K37: 4 | L37: 2 | M37: 6 | N37: 6 | Y37: 1 | Z37: 1 | AA37: 1 | AP37: 1 | AR37: 1 | AS37: 1 | BR37: 1 | BT37: 1 | BU37: 1 | BY37: 2 | CA37: 2 | CB37: 2 | CC37: 11
C38: I.E. R. LA CEIBA | I38: 1 | J38: 1 | N38: 1 | CC38: 1
C39: EL PAUJIL | K39: 6 | L39: 2 | M39: 8 | N39: 8 | Q39: 1 | S39: 1 | T39: 1 | U39: 5 | V39: 1 | W39: 6 | X39: 1 | Z39: 1 | AA39: 7 | AJ39: 1 | AK39: 1 | AO39: 1 | AT39: 1 | AV39: 1 | AW39: 4 | AX39: 3 | AY39: 7 | AZ39: 8 | BD39: 1 | BF39: 1 | BG39: 1 | BK39: 1 | BM39: 1 | BN39: 1 | BO39: 1 | BQ39: 1 | BU39: 1 | CC39: 28
C40: C.E SANTA TERESA | U40: 2 | W40: 2 | AA40: 2 | AT40: 1 | AV40: 1 | AZ40: 1 | BO40: 1 | BQ40: 1 | BU40: 1 | CC40: 4
C41: I.E AGROECOLOGICO AMAZONICO | K41: 1 | L41: 1 | M41: 2 | N41: 2 | X41: 1 | Z41: 1 | AA41: 1 | BD41: 1 | BF41: 1 | BG41: 1 | CC41: 4
C42: I.E NUESTRA SE¿ORA DE LAS MERCEDES | K42: 5 | L42: 1 | M42: 6 | N42: 6 | Q42: 1 | S42: 1 | T42: 1 | AW42: 4 | AX42: 3 | AY42: 7 | AZ42: 7 | BK42: 1 | BM42: 1 | BN42: 1 | CC42: 15
C43: I.E R. LA CONCORDIA | AJ43: 1 | AK43: 1 | AO43: 1 | CC43: 1
C44: I.E R. RAFAEL URIBE URIBE | U44: 3 | V44: 1 | W44: 4 | AA44: 4 | CC44: 4
C45: LA MONTAÑITA | H45: 1 | J45: 1 | K45: 1 | L45: 2 | M45: 3 | N45: 4 | Y45: 1 | Z45: 1 | AA45: 1 | AC45: 1 | AD45: 1 | AH45: 1 | AT45: 1 | AV45: 1 | AW45: 2 | AY45: 2 | AZ45: 3 | BB45: 1 | BC45: 1 | BG45: 1 | BI45: 1 | BJ45: 1 | BN45: 1 | BO45: 2 | BP45: 1 | BQ45: 3 | BU45: 3 | CC45: 14
C46: C.E. EL DIVISO | AT46: 1 | AV46: 1 | AZ46: 1 | CC46: 1
C47: I.E NUESTRA SEÑORA DEL PERPETUO SOCORRO | K47: 1 | L47: 2 | M47: 3 | N47: 3 | Y47: 1 | Z47: 1 | AA47: 1 | AW47: 2 | AY47: 2 | AZ47: 2 | CC47: 6
C48: I.E R. MATEGUADUA | BP48: 1 | BQ48: 1 | BU48: 1 | CC48: 1
C49: I.E. R. BRISAS DE SAN ISIDRO | AC49: 1 | AD49: 1 | AH49: 1 | CC49: 1
C50: I.E. R. PALMA ARRIBA | H50: 1 | J50: 1 | N50: 1 | CC50: 1
C51: I.E. R. REINA BAJA | BB51: 1 | BC51: 1 | BG51: 1 | BI51: 1 | BJ51: 1 | BN51: 1 | CC51: 2
C52: I.E.R SIMON BOLIVAR | BO52: 2 | BQ52: 2 | BU52: 2 | CC52: 2
C53: MILÁN | H53: 4 | I53: 1 | J53: 5 | N53: 5 | U53: 2 | V53: 1 | W53: 3 | AA53: 3 | AT53: 11 | AU53: 12 | AV53: 23 | AW53: 1 | AX53: 2 | AY53: 3 | AZ53: 26 | BA53: 1 | BC53: 1 | BG53: 1 | BP53: 1 | BQ53: 1 | BU53: 1 | BV53: 1 | BW53: 3 | BX53: 4 | CB53: 4 | CC53: 40
C54: C.E EL DIAMANTE (MIRAVALLE) | V54: 1 | W54: 1 | AA54: 1 | CC54: 1
C55: C.E. GRANARIO | AT55: 1 | AV55: 1 | AZ55: 1 | BA55: 1 | BC55: 1 | BG55: 1 | CC55: 2
C56: I.E MARCO FIDEL SUAREZ | AW56: 1 | AX56: 2 | AY56: 3 | AZ56: 3 | CC56: 3
C57: I.E. R. LA FLORIDA | U57: 1 | W57: 1 | AA57: 1 | CC57: 1
C58: I.E.R ANGEL RICARDO ACOSTA | H58: 4 | J58: 4 | N58: 4 | AT58: 5 | AU58: 5 | AV58: 10 | AZ58: 10 | BV58: 1 | BW58: 3 | BX58: 4 | CB58: 4 | CC58: 18
C59: I.E.R LA RASTRA | AT59: 5 | AU59: 7 | AV59: 12 | AZ59: 12 | CC59: 12
C60: I.E.R. MAMA BWE REOJACHE | I60: 1 | J60: 1 | N60: 1 | U60: 1 | W60: 1 | AA60: 1 | BP60: 1 | BQ60: 1 | BU60: 1 | CC60: 3
C61: MORELIA | K61: 1 | M61: 1 | N61: 1 | Y61: 1 | Z61: 1 | AA61: 1 | BA61: 1 | BC61: 1 | BG61: 1 | CC61: 3
C62: I.E CERVANTES | K62: 1 | M62: 1 | N62: 1 | Y62: 1 | Z62: 1 | AA62: 1 | CC62: 2
C63: I.E R. JUAN XXIII | BA63: 1 | BC63: 1 | BG63: 1 | CC63: 1
C64: PUERTO RICO | D64: 1 | F64: 1 | G64: 1 | H64: 1 | I64: 2 | J64: 3 | N64: 3 | R64: 1 | S64: 1 | T64: 1 | U64: 2 | V64: 4 | W64: 6 | X64: 2 | Y64: 6 | Z64: 8 | AA64: 14 | AI64: 1 | AK64: 1 | AO64: 1 | AP64: 1 | AR64: 1 | AS64: 1 | AW64: 1 | AX64: 1 | AY64: 2 | AZ64: 2 | BB64: 1 | BC64: 1 | BG64: 1 | BL64: 1 | BM64: 1 | BN64: 1 | BR64: 1 | BS64: 1 | BT64: 2 | BU64: 2 | BZ64: 1 | CA64: 1 | CB64: 1 | CC64: 28
C65: C.E EL AGUILA | AI65: 1 | AK65: 1 | AO65: 1 | CC65: 1
C66: C.E. CAMPO HERMOSO | V66: 1 | W66: 1 | AA66: 1 | CC66: 1
C67: C.E. LOMA ALTA | D67: 1 | F67: 1 | G67: 1 | CC67: 1
C68: I.E ACEVEDO Y GOMEZ | R68: 1 | S68: 1 | T68: 1 | X68: 1 | Y68: 6 | Z68: 7 | AA68: 7 | AP68: 1 | AR68: 1 | AS68: 1 | BL68: 1 | BM68: 1 | BN68: 1 | BR68: 1 | BT68: 1 | BU68: 1 | BZ68: 1 | CA68: 1 | CB68: 1 | CC68: 12
C69: I.E SAGRADOS CORAZONES | X69: 1 | Z69: 1 | AA69: 1 | AW69: 1 | AX69: 1 | AY69: 2 | AZ69: 2 | BS69: 1 | BT69: 1 | BU69: 1 | CC69: 4
C70: I.E. R. EL LOBO | H70: 1 | J70: 1 | N70: 1 | U70: 1 | W70: 1 | AA70: 1 | CC70: 2
C71: I.E. R. JORGE ELIECER GAITAN | I71: 1 | J71: 1 | N71: 1 | V71: 1 | W71: 1 | AA71: 1 | CC71: 2
C72: I.E. R. LA AGUILILLA | I72: 1 | J72: 1 | N72: 1 | U72: 1 | V72: 2 | W72: 3 | AA72: 3 | BB72: 1 | BC72: 1 | BG72: 1 | CC72: 5
C73: SAN JOSÉ DEL FRAGUA | H73: 1 | I73: 1 | J73: 2 | L73: 1 | M73: 1 | N73: 3 | O73: 1 | P73: 1 | T73: 1 | V73: 1 | W73: 1 | Y73: 1 | Z73: 1 | AA73: 2 | AB73: 1 | AD73: 1 | AH73: 1 | AJ73: 1 | AK73: 1 | AO73: 1 | BD73: 1 | BF73: 1 | BG73: 1 | BO73: 1 | BQ73: 1 | BU73: 1 | BV73: 1 | BW73: 1 | BX73: 2 | CB73: 2 | CC73: 12
C74: I.E DON QUIJOTE | L74: 1 | M74: 1 | N74: 1 | Y74: 1 | Z74: 1 | AA74: 1 | BD74: 1 | BF74: 1 | BG74: 1 | CC74: 3
C75: I.E. R. MARIA AUXILIADORA | V75: 1 | W75: 1 | AA75: 1 | AJ75: 1 | AK75: 1 | AO75: 1 | CC75: 2
C76: I.E. RURAL LAS LAJAS | O76: 1 | P76: 1 | T76: 1 | AB76: 1 | AD76: 1 | AH76: 1 | BW76: 1 | BX76: 1 | CB76: 1 | CC76: 3
C77: I.E.R. DIVINO NIÑO | H77: 1 | J77: 1 | N77: 1 | BO77: 1 | BQ77: 1 | BU77: 1 | CC77: 2
C78: INST INGA YACHAICURY | I78: 1 | J78: 1 | N78: 1 | BV78: 1 | BX78: 1 | CB78: 1 | CC78: 2
C79: SAN VICENTE DEL CAGUÁN | E79: 1 | F79: 1 | G79: 1 | H79: 2 | I79: 4 | J79: 6 | K79: 4 | L79: 6 | M79: 10 | N79: 16 | O79: 2 | P79: 2 | T79: 2 | U79: 3 | V79: 5 | W79: 8 | X79: 7 | Y79: 5 | Z79: 12 | AA79: 20 | AF79: 1 | AG79: 1 | AH79: 1 | AI79: 2 | AJ79: 1 | AK79: 3 | AO79: 3 | AT79: 1 | AU79: 4 | AV79: 5 | AW79: 2 | AX79: 2 | AY79: 4 | AZ79: 9 | BB79: 1 | BC79: 1 | BD79: 1 | BE79: 2 | BF79: 3 | BG79: 4 | BH79: 2 | BJ79: 2 | BK79: 1 | BM79: 1 | BN79: 3 | BO79: 3 | BP79: 2 | BQ79: 5 | BS79: 1 | BT79: 1 | BU79: 6 | BW79: 3 | BX79: 3 | CB79: 3 | CC79: 68
C80: C.E. SANTA ROSA | V80: 1 | W80: 1 | AA80: 1 | BW80: 1 | BX80: 1 | CB80: 1 | CC80: 2
C81: I. E. R. LOS FUNDADORES | BP81: 1 | BQ81: 1 | BU81: 1 | CC81: 1
C82: I.E DANTE ALIGHIERI | X82: 1 | Z82: 1 | AA82: 1 | CC82: 1
C83: I.E DOMINGO SAVIO | K83: 1 | L83: 1 | M83: 2 | N83: 2 | X83: 1 | Y83: 1 | Z83: 2 | AA83: 2 | AF83: 1 | AG83: 1 | AH83: 1 | BS83: 1 | BT83: 1 | BU83: 1 | CC83: 6
C84: I.E PROMOCION SOCIAL | K84: 1 | M84: 1 | N84: 1 | X84: 2 | Z84: 2 | AA84: 2 | CC84: 3
C85: I.E VERDE AMAZONICO | K85: 2 | L85: 5 | M85: 7 | N85: 7 | X85: 3 | Y85: 4 | Z85: 7 | AA85: 7 | AW85: 2 | AX85: 2 | AY85: 4 | AZ85: 4 | BD85: 1 | BE85: 2 | BF85: 3 | BG85: 3 | BK85: 1 | BM85: 1 | BN85: 1 | CC85: 22
C86: I.E. R. CRISTALINA TRONCALES | AJ86: 1 | AK86: 1 | AO86: 1 | CC86: 1
C87: I.E. R. LA SOMBRA | V87: 1 | W87: 1 | AA87: 1 | AI87: 1 | AK87: 1 | AO87: 1 | CC87: 2
C88: I.E. R. LA UNION | BO88: 1 | BQ88: 1 | BU88: 1 | CC88: 1
C89: I.E. R. LOS POZOS | H89: 1 | I89: 3 | J89: 4 | N89: 4 | V89: 1 | W89: 1 | AA89: 1 | AI89: 1 | AK89: 1 | AO89: 1 | BH89: 1 | BJ89: 1 | BN89: 1 | CC89: 7
C90: I.E. R. PLAYA RICA | BB90: 1 | BC90: 1 | BG90: 1 | BW90: 1 | BX90: 1 | CB90: 1 | CC90: 2
C91: I.E. R. SAN JUAN DEL LOSADA | U91: 1 | W91: 1 | AA91: 1 | AT91: 1 | AU91: 2 | AV91: 3 | AZ91: 3 | BO91: 2 | BP91: 1 | BQ91: 3 | BU91: 3 | CC91: 7
C92: I.E. R. SANTO DOMINGO SAVIO | AU92: 1 | AV92: 1 | AZ92: 1 | CC92: 1
C93: I.E.R GUILLERMO RIOS | I93: 1 | J93: 1 | N93: 1 | O93: 1 | P93: 1 | T93: 1 | CC93: 2
C94: I.E.R. ARENOSO | H94: 1 | J94: 1 | N94: 1 | U94: 1 | V94: 1 | W94: 2 | AA94: 2 | CC94: 3
C95: I.E.R. BOCANA POSETAS | U95: 1 | W95: 1 | AA95: 1 | BW95: 1 | BX95: 1 | CB95: 1 | CC95: 2
C96: I.E.R. CAMPO HERMOSO | O96: 1 | P96: 1 | T96: 1 | CC96: 1
C97: I.E.R. GUAYABAL | V97: 1 | W97: 1 | AA97: 1 | CC97: 1
C98: I.E.R. LA SAMARIA | BH98: 1 | BJ98: 1 | BN98: 1 | CC98: 1
C99: I.E.R. SAN JOSE DE CAQUETANIA | AU99: 1 | AV99: 1 | AZ99: 1 | CC99: 1
C100: I.E.R. VILLA CARMONA | E100: 1 | F100: 1 | G100: 1 | CC100: 1
C101: SOLANO | I101: 2 | J101: 2 | N101: 2 | U101: 1 | W101: 1 | X101: 1 | Z101: 1 | AA101: 2 | AJ101: 1 | AK101: 1 | AO101: 1 | AT101: 10 | AU101: 3 | AV101: 13 | AZ101: 13 | BO101: 1 | BQ101: 1 | BR101: 1 | BS101: 2 | BT101: 3 | BU101: 4 | BZ101: 1 | CA101: 1 | CB101: 1 | CC101: 23
C102: C.E. EL DANUBIO | AT102: 1 | AV102: 1 | AZ102: 1 | CC102: 1
C103: C.E. LAS MERCEDES | U103: 1 | W103: 1 | AA103: 1 | AJ103: 1 | AK103: 1 | AO103: 1 | CC103: 2
C104: C.E. MONONGUETE | BO104: 1 | BQ104: 1 | BU104: 1 | CC104: 1
C105: I.E CAMPO ELIAS MARULANDA | X105: 1 | Z105: 1 | AA105: 1 | BR105: 1 | BS105: 2 | BT105: 3 | BU105: 3 | BZ105: 1 | CA105: 1 | CB105: 1 | CC105: 5
C106: I.E.R. INDIGENA COEMANI FORTUNATO REALLY | I106: 2 | J106: 2 | N106: 2 | AT106: 9 | AU106: 3 | AV106: 12 | AZ106: 12 | CC106: 14
C107: SOLITA | U107: 1 | V107: 1 | W107: 2 | Y107: 2 | Z107: 2 | AA107: 4 | AC107: 1 | AD107: 1 | AH107: 1 | BI107: 1 | BJ107: 1 | BN107: 1 | BW107: 1 | BX107: 1 | BZ107: 1 | CA107: 1 | CB107: 2 | CC107: 8
C108: C.E. AGUA BLANCA CUZUMBE | U108: 1 | V108: 1 | W108: 2 | AA108: 2 | AC108: 1 | AD108: 1 | AH108: 1 | BI108: 1 | BJ108: 1 | BN108: 1 | BW108: 1 | BX108: 1 | CB108: 1 | CC108: 5
C109: I.E INTERNADO RURAL SOLITA | Y109: 2 | Z109: 2 | AA109: 2 | BZ109: 1 | CA109: 1 | CB109: 1 | CC109: 3
C110: VALPARAÍSO | K110: 1 | L110: 1 | M110: 2 | N110: 2 | U110: 3 | V110: 4 | W110: 7 | X110: 2 | Y110: 4 | Z110: 6 | AA110: 13 | AU110: 2 | AV110: 2 | AX110: 1 | AY110: 1 | AZ110: 3 | BB110: 1 | BC110: 1 | BE110: 1 | BF110: 1 | BG110: 2 | BP110: 4 | BQ110: 4 | BS110: 1 | BT110: 1 | BU110: 5 | BV110: 1 | BX110: 1 | CB110: 1 | CC110: 26
C111: C.E LA RICO KM 30 | AU111: 1 | AV111: 1 | AZ111: 1 | BB111: 1 | BC111: 1 | BG111: 1 | BP111: 3 | BQ111: 3 | BU111: 3 | CC111: 5
C112: C.E. MIRAVALLE SANTROPEL | V112: 3 | W112: 3 | AA112: 3 | BP112: 1 | BQ112: 1 | BU112: 1 | CC112: 4
C113: C.E. NIEVES ARRIBA | U113: 1 | V113: 1 | W113: 2 | AA113: 2 | CC113: 2
C114: C.E. PLAYA RICA | AU114: 1 | AV114: 1 | AZ114: 1 | CC114: 1
C115: C.E. SANTIAGO DE LA SELVA | U115: 2 | W115: 2 | AA115: 2 | BV115: 1 | BX115: 1 | CB115: 1 | CC115: 3
C116: I.E VALPARAISO | K116: 1 | L116: 1 | M116: 2 | N116: 2 | X116: 2 | Y116: 4 | Z116: 6 | AA116: 6 | AX116: 1 | AY116: 1 | AZ116: 1 | BE116: 1 | BF116: 1 | BG116: 1 | BS116: 1 | BT116: 1 | BU116: 1 | CC116: 11
C117: TOTAL GENERAL | D117: 1 | E117: 2 | F117: 3 | G117: 3 | H117: 10 | I117: 12 | J117: 22 | K117: 47 | L117: 33 | M117: 80 | N117: 102 | O117: 3 | P117: 3 | Q117: 3 | R117: 3 | S117: 6 | T117: 9 | U117: 26 | V117: 26 | W117: 52 | X117: 42 | Y117: 54 | Z117: 96 | AA117: 148 | AB117: 3 | AC117: 2 | AD117: 5 | AE117: 3 | AF117: 3 | AG117: 6 | AH117: 11 | AI117: 4 | AJ117: 4 | AK117: 8 | AL117: 1 | AM117: 2 | AN117: 3 | AO117: 11 | AP117: 2 | AQ117: 1 | AR117: 3 | AS117: 3 | AT117: 25 | AU117: 22 | AV117: 47 | AW117: 15 | AX117: 12 | AY117: 27 | AZ117: 74 | BA117: 5 | BB117: 6 | BC117: 11 | BD117: 4 | BE117: 5 | BF117: 9 | BG117: 20 | BH117: 3 | BI117: 3 | BJ117: 6 | BK117: 2 | BL117: 2 | BM117: 4 | BN117: 10 | BO117: 9 | BP117: 13 | BQ117: 22 | BR117: 5 | BS117: 8 | BT117: 13 | BU117: 35 | BV117: 4 | BW117: 11 | BX117: 15 | BY117: 3 | BZ117: 6 | CA117: 9 | CB117: 24 | CC117: 450
C118: =INDICE!A9 -> Fuente: SIMAT Corte 30 de Septiembre 2012
C124: ADIELA MOLINA CUTIVA | R124: FENER DE LOS RIOS BARRERA
C125: Secretaria de Educación | R125: Jefe División de Cobertura
A127: Elaboró: Luz Angela Medina, Jefe de Permanencia

Sheet 5.1
A1: MATRICULA OFICIAL EN DISCAPACIDAD POR MUNICIPIO, ZONA Y GENERO
A3: MUNICIPIO | B3: AUTISMO | E3: Total AUTISMO | F3: BAJA VISIÓN DIAGN... | L3: Total BAJA VISIÓN DIAGN... | M3: CEGUERA | R3: Total CEGUERA | S3: DEFICIENCIA COGNI... | Y3: Total DEFICIENCIA COGNI... | Z3: HIPOACUSIA O BAJA... | AF3: Total HIPOACUSIA O BAJA... | AG3: LESIÓN NEUROMUSCULAR | AM3: Total LESIÓN NEUROMUSCULAR | AN3: LIMITACIÓN FISICA... | AQ3: Total LIMITACIÓN FISICA... | AR3: MÚLTIPLE | AX3: Total MÚLTIPLE | AY3: OTRA | BE3: Total OTRA | BF3: PARALISIS CEREBRAL | BL3: Total PARALISIS CEREBRAL | BM3: SÍNDROME DE DOWN | BS3: Total SÍNDROME DE DOWN | BT3: SORDERA PROFUNDA | BZ3: Total SORDERA PROFUNDA | CA3: Total general | CC3: DISCAPACIDAD | CD3: TOTAL
B4: RURAL | D4: Total RURAL | F4: RURAL | H4: Total RURAL | I4: URBANA | K4: Total URBANA | M4: RURAL | N4: Total RURAL | O4: URBANA | Q4: Total URBANA | S4: RURAL | U4: Total RURAL | V4: URBANA | X4: Total URBANA | Z4: RURAL | AB4: Total RURAL | AC4: URBANA | AE4: Total URBANA | AG4: RURAL | AI4: Total RURAL | AJ4: URBANA | AL4: Total URBANA | AN4: URBANA | AP4: Total URBANA | AR4: RURAL | AT4: Total RURAL | AU4: URBANA | AW4: Total URBANA | AY4: RURAL | BA4: Total RURAL | BB4: URBANA | BD4: Total URBANA | BF4: RURAL | BH4: Total RURAL | BI4: URBANA | BK4: Total URBANA | BM4: RURAL | BO4: Total RURAL | BP4: URBANA | BR4: Total URBANA | BT4: RURAL | BV4: Total RURAL | BW4: URBANA | BY4: Total URBANA | CC4: AUTISMO | CD4: 3
B5: F | C5: M | F5: F | G5: M | I5: F | J5: M | M5: M | O5: F | P5: M | S5: F | T5: M | V5: F | W5: M | Z5: F | AA5: M | AC5: F | AD5: M | AG5: F | AH5: M | AJ5: F | AK5: M | AN5: F | AO5: M | AR5: F | AS5: M | AU5: F | AV5: M | AY5: F | AZ5: M | BB5: F | BC5: M | BF5: F | BG5: M | BI5: F | BJ5: M | BM5: F | BN5: M | BP5: F | BQ5: M | BT5: F | BU5: M | BW5: F | BX5: M | CC5: BAJA VISIÓN DIAGN... | CD5: 102
A6: ALBANIA | Z6: 1 | AB6: 1 | AF6: 1 | AO6: 1 | AP6: 1 | AQ6: 1 | AR6: 1 | AT6: 1 | AX6: 1 | BU6: 1 | BV6: 1 | BX6: 1 | BY6: 1 | BZ6: 2 | CA6: 5 | CC6: CEGUERA | CD6: 9
A7: BELÉN DE LOS ANDAQUIES | G7: 1 | H7: 1 | I7: 9 | J7: 5 | K7: 14 | L7: 15 | S7: 1 | T7: 1 | U7: 2 | V7: 4 | W7: 5 | X7: 9 | Y7: 11 | Z7: 1 | AB7: 1 | AC7: 2 | AD7: 1 | AE7: 3 | AF7: 4 | AJ7: 1 | AL7: 1 | AM7: 1 | AU7: 4 | AV7: 2 | AW7: 6 | AX7: 6 | BC7: 1 | BD7: 1 | BE7: 1 | BN7: 3 | BO7: 3 | BP7: 1 | BR7: 1 | BS7: 4 | BT7: 1 | BV7: 1 | BZ7: 1 | CA7: 43 | CC7: DEFICIENCIA COGNI... | CD7: 148
A8: CARTAGENA DEL CHAIRÁ | C8: 1 | D8: 1 | E8: 1 | F8: 1 | H8: 1 | L8: 1 | O8: 1 | P8: 1 | Q8: 2 | R8: 2 | S8: 3 | T8: 5 | U8: 8 | V8: 18 | W8: 11 | X8: 29 | Y8: 37 | AC8: 1 | AE8: 1 | AF8: 1 | AG8: 1 | AI8: 1 | AM8: 1 | AS8: 1 | AT8: 1 | AU8: 1 | AW8: 1 | AX8: 2 | AY8: 3 | AZ8: 2 | BA8: 5 | BE8: 5 | BF8: 1 | BG8: 1 | BH8: 2 | BL8: 2 | BM8: 1 | BN8: 2 | BO8: 3 | BS8: 3 | BU8: 1 | BV8: 1 | BW8: 1 | BY8: 1 | BZ8: 2 | CA8: 57 | CC8: HIPOACUSIA O BAJA... | CD8: 11
A9: CURILLO | I9: 10 | J9: 5 | K9: 15 | L9: 15 | O9: 1 | Q9: 1 | R9: 1 | S9: 4 | T9: 3 | U9: 7 | V9: 5 | W9: 11 | X9: 16 | Y9: 23 | BB9: 1 | BD9: 1 | BE9: 1 | BP9: 1 | BR9: 1 | BS9: 1 | BX9: 1 | BY9: 1 | BZ9: 1 | CA9: 42 | CC9: LESIÓN NEUROMUSCULAR | CD9: 11
A10: EL DONCELLO | G10: 1 | H10: 1 | I10: 15 | J10: 11 | K10: 26 | L10: 27 | P10: 1 | Q10: 1 | R10: 1 | S10: 1 | U10: 1 | V10: 2 | W10: 7 | X10: 9 | Y10: 10 | AD10: 1 | AE10: 1 | AF10: 1 | AK10: 2 | AL10: 2 | AM10: 2 | AN10: 1 | AP10: 1 | AQ10: 1 | AV10: 1 | AW10: 1 | AX10: 1 | BC10: 1 | BD10: 1 | BE10: 1 | BJ10: 1 | BK10: 1 | BL10: 1 | BP10: 1 | BQ10: 3 | BR10: 4 | BS10: 4 | BU10: 1 | BV10: 1 | BW10: 2 | BX10: 1 | BY10: 3 | BZ10: 4 | CA10: 53 | CC10: LIMITACIÓN FISICA... | CD10: 3
A11: EL PAUJIL | I11: 6 | J11: 2 | K11: 8 | L11: 8 | O11: 1 | Q11: 1 | R11: 1 | S11: 5 | T11: 1 | U11: 6 | V11: 1 | X11: 1 | Y11: 7 | AH11: 1 | AI11: 1 | AM11: 1 | AR11: 1 | AT11: 1 | AU11: 4 | AV11: 3 | AW11: 7 | AX11: 8 | BB11: 1 | BD11: 1 | BE11: 1 | BI11: 1 | BK11: 1 | BL11: 1 | BM11: 1 | BO11: 1 | BS11: 1 | CA11: 28 | CC11: MÚLTIPLE | CD11: 74
A12: LA MONTAÑITA | F12: 1 | H12: 1 | I12: 1 | J12: 2 | K12: 3 | L12: 4 | W12: 1 | X12: 1 | Y12: 1 | AA12: 1 | AB12: 1 | AF12: 1 | AR12: 1 | AT12: 1 | AU12: 2 | AW12: 2 | AX12: 3 | AZ12: 1 | BA12: 1 | BE12: 1 | BG12: 1 | BH12: 1 | BL12: 1 | BM12: 2 | BN12: 1 | BO12: 3 | BS12: 3 | CA12: 14 | CC12: OTRA | CD12: 20
A13: MILÁN | F13: 4 | G13: 1 | H13: 5 | L13: 5 | S13: 2 | T13: 1 | U13: 3 | Y13: 3 | AR13: 11 | AS13: 12 | AT13: 23 | AU13: 1 | AV13: 2 | AW13: 3 | AX13: 26 | AY13: 1 | BA13: 1 | BE13: 1 | BN13: 1 | BO13: 1 | BS13: 1 | BT13: 1 | BU13: 3 | BV13: 4 | BZ13: 4 | CA13: 40 | CC13: PARALISIS CEREBRAL | CD13: 10
A14: MORELIA | I14: 1 | K14: 1 | L14: 1 | W14: 1 | X14: 1 | Y14: 1 | AY14: 1 | BA14: 1 | BE14: 1 | CA14: 3 | CC14: SÍNDROME DE DOWN | CD14: 35
A15: PUERTO RICO | B15: 1 | D15: 1 | E15: 1 | F15: 1 | G15: 2 | H15: 3 | L15: 3 | P15: 1 | Q15: 1 | R15: 1 | S15: 2 | T15: 4 | U15: 6 | V15: 2 | W15: 6 | X15: 8 | Y15: 14 | AG15: 1 | AI15: 1 | AM15: 1 | AN15: 1 | AP15: 1 | AQ15: 1 | AU15: 1 | AV15: 1 | AW15: 2 | AX15: 2 | AZ15: 1 | BA15: 1 | BE15: 1 | BJ15: 1 | BK15: 1 | BL15: 1 | BP15: 1 | BQ15: 1 | BR15: 2 | BS15: 2 | BX15: 1 | BY15: 1 | BZ15: 1 | CA15: 28 | CC15: SORDERA PROFUNDA | CD15: 24
A16: SAN JOSÉ DEL FRAGUA | F16: 1 | G16: 1 | H16: 2 | J16: 1 | K16: 1 | L16: 3 | M16: 1 | N16: 1 | R16: 1 | T16: 1 | U16: 1 | W16: 1 | X16: 1 | Y16: 2 | Z16: 1 | AB16: 1 | AF16: 1 | AH16: 1 | AI16: 1 | AM16: 1 | BB16: 1 | BD16: 1 | BE16: 1 | BM16: 1 | BO16: 1 | BS16: 1 | BT16: 1 | BU16: 1 | BV16: 2 | BZ16: 2 | CA16: 12 | CC16: TOTAL GENERAL | CD16: 450
A17: SAN VICENTE DEL CAGUÁN | C17: 1 | D17: 1 | E17: 1 | F17: 2 | G17: 4 | H17: 6 | I17: 4 | J17: 6 | K17: 10 | L17: 16 | M17: 2 | N17: 2 | R17: 2 | S17: 3 | T17: 5 | U17: 8 | V17: 7 | W17: 5 | X17: 12 | Y17: 20 | AD17: 1 | AE17: 1 | AF17: 1 | AG17: 2 | AH17: 1 | AI17: 3 | AM17: 3 | AR17: 1 | AS17: 4 | AT17: 5 | AU17: 2 | AV17: 2 | AW17: 4 | AX17: 9 | AZ17: 1 | BA17: 1 | BB17: 1 | BC17: 2 | BD17: 3 | BE17: 4 | BF17: 2 | BH17: 2 | BI17: 1 | BK17: 1 | BL17: 3 | BM17: 3 | BN17: 2 | BO17: 5 | BQ17: 1 | BR17: 1 | BS17: 6 | BU17: 3 | BV17: 3 | BZ17: 3 | CA17: 68
A18: SOLANO | G18: 2 | H18: 2 | L18: 2 | S18: 1 | U18: 1 | V18: 1 | X18: 1 | Y18: 2 | AH18: 1 | AI18: 1 | AM18: 1 | AR18: 10 | AS18: 3 | AT18: 13 | AX18: 13 | BM18: 1 | BO18: 1 | BP18: 1 | BQ18: 2 | BR18: 3 | BS18: 4 | BX18: 1 | BY18: 1 | BZ18: 1 | CA18: 23
A19: SOLITA | S19: 1 | T19: 1 | U19: 2 | W19: 2 | X19: 2 | Y19: 4 | AA19: 1 | AB19: 1 | AF19: 1 | BG19: 1 | BH19: 1 | BL19: 1 | BU19: 1 | BV19: 1 | BX19: 1 | BY19: 1 | BZ19: 2 | CA19: 8
A20: VALPARAÍSO | I20: 1 | J20: 1 | K20: 2 | L20: 2 | S20: 3 | T20: 4 | U20: 7 | V20: 2 | W20: 4 | X20: 6 | Y20: 13 | AS20: 2 | AT20: 2 | AV20: 1 | AW20: 1 | AX20: 3 | AZ20: 1 | BA20: 1 | BC20: 1 | BD20: 1 | BE20: 2 | BN20: 4 | BO20: 4 | BQ20: 1 | BR20: 1 | BS20: 5 | BT20: 1 | BV20: 1 | BZ20: 1 | CA20: 26
A21: TOTAL | B21: 1 | C21: 2 | D21: 3 | E21: 3 | F21: 10 | G21: 12 | H21: 22 | I21: 47 | J21: 33 | K21: 80 | L21: 102 | M21: 3 | N21: 3 | O21: 3 | P21: 3 | Q21: 6 | R21: 9 | S21: 26 | T21: 26 | U21: 52 | V21: 42 | W21: 54 | X21: 96 | Y21: 148 | Z21: 3 | AA21: 2 | AB21: 5 | AC21: 3 | AD21: 3 | AE21: 6 | AF21: 11 | AG21: 4 | AH21: 4 | AI21: 8 | AJ21: 1 | AK21: 2 | AL21: 3 | AM21: 11 | AN21: 2 | AO21: 1 | AP21: 3 | AQ21: 3 | AR21: 25 | AS21: 22 | AT21: 47 | AU21: 15 | AV21: 12 | AW21: 27 | AX21: 74 | AY21: 5 | AZ21: 6 | BA21: 11 | BB21: 4 | BC21: 5 | BD21: 9 | BE21: 20 | BF21: 3 | BG21: 3 | BH21: 6 | BI21: 2 | BJ21: 2 | BK21: 4 | BL21: 10 | BM21: 9 | BN21: 13 | BO21: 22 | BP21: 5 | BQ21: 8 | BR21: 13 | BS21: 35 | BT21: 4 | BU21: 11 | BV21: 15 | BW21: 3 | BX21: 6 | BY21: 9 | BZ21: 24 | CA21: 450
A22: ='0'!B21 -> Fuente: SIMAT Corte 30 de Septiembre 2012
A26: ADIELA MOLINA CUTIVA | N26: FENER DE LOS RIOS BARRERA
A27: Secretaria de Educación | N27: Jefe División de Cobertura
A29: Elaboró: Luz Angela Medina, Jefe de Permanencia

Sheet 6
B1: MATRICULA DECRETO 3011 POR CICLOS Y GENERO
B2: MUNICIPIO | C2: GENERO | E2: TOTAL
C3: FEMENINO | D3: MASCULINO
B4: BELÉN DE LOS ANDAQUIES | C4: 94 | D4: 119 | E4: 213
B5: I. E. R. PUEBLO NUEVO | C5: 7 | D5: 14 | E5: 21
B6: I.E AGROTECNICO MIXTO | C6: 41 | D6: 30 | E6: 71
B7: I.E GABRIELA MISTRAL | C7: 17 | D7: 34 | E7: 51
B8: I.E RURAL EL PORTAL LA MONO | C8: 7 | D8: 19 | E8: 26
B9: I.E SAN LUIS | C9: 22 | D9: 22 | E9: 44
B10: CARTAGENA DEL CHAIRÁ | C10: 116 | D10: 85 | E10: 201
B11: I.E AGROECOLOGICO AMAZONICO | C11: 35 | D11: 20 | E11: 55
B12: I.E EL CHAIRA JOSE MARIA CORDOBA | C12: 54 | D12: 46 | E12: 100
B13: I.E. R. DIVINO NIÑO | C13: 13 | D13: 10 | E13: 23
B14: I.E.R JOSE ANTONIO GALAN | C14: 14 | D14: 9 | E14: 23
B15: CURILLO | C15: 97 | D15: 85 | E15: 182
B16: C.E. EL LIBERTADOR | C16: 14 | D16: 8 | E16: 22
B17: C.E. LA NOVIA | C17: 38 | D17: 36 | E17: 74
B18: I.E ANGEL CUNIBERTI | C18: 45 | D18: 41 | E18: 86
B19: EL DONCELLO | C19: 311 | D19: 219 | E19: 530
B20: I.E JORGE ABEL MOLINA | C20: 70 | D20: 51 | E20: 121
B21: I.E RUFINO QUICHOYA | C21: 212 | D21: 132 | E21: 344
B22: I.E. MARCO FIDEL SUAREZ | C22: 29 | D22: 36 | E22: 65
B23: EL PAUJIL | C23: 205 | D23: 180 | E23: 385
B24: C.E SANTA TERESA | C24: 17 | D24: 30 | E24: 47
B25: I.E AGROECOLOGICO AMAZONICO | C25: 175 | D25: 145 | E25: 320
B26: I.E NUESTRA SE¿ORA DE LAS MERCEDES | C26: 13 | D26: 5 | E26: 18
B27: LA MONTAÑITA | C27: 122 | D27: 115 | E27: 237
B28: C.E BALCONES | C28: 9 | D28: 10 | E28: 19
B29: C.E. EL JARDIN | C29: 15 | D29: 12 | E29: 27
B30: I.E NUESTRA SEÑORA DEL PERPETUO SOCORRO | C30: 57 | D30: 41 | E30: 98
B31: I.E. R. BRISAS DE SAN ISIDRO | C31: 14 | D31: 16 | E31: 30
B32: I.E.R SIMON BOLIVAR | C32: 27 | D32: 36 | E32: 63
B33: MILÁN | C33: 20 | D33: 26 | E33: 46
B34: C.E EL DIAMANTE (MIRAVALLE) | C34: 7 | D34: 4 | E34: 11
B35: I.E.R. ILUSION MATICURU | C35: 13 | D35: 22 | E35: 35
B36: MORELIA | C36: 57 | D36: 51 | E36: 108
B37: I.E CERVANTES | C37: 57 | D37: 51 | E37: 108
B38: PUERTO RICO | C38: 184 | D38: 150 | E38: 334
B39: I.E ACEVEDO Y GOMEZ | C39: 52 | D39: 35 | E39: 87
B40: I.E SAGRADOS CORAZONES | C40: 106 | D40: 104 | E40: 210
B41: I.E. R. VILLA DEL RIO | C41: 26 | D41: 11 | E41: 37
B42: SAN JOSÉ DEL FRAGUA | C42: 243 | D42: 269 | E42: 512
B43: I.E PARROQUIAL | C43: 89 | D43: 128 | E43: 217
B44: I.E. RURAL LAS LAJAS | C44: 28 | D44: 17 | E44: 45
B45: I.E.R. DIVINO NIÑO | C45: 126 | D45: 124 | E45: 250
B46: SAN VICENTE DEL CAGUÁN | C46: 365 | D46: 248 | E46: 613
B47: I.E DOMINGO SAVIO | C47: 159 | D47: 90 | E47: 249
B48: I.E PROMOCION SOCIAL | C48: 106 | D48: 75 | E48: 181
B49: I.E. R. CRISTALINA TRONCALES | C49: 10 | D49: 2 | E49: 12
B50: I.E. R. LA SOMBRA | C50: 21 | D50: 27 | E50: 48
B51: I.E.R. ARENOSO | C51: 40 | D51: 33 | E51: 73
B52: I.E.R. CAMPO HERMOSO | C52: 29 | D52: 21 | E52: 50
B53: SOLANO | C53: 131 | D53: 158 | E53: 289
B54: C.E. EL DANUBIO | C54: 27 | D54: 52 | E54: 79
B55: C.E. MONONGUETE | C55: 43 | D55: 25 | E55: 68
B56: C.E. PUERTO TEJADA | C56: 19 | D56: 30 | E56: 49
B57: I.E CAMPO ELIAS MARULANDA | C57: 42 | D57: 51 | E57: 93
B58: SOLITA | C58: 69 | D58: 45 | E58: 114
B59: I.E INTERNADO RURAL SOLITA | C59: 69 | D59: 45 | E59: 114
B60: VALPARAÍSO | C60: 39 | D60: 40 | E60: 79
B61: I.E VALPARAISO | C61: 39 | D61: 40 | E61: 79
B62: TOTAL GENERAL | C62: 2053 | D62: 1790 | E62: 3843
B63: ='0'!B21 -> Fuente: SIMAT Corte 30 de Septiembre 2012
B67: ADIELA MOLINA CUTIVA | C67: FENER DE LOS RIOS BARRERA
B68: Secretaria de Educación | C68: Jefe División de Cobertura
B71: Elaboró: Luz Aide Losada C

Sheet 6.1
B1: CONSOLIDADO MATRICULA DECRETO 3011 POR MUNICIPIO
B5: MUNICIPIOS | C5: TOTAL ALUMNOS
B6: BELÉN | C6: 213
B7: CARTAGENA DEL CHAIRÁ | C7: 201
B8: CURILLO | C8: 182
B9: EL DONCELLO | C9: 530
B10: EL PAUJIL | C10: 385
B11: LA MONTAÑITA | C11: 237
B12: MILÁN | C12: 46
B13: MORELIA | C13: 108
B14: PUERTO RICO | C14: 334
B15: SAN JOSÉ DEL FRAGUA | C15: 512
B16: SAN VICENTE DEL CAGUÁN | C16: 613
B17: SOLANO | C17: 289
B18: SOLITA | C18: 114
B19: VALPARAÍSO | C19: 79
B20: TOTAL | C20: 3843
B21: =INDICE!A9 -> Fuente: SIMAT Corte 30 de Septiembre 2012
B26: ADIELA MOLINA CUTIVA | C26: FENER DE LOS RIOS BARRERA
B27: Secretaria de Educación | C27: Jefe División de Cobertura
B30: Elaboró: Luz Aide Losada C

Sheet 6.2
A1: SEGUIMIENTO DE MATRICULA A ESTABLECIMIENTOS EDUCATIVOS (DECRETO 3011)
A3: AÑO 2012 | F3: 2DO SEMESTRE
B4: MUNICIPIO | C4: INTITUCIÓN /CENTRO | D4: No. HORAS EXTAS MENSUALES | E4: MATRICULA Corte ABRIL 23-12) | F4: JULIO 23 julio 2012 | G4: AGOSTO 31 de agosto de 2012 | H4: SEPTIEMBRE 30 de 2012 | I4: OCTUBRE | J4: NOVIEMBRE
A5: 1 | B5: BELEN DE LOS ANDAQUIES | C5: I.E Agrotecnico Mixto | D5: 256 | E5: 71 | F5: 75 | G5: 73 | H5: 71
A6: =1+A5 -> 2 | C6: I.E Gabriela Mistral | D6: 180 | E6: 23 | F6: 28 | G6: 27 | H6: 51
A7: =1+A6 -> 3 | C7: C.E Pueblo Nuevo | D7: 72 | E7: 50 | F7: 41 | G7: 41 | H7: 21
A8: 4 | C8: C. E San Luis | D8: 192 | E8: 61 | F8: 44 | G8: 44 | H8: 44
A9: 5 | C9: C.E El Portal La Mono | D9: 120 | E9: 39 | F9: 30 | G9: 26 | H9: 26
A10: TOTAL MUNICIPIO | D10: =SUM(D5:D9) -> 820 | E10: =SUM(E5:E9) -> 244 | F10: 218 | G10: 211 | H10: =SUM(H5:H9) -> 213 | I10: 0 | J10: 0
A11: =1+A9 -> 6 | B11: CARTAGENA DEL CHAIRA | C11: I.E CHAIRA JOSE MARIA CORDOBA | D11: 280 | E11: 112 | F11: 101 | G11: 99 | H11: 100
A12: 7 | C12: C.E EL DIVINO NIÑO | D12: 80 | E12: 32 | F12: 33 | G12: 23 | H12: 23
A13: 8 | C13: AGROECOLOGICO AMAZONICO | D13: 353 | E13: 8 | F13: 85 | G13: 84 | H13: 55
A14: 9 | C14: I.E.R JOSE ANTONIO GALAN | H14: 23
A15: TOTAL MUNICIPIO | D15: =SUM(D11:D13) -> 713 | E15: =SUM(E11:E13) -> 152 | F15: 219 | G15: 206 | H15: =SUM(H11:H14) -> 201 | I15: 0 | J15: 0
A16: 10 | B16: CURILLO | C16: c.e La Novia | D16: 160 | E16: 67 | F16: 75 | G16: 73 | H16: 74
A17: 11 | C17: I.E Angel Cuniberti | D17: 440 | E17: 116 | F17: 116 | G17: 96 | H17: 86
A18: 12 | C18: C.E. EL LIBERTADOR | H18: 22
A19: TOTAL MUNICIPIO | D19: =SUM(D16:D17) -> 600 | E19: =SUM(E16:E17) -> 183 | F19: =SUM(F16:F17) -> 191 | G19: =SUM(G16:G17) -> 169 | H19: =SUM(H16:H18) -> 182 | I19: =SUM(I16:I17) -> 0 | J19: =SUM(J16:J17) -> 0
A20: 13 | B20: DONCELLO | C20: I.E Rufino Quichoya | D20: 1240 | E20: 360 | F20: 378 | G20: 341 | H20: 344
A21: 14 | C21: I.E JORGE ABEL MOLINA | D21: 360 | E21: 152 | F21: 152 | G21: 121 | H21: 121
A22: 15 | C22: I.E Marco Fidel Suarez | D22: 288 | E22: 88 | F22: 86 | G22: 88 | H22: 65
A23: TOTAL MUNICIPIO | D23: =SUM(D20:D22) -> 1888 | E23: =SUM(E20:E22) -> 600 | F23: 616 | G23: 550 | H23: =SUM(H20:H22) -> 530 | I23: 0 | J23: 0
A24: =1+A22 -> 16 | B24: MILAN | C24: C.E ILUSION MATICURU | D24: 160 | E24: 38 | F24: 36 | G24: 36 | H24: 35
A25: 17 | C25: C.E EL DIAMANTE (MIRAVALLE) | H25: 11
A26: TOTAL MUNICIPIO | D26: =SUM(D24) -> 160 | E26: =SUM(E24) -> 38 | F26: 36 | G26: 36 | H26: =SUM(H24:H25) -> 46 | I26: 0 | J26: 0
A27: 18 | B27: MONTAÑITA | C27: I.E Nuestra Sra perpetuo Socorro | D27: 320 | E27: 97 | F27: 93 | G27: 92 | H27: 98
A28: 19 | C28: C.E El Jardin | D28: 80 | E28: 26 | F28: 27 | G28: 27 | H28: 27
A29: 20 | C29: I.E R simon Bolivar | D29: 200 | E29: 59 | F29: 59 | G29: 62 | H29: 63
A30: 21 | C30: C.E PALMA ARRIBA-balcones | D30: 80 | E30: 21 | F30: 22 | G30: 19 | H30: 19
A31: 22 | C31: BRISA DE SAN ISIDRO | D31: 96 | E31: 25 | F31: 30 | G31: 30 | H31: 30
A32: TOTAL MUNICIPIO | D32: =SUM(D27:D31) -> 776 | E32: =SUM(E27:E31) -> 228 | F32: 231 | G32: 230 | H32: =SUM(H27:H31) -> 237 | I32: 0 | J32: 0
A33: =1+A31 -> 23 | B33: MORELIA | C33: I.E Cervantes | D33: 128 | E33: 101 | F33: 104 | G33: 106 | H33: 108
A34: TOTAL MUNICIPIO | D34: =SUM(D33) -> 128 | E34: =SUM(E33) -> 101 | F34: 104 | G34: 106 | H34: =SUM(H33) -> 108 | I34: 0 | J34: 0
A35: =1+A33 -> 24 | B35: EL PAUJIL | C35: C.E SANTA TERESA | D35: 132 | E35: 54 | F35: 60 | G35: 47 | H35: 47
A36: 25 | C36: I.E Agroecólogico Amazonico | D36: 984 | E36: 317 | F36: 314 | G36: 321 | H36: 320
A37: 26 | C37: I.E NUESTRA SE¿ORA DE LAS MERCEDES | H37: 18
A38: TOTAL MUNICIPIO | D38: =SUM(D35:D36) -> 1116 | E38: =SUM(E35:E36) -> 371 | F38: 374 | G38: 368 | H38: =SUM(H35:H37) -> 385 | I38: 0 | J38: 0
A39: 27 | B39: PUERTO RICO | C39: I. E SAGRADOS CORAZONES | D39: 396 | E39: 117 | F39: 195 | G39: 210 | H39: 210
A40: 28 | C40: I.E ACEVEDO Y GOMEZ | D40: 280 | E40: 86 | F40: 89 | G40: 88 | H40: 87
A41: 29 | C41: I.E. R. VILLA DEL RIO | H41: 37
A42: TOTAL MUNICIPIO | D42: =SUM(D39:D40) -> 676 | E42: =SUM(E39:E40) -> 203 | F42: 284 | G42: 298 | H42: =SUM(H39:H41) -> 334 | I42: 0 | J42: 0
A43: 30 | B43: SAN JOSE DEL FRAGUA | C43: I.E DIVINO NIÑO | D43: 600 | E43: 223 | F43: 245 | G43: 250 | H43: 250
A44: 31 | C44: I.E. Parroquial | D44: 528 | E44: 189 | F44: 201 | G44: 217 | H44: 217
A45: 32 | C45: I.E Las Lajas | D45: 280 | E45: 92 | F45: 46 | G45: 48 | H45: 45
A46: TOTAL MUNICIPIO | D46: =SUM(D43:D45) -> 1408 | E46: =SUM(E43:E45) -> 504 | F46: 492 | G46: 515 | H46: =SUM(H43:H45) -> 512 | I46: 0 | J46: 0
A47: =1+A45 -> 33 | B47: SAN VICENTE | C47: I.E DOMINGO SAVIO | D47: 388 | E47: 318 | F47: 245 | G47: 250 | H47: 249
A48: 34 | C48: I.E PROMOSION SOCIAL | D48: 260 | E48: 188 | F48: 186 | G48: 183 | H48: 181
A49: 35 | C49: I.E CRISTALINA TRONCALES | D49: 40 | E49: 0 | F49: 17 | G49: 12 | H49: 12 | I49: 0 | J49: 0
A50: 36 | C50: I.E. R CAMPO HERMOSO | D50: 120 | E50: 50 | F50: 50 | G50: 50 | H50: 50
A51: 37 | C51: I.E. R. LA SOMBRA | H51: 48
A52: =1+A51 -> 38 | C52: I.E.R. ARENOSO | H52: 73
A53: TOTAL MUNICIPIO | D53: =SUM(D47:D50) -> 808 | E53: =SUM(E47:E50) -> 556 | F53: =SUM(F47:F50) -> 498 | G53: =SUM(G47:G50) -> 495 | H53: =SUM(H47:H52) -> 613 | I53: =SUM(I47:I50) -> 0 | J53: =SUM(J47:J50) -> 0
A54: 39 | B54: SOLITA | C54: I.E.R SOLITA | D54: 200 | E54: 119 | F54: 116 | G54: 114 | H54: 114
A55: TOTAL MUNICIPIO | D55: =SUM(D54) -> 200 | E55: =SUM(E54) -> 119 | F55: 116 | G55: 114 | H55: =SUM(H54) -> 114 | I55: 0 | J55: 0
A56: =1+A54 -> 40 | B56: SOLANO | C56: C.E MONONGUETE | D56: 160 | E56: 86 | F56: 69 | G56: 68 | H56: 68
A57: 41 | C57: I.E CAMPO ELIAS MARULANDA | D57: 288 | E57: 93 | F57: 95 | G57: 93 | H57: 93
A58: 42 | C58: C.E El Danubio | D58: 320 | E58: 80 | F58: 82 | G58: 80 | H58: 79
A59: 43 | C59: Puerto Tejada | D59: 80 | E59: * | F59: * | G59: 0 | H59: 49
A60: TOTAL MUNICIPIO | D60: =SUM(D56:D59) -> 848 | E60: =SUM(E56:E58) -> 259 | F60: =SUM(F56:F58) -> 246 | G60: =SUM(G56:G59) -> 241 | H60: =SUM(H56:H59) -> 289 | I60: =SUM(I56:I59) -> 0 | J60: =SUM(J56:J59) -> 0
A61: =1+A59 -> 44 | B61: VALPARAISO | C61: I.E VALPARAISO | D61: 160 | E61: 89 | F61: 89 | G61: 90 | H61: 79
A62: TOTAL MUNICIPIO | D62: =SUM(D61) -> 160 | E62: =SUM(E61) -> 89 | F62: 89 | G62: =SUM(G61) -> 90 | H62: =SUM(H61) -> 79 | I62: 0 | J62: 0
A63: GRAN TOTAL | D63: =SUM(D62,D60,D55,D53,D46,D42,D38,D34,D32,D26,D23,D19,D15,D10) -> 10301 | E63: =SUM(E62,E60,E55,E53,E46,E42,E38,E34,E32,E26,E23,E19,E15,E10) -> 3,647 | F63: =SUM(F62,F60,F55,F53,F46,F42,F38,F34,F32,F26,F23,F19,F15,F10) -> 3,714 | G63: =SUM(G62,G60,G55,G53,G46,G42,G38,G34,G32,G26,G23,G19,G15,G10) -> 3,629 | H63: =SUM(H62,H60,H55,H53,H46,H42,H38,H34,H32,H26,H23,H19,H15,H10) -> 3,843
B64: =INDICE!A9 -> Fuente: SIMAT Corte 30 de Septiembre 2012
B70: ADIELA MOLINA CUTIVA | F70: FENER DE LOS RIOS BARRERA
B71: Secretaria de Educación | F71: Jefe División de Cobertura
B74: Elaboró: Luz Aide Losada C

Sheet 7
A1: HISTORICO DE MATRICULA OFICIAL POR GRADOS
B3: GRADO | C3: 2008 | D3: 2009 | E3: 2010 | F3: 2011 | G3: 2012 A corte 30092012
B4: 0 | C4: 6,660 | D4: 5,987 | E4: 5806 | F4: 5894 | G4: 5,520
B5: 1 | C5: 11,691 | D5: 10,975 | E5: 9544 | F5: 9258 | G5: 8,276
B6: 2 | C6: 9,617 | D6: 9,937 | E6: 9,529 | F6: 8,835 | G6: 7,724
B7: 3 | C7: 8,083 | D7: 8,908 | E7: 8,840 | F7: 8,731 | G7: 7,437
B8: 4 | C8: 7,040 | D8: 7,553 | E8: 8,176 | F8: 8,173 | G8: 7,370
B9: 5 | C9: 6,374 | D9: 6,960 | E9: 7,098 | F9: 7,846 | G9: 6,890
B10: 6 | C10: 5,237 | D10: 5,879 | E10: 5,934 | F10: 6,401 | G10: 5,899
B11: 7 | C11: 3,880 | D11: 4,405 | E11: 5,044 | F11: 5,253 | G11: 4,901
B12: 8 | C12: 3,066 | D12: 3,457 | E12: 3,836 | F12: 4,382 | G12: 4,016
B13: 9 | C13: 2,400 | D13: 2,654 | E13: 2,985 | F13: 3,175 | G13: 3,231
B14: 10 | C14: 1,721 | D14: 1,964 | E14: 2,102 | F14: 2,316 | G14: 2,145
B15: 11 | C15: 1,211 | D15: 1,498 | E15: 1,689 | F15: 1,648 | G15: 1,696
B17: CICLO1 | C17: 3,123 | D17: 2,789 | E17: 1932 | F17: 759 | G17: 516
B18: CICLO2 | C18: 1,273 | D18: 1,910 | E18: 2623 | F18: 3029 | G18: 687
B19: CICLO3 | C19: 2,468 | D19: 2,246 | E19: 2,428 | F19: 3,813 | G19: 1,978
B20: CICLO4 | C20: 1,930 | D20: 2,019 | E20: 2,192 | F20: 1,123 | G20: 1,965
B21: CICLO5 | C21: 1,501 | D21: 1,031 | E21: 443 | F21: 186 | G21: 643
B22: CICLO6 | C22: 610 | D22: 467 | E22: 2,273 | F22: 1,246 | G22: 635
B24: ACELERAC | C24: 406 | D24: 301 | E24: 181 | F24: 144 | G24: 143
B25: TOTAL | C25: =SUM(C4:C24) -> 78,291 | D25: =SUM(D4:D24) -> 80,940 | E25: =SUM(E4:E24) -> 82,655 | F25: =SUM(F4:F24) -> 82,212 | G25: =SUM(G4:G24) -> 71,672
B26: Fuente: Sistema Información de Matrícula SIMAT A corte 31 agosto 2012
B29: ADIELA MOLINA CUTIVA | F29: FENER DE LOS RIOS BARRERA
B30: Secretaria de Eduación | F30: Jefe Oficina de Cobertura
B32: Elaboró Gustavo Carvajal Peralta

Sheet 7.1
B1: HISTORICO MATRICULA OFICIAL POR MODELO EDUCATIVO
B3: MODELO EDUCATIVO | C3: AÑO
C4: 2008 | D4: 2009 | E4: 2010 | F4: 2011 | G4: 2012
B5: TELESECUNDARIA | C5: 568 | D5: 1,244 | E5: 1,575 | F5: 1,820 | G5: 1,631
B6: CAFAM | C6: 3,325 | D6: 2,486 | E6: 3,836 | F6: 5,510 | G6: 2,214
B7: ACELERACION DEL APRENDIZAJE | C7: 406 | D7: 301 | E7: 181 | F7: 144 | G7: 143
B8: CIRCULO DEL APRENDIZAJE | C8: 0 | D8: 0 | E8: 0 | F8: 0 | G8: 92
B9: POST PRIMARIA | C9: 2,915 | D9: 3,561 | E9: 3,894 | F9: 4,826 | G9: 4,553
B10: EDUCACION TRADICIONAL | C10: 31,246 | D10: 32,111 | E10: 33,790 | F10: 34,431 | G10: 32,274
B11: SER | C11: 2,051 | D11: 0 | E11: 0 | F11: 0 | G11: 0
B12: ESCUELA NUEVA | C12: 29,989 | D12: 31,826 | E12: 30,153 | F12: 29,550 | G12: 25,296
B13: ETNOEDUCACION | C13: 1,333 | D13: 1,125 | E13: 1,027 | F13: 1,196 | G13: 1,148
B14: MEDIA RURAL | C14: 0 | D14: 0 | E14: 0 | F14: 53 | G14: 99
B15: PREESCOLAR NO ESCOLARIZADO/SEMIESCOLARIZADO | C15: 929 | D15: 310 | E15: 144 | F15: 36 | G15: 12
B16: A CRECER | C16: 0 | D16: 0 | E16: 0 | F16: 0 | G16: 385
B17: PROGRAMA PARA JOVENES EN EXTRAEDAD Y ADULTOS (DECRETO 3011) | C17: 5,529 | D17: 7,976 | E17: 8,055 | F17: 4,646 | G17: 3,825
B18: TOTAL | C18: =SUM(C5:C17) -> 78,291 | D18: =SUM(D5:D17) -> 80,940 | E18: =SUM(E5:E17) -> 82,655 | F18: =SUM(F5:F17) -> 82,212 | G18: =SUM(G5:G17) -> 71,672
B19: Fuente: Sistema Información de Matrícula SIMAT A corte 31 agosto 2012
B22: ADIELA MOLINA CUTIVA | E22: FENER DE LOS RIOS BARRERA
B23: Secretaria de Eduación | E23: Jefe Oficina de Cobertura
B25: Elaboró Gustavo Carvajal Peralta

Sheet 7.2
A1: HISTORICO MATRICULA POR NIVELES
A4: AÑO | B4: PREESCOLAR | C4: PRIMARIA | D4: SECUNDARIA | E4: MEDIA | F4: CICLOS | G4: TOTAL
A5: 2004 | B5: 4,825 | C5: 49,417 | D5: 10,745 | E5: 2,256 | F5: 1,445 | G5: =+B5+C5+D5+E5+F5 -> 68,688
A6: 2005 | B6: 6,236 | C6: 49,388 | D6: 12,510 | E6: 2,529 | F6: 2,625 | G6: 73,288
A7: 2006 | B7: 6,221 | C7: 49,059 | D7: 13,428 | E7: 2,771 | F7: 6,206 | G7: 77,685
A8: 2007 | B8: 5,628 | C8: 48,047 | D8: 14,730 | E8: 2,874 | F8: 7,252 | G8: 78,531
A9: 2008 | B9: 6,660 | C9: 43,211 | D9: 14,583 | E9: 2,932 | F9: 10,905 | G9: 78,291
A10: 2009 | B10: 5,987 | C10: 44,634 | D10: 16,395 | E10: 3,462 | F10: 10,462 | G10: 80,940
A11: 2010 | B11: 5,799 | C11: =13825+28841 -> 42,666 | D11: =9521+7787 -> 17,308 | E11: =2956+860 -> 3,816 | F11: =6400+5779 -> 12,179 | G11: 81,768
A12: 2011 | B12: 5,894 | C12: 42,987 | D12: 19,211 | E12: 3,964 | F12: 10,156 | G12: 82,212
A13: 2012 | B13: 5,617 | C13: 38,029 | D13: 18,098 | E13: 3,841 | F13: 6978 | G13: 72,563
A14: Fuente: Sistema Información de Matrícula SIMAT A corte 31 agosto 2012
A17: ADIELA MOLINA CUTIVA | E17: FENER DE LOS RIOS BARRERA
A18: Secretaria de Eduación | E18: Jefe Oficina de Cobertura
A20: Elaboró Gustavo Carvajal Peralta

Sheet 7.3
A1: HISTORICO DE LA MATRICULA OFICIAL Y PRIVADA POR ZONA Y NIVELES
A3: ZONA | B3: AÑO | C3: OFICIAL | H3: PRIVADA
C4: 2008 | D4: 2009 | E4: 2010 | F4: 2011 | G4: 2012 | H4: 2008 | I4: 2009 | J4: 2010 | K4: 2011 | L4: 2012
A5: URBANA | B5: PREESCOLAR | C5: 2,887 | D5: 2,077 | E5: 2,105 | F5: 2,041 | G5: 2,269 | H5: 27 | I5: 104 | J5: 101 | K5: 113 | L5: 97
B6: PRIMARIA | C6: 18,105 | D6: 13,667 | E6: 14,313 | F6: 13,921 | G6: 13,249 | H6: 119 | I6: 215 | J6: 135 | K6: 164 | L6: 189
B7: SECUNDARIA | C7: 10,307 | D7: 8,912 | E7: 9,534 | F7: 9,600 | G7: 9,377 | H7: 29 | I7: 50 | J7: 22 | K7: 42 | L7: 51
B8: MEDIA | C8: 2,619 | D8: 2,642 | E8: 2,910 | F8: 2,882 | G8: 2,918 | H8: 0 | I8: 0 | J8: 0 | K8: 0 | L8: 0
B9: CICLOS | C9: 7,200 | D9: 5,938 | E9: 6,196 | F9: 3,374 | G9: 3,060 | H9: 182 | I9: 494 | J9: 830 | K9: 960 | L9: 554
B10: TOTAL | C10: =SUM(C5:C9) -> 41,118 | D10: 33,236 | E10: =SUM(E5:E9) -> 35,058 | F10: =SUM(F5:F9) -> 31,818 | G10: 30,873 | H10: 357 | I10: 863 | J10: 1,088 | K10: 1,279 | L10: 891
A11: RURAL | B11: PREESCOLAR | C11: 3,773 | D11: 3,910 | E11: 3,701 | F11: 3,853 | G11: 3,251 | H11: 0 | I11: 7 | J11: 41 | K11: 0 | L11: 0
B12: PRIMARIA | C12: 25,106 | D12: 30,967 | E12: 29,055 | F12: 29,066 | G12: 24,591 | H12: 0 | I12: 15 | J12: 124 | K12: 0 | L12: 0
B13: SECUNDARIA | C13: 4,276 | D13: 7,483 | E13: 8,265 | F13: 9,611 | G13: 8,670 | H13: 0 | I13: 24 | J13: 27 | K13: 0 | L13: 0
B14: MEDIA | C14: 313 | D14: 820 | E14: 881 | F14: 1,082 | G14: 923 | H14: 0 | I14: 11 | J14: 12 | K14: 0 | L14: 0
B15: CICLOS | C15: 3,705 | D15: 4,524 | E15: 5,695 | F15: 6,782 | G15: 3,364 | H15: 0 | I15: 125 | J15: 272 | K15: 30 | L15: 0
B16: TOTAL | C16: =SUM(C11:C15) -> 37,173 | D16: 47,704 | E16: =SUM(E11:E15) -> 47,597 | F16: =SUM(F11:F15) -> 50,394 | G16: =SUM(G11:G15) -> 40,799 | H16: =SUM(H11:H15) -> 0 | I16: 182 | J16: 476 | K16: 30 | L16: 0
A17: GRAN TOTAL | C17: =+C10+C16 -> 78,291 | D17: 80,940 | E17: =+E10+E16 -> 82,655 | F17: =+F10+F16 -> 82,212 | G17: =+G10+G16 -> 71,672 | H17: =+H10+H16 -> 357 | I17: 1,045 | J17: 1,564 | K17: 1,309 | L17: 891
A18: Fuente: Sistema Información de Matrícula SIMAT A corte 31 agosto 2012
A21: ADIELA MOLINA CUTIVA | E21: FENER DE LOS RIOS BARRERA
A22: Secretaria de Eduación | E22: Jefe Oficina de Cobertura
A24: Elaboró Gustavo Carvajal Peralta

Sheet 7.4
A2: HISTORICO POBLACION EN VULNERABILIDAD
A4: AÑO | B4: POBLACIONES | I4: TOTAL POBLACION VULNERABLE
B5: DESPLAZADOS | C5: DISCAPACITADOS | D5: NEGRITUDES | E5: INDIGENAS | F5: DESVINCULADOS | G5: HIJOS DE DESMOVILIZADOS | H5: VICTIMAS DE MINAS
A6: 2011 | B6: 6535 | C6: 472 | D6: 126 | E6: 1686 | F6: 43 | G6: 108 | H6: 20 | I6: =SUM(B6:H6) -> 8990
A7: 2012 | B7: 6788 | C7: 453 | D7: 140 | E7: 1627 | F7: 33 | G7: 81 | H7: 19 | I7: =SUM(B7:H7) -> 9141
A8: Fuente: Sistema Información de Matrícula SIMAT A corte 31 agosto 2012
A13: ADIELA MOLINA CUTIVA | E13: FENER DE LOS RIOS BARRERA
A14: Secretaria de Eduación | E14: Jefe Oficina de Cobertura
A16: Elaboró Gustavo Carvajal Peralta

Sheet 7.5
A1: HISTORICO MATRICULA ARBERGUES
A3: AÑO | B3: 2008 | D3: 2009 | F3: 2010 | H3: 2011 | J3: 2012
B4: ALUM | C4: Nº ALBERGUES | D4: ALUM | E4: Nº ALBERGUES | F4: ALUM | G4: Nº ALBERGUES | H4: ALUM | I4: Nº ALBERGUES | J4: ALUM | K4: Nº ALBERGUES
A5: ALBANIA | B5: 105 | C5: 2 | D5: 120 | E5: 2 | F5: 125 | G5: 2 | H5: 110 | I5: 2 | J5: 2 | K5: 70
A6: BELEN | B6: 311 | C6: 4 | D6: 290 | E6: 4 | F6: 148 | G6: 4 | H6: 151 | I6: 4 | J6: 4 | K6: 151
A7: CARTAGENA | B7: 233 | C7: 5 | D7: 376 | E7: 6 | F7: 498 | G7: 7 | H7: 533 | I7: 7 | J7: 6 | K7: 558
A8: CURILLO | B8: 146 | C8: 2 | D8: 126 | E8: 3 | F8: 126 | G8: 3 | H8: 159 | I8: 4 | J8: 4 | K8: 184
A9: EL DONCELLO | B9: 490 | C9: 4 | D9: 476 | E9: 5 | F9: 374 | G9: 5 | H9: 296 | I9: 4 | J9: 4 | K9: 309
A10: EL PAUJIL | B10: 57 | C10: 1 | D10: 57 | E10: 1 | F10: 58 | G10: 1 | H10: 50 | I10: 1 | J10: 1 | K10: 50
A11: LA MONTAÑITA | B11: 209 | C11: 4 | D11: 230 | E11: 4 | F11: 280 | G11: 4 | H11: 245 | I11: 5 | J11: 5 | K11: 457
A12: MILAN | B12: 406 | C12: 3 | D12: 406 | E12: 3 | F12: 406 | G12: 3 | H12: 468 | I12: 5 | J12: 5 | K12: 264
A13: MORELIA | B13: 57 | C13: 1 | D13: 57 | E13: 1 | F13: 57 | G13: 1 | H13: 50 | I13: 1 | J13: 1 | K13: 29
A14: PUERTO RICO | B14: 293 | C14: 4 | D14: 348 | E14: 4 | F14: 328 | G14: 4 | H14: 395 | I14: 5 | J14: 5 | K14: 444
A15: SAN JOSE | B15: 27 | C15: 1 | D15: 57 | E15: 2 | F15: 133 | G15: 4 | H15: 133 | I15: 4 | J15: 4 | K15: 151
A16: SAN VICENTE | B16: 386 | C16: 7 | D16: 444 | E16: 9 | F16: 528 | G16: 12 | H16: 649 | I16: 13 | J16: 12 | K16: 585
A17: SOLANO | B17: 297 | C17: 3 | D17: 295 | E17: 4 | F17: 322 | G17: 5 | H17: 339 | I17: 5 | J17: 5 | K17: 332
A18: SOLITA | B18: 145 | C18: 2 | D18: 158 | E18: 3 | F18: 172 | G18: 3 | H18: 105 | I18: 2 | J18: 2 | K18: 120
A19: VALPARAISO | B19: 109 | C19: 2 | D19: 161 | E19: 3 | F19: 139 | G19: 3 | H19: 246 | I19: 5 | J19: 5 | K19: 253
A20: TOTAL DEPARTAMENTO | B20: 3,271 | C20: 45 | D20: 3,601 | E20: 54 | F20: 3,694 | G20: 61 | H20: 3,929 | I20: 67 | J20: =SUM(J5:J19) -> 65 | K20: =SUM(K5:K19) -> 3,957
A21: =INDICE!A9 -> Fuente: SIMAT Corte 30 de Septiembre 2012
A26: ADIELA MOLINA CUTIVA | E26: FENER DE LOS RIOS BARRERA
A27: Secretaria de Eduación | E27: Jefe Oficina de Cobertura
A30: Elaboró: Amparo Jojoa

Sheet 7.6
B1: REPUBLICA DE COLOMBIA
B2: DEPARTAMENTO DE CAQUETA
B3: SECRETARIA DE EDUCACION
B5: INSTITUCIONES Y CENTRO EDUCATIVOS CAQUETA
B6: SEGÚN DECRETO 002027 DEL 15 DE DICIEMBRE DE 2012
B8: MUNICIPIO | C8: INSTITUCIONES | G8: CENTROS EDUCATIVOS | J8: GRAN TOTAL
C9: RURAL | D9: URBANA | E9: URBANA/RURAL | F9: TOTAL | G9: URBANA | H9: RURAL | I9: TOTAL
B10: ALBANIA | C10: 1 | D10: 1 | F10: =SUM(C10:E10) -> 2 | G10: 0 | H10: 2 | I10: 2 | J10: =+F10+I10 -> 4
B11: BELEN | C11: 3 | D11: 2 | F11: 5 | G11: 0 | H11: 2 | I11: 2 | J11: 7
B12: CARTAGENA | C12: 13 | D12: 1 | E12: 1 | F12: 15 | G12: 0 | J12: 15
B13: CURILLO | C13: 2 | D13: 1 | F13: 3 | G13: 0 | H13: 2 | I13: 2 | J13: 5
B14: DONCELLO | C14: 5 | D14: 4 | F14: 9 | G14: 0 | H14: 1 | I14: 1 | J14: 10
B15: MILAN | C15: 6 | D15: 1 | F15: 7 | G15: 0 | H15: 2 | I15: 2 | J15: 9
B16: MONTAÑITA | C16: 9 | D16: 1 | F16: 10 | G16: 0 | H16: 5 | I16: 5 | J16: 15
B17: MORELIA | C17: 1 | D17: 1 | F17: 2 | G17: 0 | H17: 1 | I17: 1 | J17: 3
B18: PAUJIL | C18: 3 | D18: 1 | E18: 1 | F18: 5 | G18: 0 | H18: 3 | I18: 3 | J18: 8
B19: PUERTO RICO | C19: 9 | D19: 2 | F19: 11 | G19: 0 | H19: 5 | I19: 5 | J19: 16
B20: SAN JOSE | C20: 5 | D20: 2 | F20: 7 | G20: 0 | J20: 7
B21: SAN VICENTE | C21: 25 | D21: 3 | E21: 1 | F21: 29 | G21: 0 | H21: 2 | I21: 2 | J21: 31
B22: SOLANO | C22: 8 | D22: 1 | F22: 9 | G22: 0 | H22: 2 | I22: 2 | J22: 11
B23: SOLITA | C23: 3 | D23: 1 | F23: 4 | G23: 0 | J23: 4
B24: VALPARAISO | C24: 5 | D24: 1 | F24: 6 | G24: 0 | H24: 1 | I24: 1 | J24: 7
B25: TOTAL | C25: =SUM(C10:C24) -> 98 | D25: =SUM(D10:D24) -> 23 | E25: =SUM(E10:E24) -> 3 | F25: 124 | G25: =SUM(G10:G24) -> 0 | H25: =SUM(H10:H24) -> 28 | I25: =SUM(I10:I24) -> 28 | J25: =SUM(J10:J24) -> 152
B28: La Secretaria de Educación contaria para el año lectivo 2012, con 98 instituciones rurales, 23
B29: instituciones urbanas, 3 urbana/ rural y 28 centros educativos para un total de 152 estableci-
B30: mientos educativos. Estamos esperando que el MEN oficialice cargando en el sistema el acto
B31: administrativo.
B33: Elaboró: Gustavo Carvajal
